Workbook

Sheet Intro
B5: Forage Budget Generator
B6: Version 1.0
B7: David Bilderback | I7: Becky Bowling
B8: Email: dbilderb@utk.edu | I8: Email: bowling10@utk.edu
B31: Programs in agriculture and natural resources, 4-H youth development, family and consumer sciences, and resource development.
B32: University of Tennessee Institute of Agriculture, U.S. Department of Agriculture and country governments cooperating.
B33: UT Extension provide equal opportunities in programs and employment.

Sheet Input Table
B1: =+'Budget Generator'!C4 -> Cool Season Grass Clover | C1: =+'Budget Generator'!C3 -> Hay | D1: =IF(B2="Warm Season Perennial",(CONCATENATE(E1," ",C1)),(CONCATENATE(B2," ",C1))) -> Cool Season Grass Clove Hay | E1: =+'Budget Generator'!C5 -> Fescue | H1: Establishment | P1: Annual Maintenance
B2: =IF(B1="Cool Season Grass Clover","Cool Season Grass Clove",+B1) -> Cool Season Grass Clove | E2: Clover | H2: PB 378 | J2: Fertilizer | P2: Fertilizer | AT2: SP437-A | AV2: Variety trials
B3: Establishment | D3: Maintenance | G3: Description | H3: Seeding Rate | I3: Seeding Rate | J3: lb/acre | M3: Lime | N3: Burndown | O3: chem | P3: lb/acre | S3: Lime | AT3: Yield | AU3: Yield | AV3: Yield
A4: Seed | B4: =VLOOKUP($E$1,InputTable,3,) -> 17.5 | H4: lb/acre | I4: lb/acre | J4: N | K4: P2O5 | L4: K20 | M4: ton/acre | N4: chem | O4: Rate | P4: N | Q4: P2O5 | R4: K20 | S4: ton/acre | T4: Weed Control 1 | U4: Rate 1 | X4: Weed Control 2 | Y4: Rate 2 | AB4: Weed Control 3 | AC4: Rate 3 | AF4: Herbicide Cost | AG4: Pest Control | AH4: Rate 1 | AK4: Pest Control | AL4: Rate 2 | AO4: Pest Control | AP4: Rate 3 | AS4: Pesticide Cost | AT4: ton | AU4: ton | AV4: ton
A5: N | B5: =VLOOKUP($E$1,InputTable,4,) -> 30 | D5: =IF(B2="Cool Season Grass Clove",VLOOKUP($E$2,InputTable,10,),VLOOKUP($E$1,InputTable,10,)) -> 60 | E5: =VLOOKUP($E$1,InputTable,10,) -> 120 | F5: Cool Season Grass | G5: Fescue | H5: 15-20 | I5: 17.5 | J5: 30 | K5: 60 | L5: 60 | M5: 2 | N5: Glyphosate | O5: 3 qts | P5: 120 | Q5: 30 | R5: 30 | S5: 0.33 | T5: Duracor | U5: 12 | V5: oz | W5: =SUM(U5*'Input Price List'!B$36) -> 10.56 | X5: GrazonNext* | Y5: 1.5 | Z5: pint | AA5: =SUM(Y5*'Input Price List'!B$38) -> 11.445 | AB5: 2,4-D Ester 4EC | AC5: 2 | AD5: qt | AE5: =SUM(AC5*'Input Price List'!B$35) -> 14.88 | AF5: =AVERAGE(W5,AA5,AE5) -> 12.295 | AG5: Grizzly Too | AH5: 1.5 | AI5: oz | AJ5: =SUM(AH5*'Input Price List'!B$43) -> 1.56 | AK5: Intrepid 2F | AL5: 6 | AM5: oz | AN5: =SUM(AL5*'Input Price List'!B$44) -> 11.46 | AS5: =AVERAGE(AJ5,AN5,AR5) -> 6.51 | AT5: 2-4 | AU5: 3
A6: P2O5 | B6: =VLOOKUP($E$1,InputTable,5,) -> 60 | D6: =IF(B2="Cool Season Grass Clove",VLOOKUP($E$2,InputTable,11,),VLOOKUP($E$1,InputTable,11,)) -> 30 | G6: Orchardgrass | H6: 10-15 | I6: 12.5 | J6: 30 | K6: 60 | L6: 60 | M6: 2 | N6: Glyphosate | O6: 3 qts | P6: 120 | Q6: 30 | R6: 30 | S6: 0.33 | T6: Duracor | U6: 12 | V6: oz | W6: =SUM(U6*'Input Price List'!B$36) -> 10.56 | X6: GrazonNext* | Y6: 1.5 | Z6: pint | AA6: =SUM(Y6*'Input Price List'!B$38) -> 11.445 | AB6: 2,4-D Ester 4EC | AC6: 2 | AD6: qt | AE6: =SUM(AC6*'Input Price List'!B$35) -> 14.88 | AF6: =AVERAGE(W6,AA6,AE6) -> 12.295 | AG6: Grizzly Too | AH6: 1.5 | AI6: oz | AJ6: =SUM(AH6*'Input Price List'!B$43) -> 1.56 | AK6: Intrepid 2F | AL6: 6 | AM6: oz | AN6: =SUM(AL6*'Input Price List'!B$44) -> 11.46 | AS6: =AVERAGE(AJ6,AN6,AR6) -> 6.51 | AT6: 2-5 | AU6: 3 | AV6: 2-6
A7: K2O | B7: =VLOOKUP($E$1,InputTable,6,) -> 60 | D7: =IF(B2="Cool Season Grass Clove",VLOOKUP($E$2,InputTable,12,),VLOOKUP($E$1,InputTable,12,)) -> 30 | F7: White Clover | G7: Clover | H7: 2 | I7: 2 | P7: 60 | Q7: 30 | R7: 30 | S7: 0.33 | T7: Duracor | U7: 12 | V7: oz | W7: =SUM(U7*'Input Price List'!B$36) -> 10.56 | X7: GrazonNext* | Y7: 1.5 | Z7: pint | AA7: =SUM(Y7*'Input Price List'!B$38) -> 11.445 | AB7: 2,4-D Ester 4EC | AC7: 2 | AD7: qt | AE7: =SUM(AC7*'Input Price List'!B$35) -> 14.88 | AF7: 12.295 | AG7: Grizzly Too | AH7: 1.5 | AI7: oz | AJ7: =SUM(AH7*'Input Price List'!B$43) -> 1.56 | AK7: Intrepid 2F | AL7: 6 | AM7: oz | AN7: =SUM(AL7*'Input Price List'!B$44) -> 11.46 | AS7: 6.51 | AU7: 3
A8: Lime | B8: =VLOOKUP($E$1,InputTable,7,) -> 2 | D8: =IF(B2="Cool Season Grass Clove",VLOOKUP($E$2,InputTable,13,),VLOOKUP($E$1,InputTable,13,)) -> 0.33 | F8: Red Clover | G8: Clover | H8: 4 | I8: 4 | P8: 60 | Q8: 30 | R8: 30 | S8: 0.33 | T8: Duracor | U8: 12 | V8: oz | W8: =SUM(U8*'Input Price List'!B$36) -> 10.56 | X8: GrazonNext* | Y8: 1.5 | Z8: pint | AA8: =SUM(Y8*'Input Price List'!B$38) -> 11.445 | AB8: 2,4-D Ester 4EC | AC8: 2 | AD8: qt | AE8: =SUM(AC8*'Input Price List'!B$35) -> 14.88 | AF8: 12.295 | AG8: Grizzly Too | AH8: 1.5 | AI8: oz | AJ8: =SUM(AH8*'Input Price List'!B$43) -> 1.56 | AK8: Intrepid 2F | AL8: 6 | AM8: oz | AN8: =SUM(AL8*'Input Price List'!B$44) -> 11.46 | AS8: 6.51 | AU8: 3
F9: Summer Annual | G9: Crabgrass | H9: 3-5 | I9: 5 | J9: 120 | K9: 30 | L9: 60 | M9: 0.5 | P9: 120 | Q9: 30 | R9: 60 | S9: 0.5 | AG9: Grizzly Too | AH9: 1.5 | AI9: oz | AJ9: =SUM(AH9*'Input Price List'!B$43) -> 1.56 | AK9: Intrepid 2F | AL9: 6 | AM9: oz | AN9: =SUM(AL9*'Input Price List'!B$44) -> 11.46 | AS9: 6.51 | AU9: 3 | AV9: 2-3.5
A10: Yield | B10: =VLOOKUP($E$1,InputTable,41,) -> 3 | G10: Millet | H10: 20 | I10: 20 | J10: 120 | K10: 30 | L10: 60 | M10: 0.5 | P10: 120 | Q10: 30 | R10: 60 | S10: 0.5 | AG10: Grizzly Too | AH10: 1.5 | AI10: oz | AJ10: =SUM(AH10*'Input Price List'!B$43) -> 1.56 | AK10: Intrepid 2F | AL10: 6 | AM10: oz | AN10: =SUM(AL10*'Input Price List'!B$44) -> 11.46 | AS10: 6.51 | AT10: 2-6 | AU10: 4
G11: Sorghum-Sudan | H11: 45 broadcast; 30 drilled | I11: 30 | J11: 120 | K11: 30 | L11: 60 | M11: 0.5 | P11: 120 | Q11: 30 | R11: 60 | S11: 0.5 | AG11: Grizzly Too | AH11: 1.5 | AI11: oz | AJ11: =SUM(AH11*'Input Price List'!B$43) -> 1.56 | AK11: Intrepid 2F | AL11: 6 | AM11: oz | AN11: =SUM(AL11*'Input Price List'!B$44) -> 11.46 | AS11: 6.51 | AU11: 4 | AV11: 2.8-7
A12: Summer $ | B12: =VLOOKUP($E$1,SeedPrice,2,0) -> 1.33 | F12: Winter Annual | G12: Barley | H12: 100-150 | I12: 125 | J12: 120 | K12: 40 | L12: 40 | M12: 0.5 | P12: 120 | Q12: 40 | R12: 40 | S12: 0.5 | AG12: Grizzly Too | AH12: 1.5 | AI12: oz | AJ12: =SUM(AH12*'Input Price List'!B$43) -> 1.56 | AK12: Intrepid 2F | AL12: 6 | AM12: oz | AN12: =SUM(AL12*'Input Price List'!B$44) -> 11.46 | AS12: 6.51 | AU12: 2.5 | AV12: 1-4
G13: Rye | H13: 100-150 | I13: 125 | J13: 120 | K13: 40 | L13: 40 | M13: 0.5 | P13: 120 | Q13: 40 | R13: 40 | S13: 0.5 | AG13: Grizzly Too | AH13: 1.5 | AI13: oz | AJ13: =SUM(AH13*'Input Price List'!B$43) -> 1.56 | AK13: Intrepid 2F | AL13: 6 | AM13: oz | AN13: =SUM(AL13*'Input Price List'!B$44) -> 11.46 | AS13: 6.51 | AT13: 1-4 | AU13: 2.5
G14: Oats | H14: 100-150 | I14: 125 | J14: 120 | K14: 40 | L14: 40 | M14: 0.5 | P14: 120 | Q14: 40 | R14: 40 | S14: 0.5 | AG14: Grizzly Too | AH14: 1.5 | AI14: oz | AJ14: =SUM(AH14*'Input Price List'!B$43) -> 1.56 | AK14: Intrepid 2F | AL14: 6 | AM14: oz | AN14: =SUM(AL14*'Input Price List'!B$44) -> 11.46 | AS14: 6.51 | AU14: 2.5 | AV14: 1-4
A15: Herbicide | B15: =VLOOKUP($E$1,InputTable,26,) -> 12.295 | G15: Ryegrass | H15: 20-30 | I15: 25 | J15: 120 | K15: 40 | L15: 40 | M15: 0.5 | P15: 120 | Q15: 40 | R15: 40 | S15: 0.5 | AG15: Grizzly Too | AH15: 1.5 | AI15: oz | AJ15: =SUM(AH15*'Input Price List'!B$43) -> 1.56 | AK15: Intrepid 2F | AL15: 6 | AM15: oz | AN15: =SUM(AL15*'Input Price List'!B$44) -> 11.46 | AS15: 6.51 | AT15: 1-4 | AU15: 2.5
G16: Triticale | H16: N/A | I16: 100 | J16: 120 | K16: 40 | L16: 40 | M16: 0.5 | P16: 120 | Q16: 40 | R16: 40 | S16: 0.5 | AG16: Grizzly Too | AH16: 1.5 | AI16: oz | AJ16: =SUM(AH16*'Input Price List'!B$43) -> 1.56 | AK16: Intrepid 2F | AL16: 6 | AM16: oz | AN16: =SUM(AL16*'Input Price List'!B$44) -> 11.46 | AS16: 6.51 | AU16: 2.5 | AV16: 1-4
G17: Wheat | H17: 120-180 | I17: 150 | J17: 120 | K17: 40 | L17: 40 | M17: 0.5 | P17: 120 | Q17: 40 | R17: 40 | S17: 0.5 | AG17: Grizzly Too | AH17: 1.5 | AI17: oz | AJ17: =SUM(AH17*'Input Price List'!B$43) -> 1.56 | AK17: Intrepid 2F | AL17: 6 | AM17: oz | AN17: =SUM(AL17*'Input Price List'!B$44) -> 11.46 | AS17: 6.51 | AU17: 2.5
F18: Warm Season Perennials | G18: Alfalfa | H18: 15-20 | I18: 17.5 | J18: 15 | K18: 60 | L18: 190 | M18: 2 | P18: 15 | Q18: 60 | R18: 190 | S18: 0.67 | T18: Roundup | U18: 3 | V18: qts | W18: =U18*+'Input Price List'!B37 -> 15.66 | AF18: =AVERAGE(W18,AA18,AE18) -> 15.66 | AG18: Grizzly Too | AH18: 1.5 | AI18: oz | AJ18: =SUM(AH18*'Input Price List'!B$43) -> 1.56 | AK18: Intrepid 2F | AL18: 6 | AM18: oz | AN18: =SUM(AL18*'Input Price List'!B$44) -> 11.46 | AS18: 6.51 | AT18: 3-6 | AU18: 4
G19: Bermudagrass | H19: 5-8 | I19: 6.5 | J19: 60 | K19: 40 | L19: =IF($C$1="hay",80,40) -> 80 | M19: 2 | P19: =IF($C$1="hay",300,120) -> 300 | Q19: =IF($C$1="hay",80,40) -> 80 | R19: =IF($C$1="hay",60,80) -> 60 | S19: 0.67 | AG19: Grizzly Too | AH19: 1.5 | AI19: oz | AJ19: =SUM(AH19*'Input Price List'!B$43) -> 1.56 | AK19: Intrepid 2F | AL19: 6 | AM19: oz | AN19: =SUM(AL19*'Input Price List'!B$44) -> 11.46 | AS19: 6.51 | AT19: 5-8 | AU19: 6
S25: 1.5 ton/3-year

Sheet Budget Generator
A1: Forage Budget Generator
B3: Hay, Baleage or Pasture budget? | C3: Hay
B4: Type of forage? | C4: Cool Season Grass Clover
B5: =IF(C3=""," ",IF(C4="Cool Season Grass Clover", "Cool Season Grass",+C4)) -> Cool Season Grass | C5: Fescue | G5: =IF(C4="Cool Season Grass","CoolSeasonGrass",IF(C4="Cool Season Grass Clover","CoolSeasonGrass",IF(C4="Winter Annual","WinterAnnual",IF(C4="Summer Annual","SummerAnnual",IF(C4="Warm Season Perennial","WarmPerennial",0))))) -> CoolSeasonGrass
B6: Add Clover | D6: Only available for cool season grasses.
B8: If hay or baleage: | E8: Weight | F8: Override Weight
B9: Type of Bale | C9: Round | G9: =IF(C9="Round","RoundBale",IF(C9="Square","Square",IF(C9="Large Square","LargeSquare",0))) -> RoundBale
B10: Size of Bale | C10: 4x5 | E10: =IF($F$10>0,$F$10,IF($C$9="Square",50,IF($C$3="Hay",VLOOKUP($C$10,'List Page'!$J$2:$K$5,2),VLOOKUP($C$10,'List Page'!$J$2:$L$6,3)))) -> 710 | H10: =E10 -> 710
B11: Number of cuttings | C11: 2
B13: Storage Method | C13: Hay Barn
B15: Soil Test Fertilizer Override
B16: N | C16: 60 | D16: lbs
B17: P2O5 | C17: 30 | D17: lbs
B18: K2O | C18: 30 | D18: lbs
B19: Lime | C19: 0.33 | D19: ton
B21: Click button to change input prices

Sheet List Page
A1: Production Type | B1: Maturity | C1: Forage Type | D1: Cool Season Grass | E1: Warm Season Perennial | F1: Native Warm Season | G1: Winter Annual | H1: Summer Annual | I1: Type of Bale | J1: Round Bale Size | K1: Weight | L1: Baleage | M1: Large Square Bales | N1: Weight | P1: Budget
A2: Hay | B2: Establishment | C2: Cool Season Grass | D2: Fescue | E2: Alfalfa | F2: Big Bluestem | G2: Barley | H2: Crabgrass | I2: Square | P2: Budget Generator
A3: Baleage | B3: Annual Maintenace | C3: Cool Season Grass Clover | D3: Orchardgrass | E3: Bermudagrass | F3: Gamagrass | G3: Rye | H3: Millet | I3: Round | J3: 4x5 | K3: 710 | L3: =SUM(K3*(1.5)) -> 1065 | M3: 3x3x8 | N3: 1100 | P3: Machinery
A4: Pasture | C4: Summer Annual | F4: Indiangrass | G4: Oats | H4: Sorghum-Sudan | J4: 5x5 | K4: 880 | L4: =SUM(K4*(1.5)) -> 1320 | M4: 4x4x8 | N4: 1700
C5: Warm Season Perennial | F5: Little Bluestem | G5: Ryegrass | H5: Sudangrasses | J5: 5x6 | K5: 1270 | L5: 1905
C6: Winter Annual | F6: Switchgrass | G6: Triticale | H6: Teff
G7: Wheat | I7: Large Square
A10: Legumes? | B10: Legumes | C10: Renovation | J10: 4x4 | K10: 450
A11: Yes | B11: Clover | C11: Alfalfa | F11: White Clover | J11: 5x4 | K11: 570
A12: No | B12: Lespedeza | C12: Alfalfa/Orchardgrass | F12: Red Clover
B13: Vetch
A16: Average Storage Losses | C16: Fixed Cost | F16: Cool Season Grass | G16: Seeding Rate (lb/acre)
A17: Storage Method | B17: Percent Loss | C17: $/Bale | F17: Fescue | G17: 17.5
A18: Hay Barn | B18: 0.035 | C18: =+'Input Price List'!P50 -> 4.432581695 | D18: Uncovered & outside | F18: Orchardgrass | G18: 12.5
A19: Stacked/tarped | B19: 0.075 | C19: =+'Input Price List'!P51 -> 1.666666667 | D19: =VLOOKUP(D18,A17:B20,2) -> 0.2875
A20: Uncovered & outside | B20: 0.2875 | C20: =+'Input Price List'!P52 -> 0 | D20: =VLOOKUP(D18,A18:B20,2) -> 0.2875
A21: Baleage | B21: 0.15
A25: Custom Machinery Cost | B25: Acre | C25: Bale
A26: Disk Mowing | B26: 16.5
A27: Tedding | B27: 6.67
A28: Raking | B28: 8.67
A29: Baling | B29: 13.17 | C29: 1.09
A30: Hauling | C30: 5.42 | D30: 0.75
A31: Spraying | B31: 11.81
A32: No-Till Drill | B32: 17.08
A33: Bush Hogging | B33: 19.5
A34: Broadcast Seeding | B34: 15
A35: Baleage | C35: 5.5
A36: Bermudagrass Sprig
B38: Bale | C38: Hay Barn | D38: Tarp
A39: Baling | B39: =IF('Budget Generator'!C9="Round",(VLOOKUP('Budget Generator'!C10,'List Page'!A40:B43,2)),'List Page'!B43) -> 13.17 | C39: =VLOOKUP('Budget Generator'!C10,'List Page'!$A$40:$D$43,3) -> 320 | D39: =VLOOKUP('Budget Generator'!C10,'List Page'!$A$40:$D$43,4) -> 130
A40: 4x5 | B40: 13.17 | C40: =+'Input Price List'!B56 -> 320 | D40: =+'Input Price List'!B57 -> 130
A41: 5x5 | B41: 14.4 | C41: =+'Input Price List'!C56 -> 270 | D41: =+'Input Price List'!C57 -> 110
A42: 5x6 | B42: 14 | C42: =+'Input Price List'!D56 -> 225 | D42: =+'Input Price List'!D57 -> 100
A43: Square | B43: 43.6 | C43: =+'Input Price List'!E56 -> 6200

Sheet Cool Season Grass Establishment (hidden)
A1: Cool Season Grass, Establishment
A2: Estimated Expenses per Acre | I2: Budget Generator
F3: Amount
A4: Item | B4: Description | C4: Unit | D4: Quantity | E4: Price | F4: ($/acre)
A5: Expenses
A6: Burndown | B6: Glyphospate | C6: qt | D6: 3 | E6: =+'Input Price List'!B37 -> 5.22 | F6: =D6*E6 -> 15.66
A7: Seed | C7: lb | D7: 16 | E7: ='Input Price List'!B13 -> 1.33 | F7: =E7*D7 -> 21.28
A8: Fertilizer | B8: N | C8: lb | D8: 30 | E8: ='Input Price List'!B26 -> 0.5986413043 | F8: =SUM(D8*E8) -> 17.95923913
B9: P2O5 | C9: lb | D9: 60 | E9: ='Input Price List'!B27 -> 0.6135751418 | F9: 36.81450851
B10: K2O | C10: lb | D10: 60 | E10: ='Input Price List'!B28 -> 0.4088 | F10: 24.528
B11: Custom Application | C11: acre | D11: 1 | E11: ='Input Price List'!B30 -> 12.71 | F11: 12.71
A12: Lime | B12: Custom Application | C12: ton | D12: 0.33 | E12: ='Input Price List'!B32 -> 43.63 | F12: =SUM(D12*E12) -> 14.3979
A13: Total Variable Expenses | F13: =SUM(F6:F12) -> 143.3496476
A14: Custom Machinery Cost
A15: Spraying | C15: acre | D15: 1 | F15: ='Input Price List'!B40 -> 11.81
A16: No-till Drill | C16: acre | D16: 1 | F16: =17.08 -> 17.08
A17: Interest on Operating Capital | B17: 6 months | C17: acre | D17: =SUM(F6:F12)+F15+F16 -> 172.2396476 | E17: 0.08 | F17: =SUM(D17*E17)/2 -> 6.889585905
A18: Total Custom Machinery Cost | F18: =SUM(F15:F16) -> 28.89
A19: Total Budgeted Expenses | F19: =SUM(F13+F18+F17) -> 179.1292335

Sheet Input Price List
A1: General | G1: =VLOOKUP(+ForageSpecies,$F$3:$H$11,2,) -> 150 | H1: =VLOOKUP(+ForageSpecies,$F$3:$H$11,3,) -> 320
A2: Interest | B2: 0.08 | C2: % | F2: Hay Values | G2: $/ton | H2: $/ton
F3: Alfalfa | G3: 250 | H3: 480
F4: Bermudagrass | G4: 250 | H4: 480
F5: Fescue | G5: 150 | H5: 320
F6: Fescue/Clover | G6: 160 | H6: 320
A7: Seed | F7: Mixed Grass | G7: 160 | H7: 320
A8: Alfalfa | B8: 10.02 | C8: lb | F8: Orchardgrass | G8: 220 | H8: 400
A9: Bermudagrass Seed | B9: 8.48 | C9: lb | F9: Orchardgrass/Clover | G9: 220 | H9: 400
A10: Bermudagrass Sprig | C10: acre | F10: Summer Annual | G10: 150 | H10: 320
A11: Barley | B11: 0.43 | C11: lb | F11: Winter Annual | G11: 150 | H11: 320
A12: Crabgrass | B12: 6.66 | C12: lb
A13: Fescue | B13: 1.33 | C13: lb
A14: Oats | B14: 0.49 | C14: lb
A15: Orchardgrass | B15: 3.02 | C15: lb
A16: Millet | B16: 1.98 | C16: lb
A17: Red Clover | B17: 3.33 | C17: lb
A18: Rye | B18: 0.48 | C18: lb
A19: Ryegrass | B19: 0.87 | C19: lb
A20: Sorghum-Sudan | B20: 0.83 | C20: lb
A21: Triticale | B21: 0.52 | C21: lb
A22: Wheat | B22: 0.28 | C22: lb
A23: White Clover | B23: 4.57 | C23: lb
A25: Fertilizer | D25: Description | F25: Price w/o buggy
A26: N | B26: =F26/920 -> 0.5986413043 | C26: lb | D26: Urea | E26: 46-0-0 | F26: 550.75
A27: P2O5 | B27: =(F27-(B26*360))/920 -> 0.6135751418 | C27: lb | D27: DAP | E27: 18-46-0 | F27: 780
A28: K2O | B28: =F28/1200 -> 0.4088 | C28: lb | D28: Potash 60% | E28: 0-0-60 | F28: 490.56
A29: Boron | B29: 0.99 | C29: lb
A30: Custom Application | B30: 12.71 | C30: acre
A32: Lime & Application | B32: 43.63 | C32: ton
A34: Weed Control
A35: 2,4-D Ester 4EC | B35: 7.44 | C35: qt
A36: Duracor | B36: 0.88 | C36: oz
A37: Glyphosate | B37: 5.22 | C37: qt | D37: =SUM(B37*3) -> 15.66
A38: GrazonNext | B38: 7.63 | C38: pt
A39: Surfactant | B39: 2.83 | C39: pt
A40: Custom Application | B40: 11.81 | C40: acre
A42: Pest Control
A43: Grizzly Too | B43: 1.04 | C43: oz
A44: Intrepid 2F | B44: 1.91 | C44: oz
A47: Buildings and Handling Equipment Expenses
B48: Purchase | E48: Salvage | F48: Salvage | G48: Average | H48: Useful | J48: Interest | M48: Property | P48: Fixed Cost
A49: Item | B49: Price | C49: Units | D49: Cost | E49: Percent | F49: Value | G49: Value | H49: Life | I49: Depreciation | J49: Rate | K49: Interest | L49: Insurance | M49: Tax | N49: Repairs | O49: Bale | P49: $/Bale
A50: Hay Barn (40'X60'X16') | B50: 20000 | C50: 1 | D50: =B50*C50 -> 20000 | E50: 0.25 | F50: =D50*E50 -> 5000 | G50: =(D50+F50+I50)/2 -> 12875 | H50: 20 | I50: =(D50-F50)/H50 -> 750 | J50: 0.07 | K50: =(CUMIPMT(J50,5,B50,1,5,1)/20)*-1 -> 139.6761422 | L50: =G50*0.005 -> 64.375 | M50: =G50*0.005 -> 64.375 | N50: =D50*0.02 -> 400 | O50: =+'List Page'!C39 -> 320 | P50: =((I50+SUM(K50:N50)))/O50 -> 4.432581695
A51: Hay tarp (33 x 52) | B51: 650 | C51: 1 | D51: =B51*C51 -> 650 | E51: 0 | F51: =D51*E51 -> 0 | G51: =(D51+F51+I51)/2 -> 433.3333333 | H51: 3 | I51: =(D51-F51)/H51 -> 216.6666667 | J51: 0.07 | O51: =+'List Page'!D39 -> 130 | P51: =(I51+SUM(K51:N51))/O51 -> 1.666666667
A52: Outside | P52: 0
B54: Hay Storage Capacity
B55: 4x5 | C55: 5x5 | D55: 5x6 | E55: square
A56: Hay Barn | B56: 320 | C56: 270 | D56: 225 | E56: 6200
A57: Tarp | B57: 130 | C57: 110 | D57: 100

Sheet Alfalfa Hay
A1: Alfalfa, Hay | P1: Alfalfa, Hay
A2: Estimated Expenses per Acre | P2: Sensitivity Analysis | X2: Sensitivity Analysis
F3: Amount | G3: Amount | H3: Amount | P3: Return Above Variable Expenses
A4: Item | B4: Description | C4: Unit | D4: Quantity | E4: Price | F4: ($/acre) | G4: ($/ton) | H4: ($/bale) | I4: =IF(+'Budget Generator'!C$3="Hay",+'Budget Generator'!C$9," ") -> Round | S4: Price ($/ton) | Y4: Variable Costs | AA4: Total Costs
A5: Income | I5: =IF(+'Budget Generator'!C$9="Round",+'Budget Generator'!C$10,"Square") -> 4x5 | J5: Bale per Acre | Q5: =SUM(R5-25) -> 100 | R5: =SUM(S5-25) -> 125 | S5: =+E6 -> 150 | T5: =SUM(S5+25) -> 175 | U5: =SUM(T5+25) -> 200 | Y5: (per bale) | AA5: (per bale)
A6: Hay | B6: Alfalfa | C6: ton | D6: =+'Input Table'!AU$18 -> 4 | E6: =IF(I$4="Round",'Input Price List'!G$1,'Input Price List'!H$1) -> 150 | F6: =D6*E6 -> 600 | G6: =SUM(F6/D6) -> 150 | H6: =SUM(F6/J$6) -> 53.25 | I6: =+'Budget Generator'!E$10 -> 710 | J6: =SUM($D$6*2000)/$I$6 -> 11.26760563 | P6: =SUM(P7-0.5) -> 3 | Q6: =SUM(Q$5*P6)-$F$20 -> 30.94017419 | R6: =SUM(R$5*$P6)-$F$20 -> 105.9401742 | S6: 180.9401742 | T6: 255.9401742 | U6: 330.9401742 | W6: Yield (ton) | X6: =X7-(X7*0.25) -> 2.25 | Y6: =($F$20/((X6*2000)/$I$6)) -> 42.45166141 | AA6: =($F$35/((X6*2000)/$I$6)) -> 99.96383933
A7: Expenses | P7: =SUM(P8-0.5) -> 3.5 | Q7: =SUM(Q$5*P7)-$F$20 -> 80.94017419 | R7: 168.4401742 | S7: 255.9401742 | T7: 343.4401742 | U7: 430.9401742 | X7: =X8-(X8*0.25) -> 3 | Y7: =($F$20/((X7*2000)/$I$6)) -> 31.83874605 | AA7: =($F$35/((X7*2000)/$I$6)) -> 74.9728795
A8: Prorated Establishment Costs | C8: acre | D8: =SUM(1/I42) -> 0.25 | E8: =+F$58 -> 463.1287732 | F8: =D8*E8 -> 115.7821933 | G8: =SUM(F8/D6) -> 28.94554832 | H8: =SUM(F8/J$6) -> 10.27566966 | O8: Yield | P8: =+D6 -> 4 | Q8: =SUM(Q$5*P8)-$F$20 -> 130.9401742 | R8: 230.9401742 | S8: 330.9401742 | T8: 430.9401742 | U8: 530.9401742 | X8: =+D6 -> 4 | Y8: =($F$20/((X8*2000)/$I$6)) -> 23.87905954 | AA8: =($F$35/((X8*2000)/$I$6)) -> 56.22965962
A9: Fertilizer | B9: N | C9: lb | D9: =+'Budget Generator'!C$16 -> 60 | E9: ='Input Price List'!B$26 -> 0.5986413043 | F9: =SUM(D9*E9) -> 35.91847826 | G9: =SUM(F9/D6) -> 8.979619565 | H9: 3.187764946 | O9: (ton) | P9: =SUM(P8+0.5) -> 4.5 | Q9: =SUM(Q$5*P9)-$F$20 -> 180.9401742 | R9: 293.4401742 | S9: 405.9401742 | T9: 518.4401742 | U9: 630.9401742 | X9: =X8+(X8*0.25) -> 5 | Y9: =($F$20/((X9*2000)/$I$6)) -> 19.10324763 | AA9: =($F$35/((X9*2000)/$I$6)) -> 44.9837277
B10: P2O5 | C10: lb | D10: =+'Budget Generator'!C$17 -> 30 | E10: ='Input Price List'!B$27 -> 0.6135751418 | F10: 18.40725425 | G10: =SUM(F10/D6) -> 4.601813563 | H10: 1.633643815 | P10: =SUM(P9+0.5) -> 5 | Q10: =SUM(Q$5*P10)-$F$20 -> 230.9401742 | R10: 355.9401742 | S10: 480.9401742 | T10: 605.9401742 | U10: 730.9401742 | X10: =X9+(X9*0.25) -> 6.25 | Y10: =($F$20/((X10*2000)/$I$6)) -> 15.28259811 | AA10: =($F$35/((X10*2000)/$I$6)) -> 35.98698216
B11: K2O | C11: lb | D11: =+'Budget Generator'!C$18 -> 30 | E11: ='Input Price List'!B$28 -> 0.4088 | F11: 12.264 | G11: =SUM(F11/D6) -> 3.066 | H11: 1.08843
B12: Boron | C12: lb | D12: 2 | E12: ='Input Price List'!B$29 -> 0.99 | F12: =SUM(D12*E12) -> 1.98 | G12: =SUM(F12/D6) -> 0.495 | H12: =SUM(G12/J6) -> 0.04393125 | P12: Return Above Fixed Expenses | X12: Return Above Fixed Expenses
B13: Custom Application | C13: acre | D13: 1 | E13: ='Input Price List'!B$30 -> 12.71 | F13: =SUM(D13*E13) -> 12.71 | G13: =SUM(F13/D6) -> 3.1775 | H13: =SUM(F13/J$6) -> 1.1280125 | S13: Price ($/ton) | AA13: Price ($/bale)
A14: Lime & Application | B14: Custom Application | C14: ton | D14: =+'Budget Generator'!C$19 -> 0.33 | E14: ='Input Price List'!B$32 -> 43.63 | F14: =SUM(D14*E14) -> 14.3979 | G14: =SUM(F14/D6) -> 3.599475 | H14: =SUM(F14/J$6) -> 1.277813625 | Q14: =SUM(R14-25) -> 100 | R14: =SUM(S14-25) -> 125 | S14: =+E6 -> 150 | T14: =SUM(S14+25) -> 175 | U14: =SUM(T14+25) -> 200 | Y14: =IF($I$4="Round",SUM(Z14-5),SUM(Z14-1)) -> 43.25 | Z14: =IF($I$4="Round",SUM(AA14-5),SUM(AA14-1)) -> 48.25 | AA14: =+H6 -> 53.25 | AB14: =IF($I$4="Round",SUM(AA14+5),SUM(AA14+1)) -> 58.25 | AC14: =IF($I$4="Round",SUM(AB14+5),SUM(AB14+1)) -> 63.25
A15: Weed Control | P15: =SUM(P16-0.5) -> 3 | Q15: =SUM(Q$5*P15)-$F$35 -> -333.5736296 | R15: =SUM(R$5*$P15)-$F$35 -> -258.5736296 | S15: -183.5736296 | T15: -108.5736296 | U15: -33.57362957 | W15: Yield (bale) | X15: =SUM(X16-2) -> 7.267605634 | Y15: =SUM((Y$14*$X15)-$F$35)/$X15 -> -43.92776686 | Z15: -38.92776686 | AA15: -33.92776686 | AB15: -28.92776686 | AC15: -23.92776686
A16: Post-Emerge | B16: Herbicide Application | C16: acre | D16: 2 | E16: =1.5*'Input Price List'!$B$37 -> 7.83 | F16: =SUM(D16*E16) -> 15.66 | G16: =SUM(F16/D6) -> 3.915 | H16: =SUM(F16/J$6) -> 1.389825 | P16: =SUM(P17-0.5) -> 3.5 | Q16: =SUM(Q$5*P16)-$F$35 -> -283.5736296 | R16: -196.0736296 | S16: -108.5736296 | T16: -21.07362957 | U16: 66.42637043 | X16: =SUM(X17-2) -> 9.267605634 | Y16: -25.11432781 | Z16: -20.11432781 | AA16: -15.11432781 | AB16: -10.11432781 | AC16: -5.114327811
B17: Custom Application | C17: acre | D17: 2 | E17: ='Input Price List'!B$40 -> 11.81 | F17: =SUM(D17*E17) -> 23.62 | G17: =SUM(F17/D6) -> 5.905 | H17: =SUM(F17/J$6) -> 2.096275 | O17: Yield | P17: =+D6 -> 4 | Q17: =SUM(Q$5*P17)-$F$35 -> -233.5736296 | R17: -133.5736296 | S17: -33.57362957 | T17: 66.42637043 | U17: 166.4263704 | X17: =+J6 -> 11.26760563 | Y17: -12.97965962 | Z17: -7.979659624 | AA17: -2.979659624 | AB17: 2.020340376 | AC17: 7.020340376
A18: Pest Control | B18: Pest Control Application | C18: acre | D18: 1 | E18: =+'Input Table'!AS$5 -> 6.51 | F18: =SUM(D18*E18) -> 6.51 | G18: =SUM(F18/D6) -> 1.6275 | H18: =SUM(F18/J$6) -> 0.5777625 | O18: (ton) | P18: =SUM(P17+0.5) -> 4.5 | Q18: =SUM(Q$5*P18)-$F$35 -> -183.5736296 | R18: -71.07362957 | S18: 41.42637043 | T18: 153.9263704 | U18: 266.4263704 | X18: =SUM(X17+2) -> 13.26760563 | Y18: -4.503426433 | Z18: 0.4965735674 | AA18: 5.496573567 | AB18: 10.49657357 | AC18: 15.49657357
B19: Custom Application | C19: acre | D19: 1 | E19: ='Input Price List'!B$40 -> 11.81 | F19: =SUM(D19*E19) -> 11.81 | G19: =SUM(F19/D6) -> 2.9525 | H19: =SUM(F19/J$6) -> 1.0481375 | P19: =SUM(P18+0.5) -> 5 | Q19: =SUM(Q$5*P19)-$F$35 -> -133.5736296 | R19: -8.57362957 | S19: 116.4263704 | T19: 241.4263704 | U19: 366.4263704 | X19: =SUM(X18+2) -> 15.26760563 | Y19: 1.752096218 | Z19: 6.752096218 | AA19: 11.75209622 | AB19: 16.75209622 | AC19: 21.75209622
A20: Total Variable Expenses | F20: =SUM(F8:F19) -> 269.0598258 | G20: =SUM(G8:G19) -> 67.26495645 | H20: =SUM(H8:H19) -> 23.74726579
A21: Return over Variable Expenses | F21: =F6-F20 -> 330.9401742 | G21: =F21/D6 -> 82.73504355 | H21: =SUM(H6-H20) -> 29.50273421 | O21: Hay
A22: Custom Machinery Cost | O22: * | P22: The budget is based on custom rates for machinery processes. Labor, operating, maintenance, and ownership costs are included in these rates.
A23: Disk Mowing | C23: cutting | D23: =+'Budget Generator'!C$11 -> 2 | E23: =+'List Page'!B$26 -> 16.5 | F23: =SUM(D23*E23) -> 33 | G23: =SUM(F23/D6) -> 8.25 | H23: =SUM(F23/J$6) -> 2.92875 | P23: The baling rate includes binding.
A24: Tedding | C24: cutting | D24: =+'Budget Generator'!C$11 -> 2 | E24: =+'List Page'!B$27 -> 6.67 | F24: =SUM(D24*E24) -> 13.34 | G24: =SUM(F24/D6) -> 3.335 | H24: =SUM(F24/J$6) -> 1.183925 | O24: * | P24: Based on Roundup Ready Alfalfa.
A25: Raking | C25: cutting | D25: =+'Budget Generator'!C$11 -> 2 | E25: =+'List Page'!B$28 -> 8.67 | F25: 17.34 | G25: =SUM(F25/D6) -> 4.335 | H25: =SUM(F25/J$6) -> 1.538925 | O25: * | P25: The budget is based on no-till establishment.
A26: Baling | C26: cutting | D26: =+'Budget Generator'!C$11 -> 2 | E26: =IF($I$4="Square",+'List Page'!$C$29,+'List Page'!B$39) -> 13.17 | F26: =SUM(E26*D27) -> 148.3943662 | G26: =SUM(F26/D6) -> 37.09859155 | H26: =SUM(F26/J$6) -> 13.17 | O26: * | P26: Lime prorated at two ton over three years.
A27: Hauling | C27: bale | D27: =+J$6 -> 11.26760563 | E27: =IF($I$4="Round",+'List Page'!$C$30,'List Page'!$D$30) -> 5.42 | F27: =(E27*D27) -> 61.07042254 | G27: =SUM(F27/D6) -> 15.26760563 | H27: =SUM(F27/J$6) -> 5.42 | O27: * | P27: For a more accurate fertilizer and lime recommendation, take a soil sample. | W27: (Instructions on how to take a soil sample.)
A28: Total Custom Machinery Cost | F28: =SUM(F23:F27) -> 273.1447887 | G28: =SUM(G23:G27) -> 68.28619718 | H28: =SUM(H23:H27) -> 24.2416 | O28: * | P28: The post-emergence weed control is based on an average of three common practices. Burndown is a common practice. For weed control and/or burndown
A29: Interest on Operating Capital | B29: 6 months | C29: acre | D29: =SUM(F20+F28) -> 542.2046145 | E29: =+'Input Price List'!B$2 -> 0.08 | F29: =SUM(D29*E29)/2 -> 21.68818458 | G29: =F29/D6 -> 5.422046145 | H29: =SUM(F29/J$6) -> 1.924826382 | P29: recommendations, contact the county Extension office. | U29: (County office contact information.)
A30: Cash Rent | C30: acre | D30: 1 | F30: =SUM(D30*E30) -> 0 | G30: =F30/D6 -> 0 | H30: =SUM(F30/J$6) -> 0 | O30: * | P30: Storage loss is based on an average of multiple studies.
A31: Storage | O31: * | P31: Establishment pro-rated expenses for hay are set for four years.
A32: Fixed Cost | B32: =+'Budget Generator'!C$13 -> Hay Barn | C32: bale | D32: =$D$6*2000/$I$6 -> 11.26760563 | E32: =IF(B$32="Hay barn",+'List Page'!C$18,IF(B$32="Stacked/tarped",+'List Page'!C$19,+'List Page'!C$20)) -> 4.432581695 | F32: =SUM(D32*E32) -> 49.94458247 | G32: =F32/D6 -> 12.48614562 | H32: =SUM(F32/J$6) -> 4.432581695
A33: Shrinkage Loss | C33: annual | D33: =IF(B$32="Hay barn",+'List Page'!B$18,IF(B$32="Stacked/tarped",+'List Page'!B$19,+'List Page'!B$20)) -> 0.035 | E33: =SUM(F20+F28+F29+F30) -> 563.8927991 | F33: =D33*E33 -> 19.73624797 | G33: =F33/D6 -> 4.934061992 | H33: =SUM(F33/J$6) -> 1.751592007
A34: Total Storage Cost | F34: =SUM(F32:F33) -> 69.68083044 | G34: =SUM(G32:G33) -> 17.42020761 | H34: =SUM(H32:H33) -> 6.184173702
A35: Total Budgeted Expenses | F35: =SUM(F20+F28+F29+F34+F30) -> 633.5736296 | G35: =SUM(G20+G28+G29+G34+G30) -> 158.3934074 | H35: 56.09786587
A36: Return to Land & Management | F36: =F6-F35 -> -33.57362957 | G36: =G6-G35 -> -8.393407393 | H36: =H6-H35 -> -2.847865874
A39: Alfalfa, Establishment | I39: Establishment Prorated Over Years
A40: Estimated Expenses per Acre
F41: Amount
A42: Item | B42: Description | C42: Unit | D42: Quantity | E42: Price | F42: ($/acre) | I42: 4
A43: Expenses
A44: Burndown | B44: Burndown | C44: acre | D44: 1 | E44: =+'Input Price List'!D$37 -> 15.66 | F44: =D44*E44 -> 15.66
A45: Seed | B45: Alfalfa | C45: lb | D45: =+'Input Table'!I$18 -> 17.5 | E45: =+'Input Price List'!B$8 -> 10.02 | F45: =E45*D45 -> 175.35
A46: Fertilizer | B46: N | C46: lb | D46: =+'Input Table'!J$18 -> 15 | E46: ='Input Price List'!B$26 -> 0.5986413043 | F46: =SUM(D46*E46) -> 8.979619565
B47: P2O5 | C47: lb | D47: =+'Input Table'!K$18 -> 60 | E47: ='Input Price List'!B$27 -> 0.6135751418 | F47: 36.81450851
B48: K2O | C48: lb | D48: =+'Input Table'!L$18 -> 190 | E48: ='Input Price List'!B$28 -> 0.4088 | F48: 77.672
B49: Boron | C49: lb | D49: 2 | E49: ='Input Price List'!B$29 -> 0.99 | F49: =SUM(D49*E49) -> 1.98
B50: Custom Application | C50: acre | D50: 1 | E50: ='Input Price List'!B$30 -> 12.71 | F50: 12.71
A51: Lime & Application | B51: Custom Application | C51: ton | D51: =+'Input Table'!M$18 -> 2 | E51: ='Input Price List'!B$32 -> 43.63 | F51: =SUM(D51*E51) -> 87.26
A52: Total Variable Expenses | F52: =SUM(F44:F51) -> 416.4261281
A53: Custom Machinery Cost
A54: Spraying | C54: acre | D54: 1 | E54: =+'List Page'!B$31 -> 11.81 | F54: =SUM(D54*E54) -> 11.81
A55: No-till Drill | C55: acre | D55: 1 | E55: =+'List Page'!B$32 -> 17.08 | F55: 17.08
A56: Total Custom Machinery Cost | F56: =SUM(F54:F55) -> 28.89
A57: Interest on Operating Capital | B57: 6 months | C57: acre | D57: =SUM(F44:F51)+F54+F55 -> 445.3161281 | E57: =+'Input Price List'!B$2 -> 0.08 | F57: =SUM(D57*E57)/2 -> 17.81264512
A58: Total Budgeted Expenses | F58: =SUM(F52+F56+F57) -> 463.1287732
A115: Alfalfa, Hay
A116: Estimated Expenses per Acre
F117: Amount | G117: Amount | H117: Amount
A118: Item | B118: Description | C118: Unit | D118: Quantity | E118: Price | F118: ($/acre) | G118: ($/ton) | H118: ($/bale)
A119: Income
A120: Hay | B120: Alfalfa | C120: ton | D120: =+'Input Table'!AU$18 -> 4 | E120: =IF(I$4="Round",'Input Price List'!G$1,'Input Price List'!H$1) -> 150 | F120: =D120*E120 -> 600 | G120: =SUM(F120/D120) -> 150 | H120: =SUM(F120/J$6) -> 53.25
A121: Expenses
A122: Prorated Establishment Costs | C122: acre | D122: =SUM(1/I42) -> 0.25 | E122: =+F$58 -> 463.1287732 | F122: =D122*E122 -> 115.7821933 | G122: =SUM(F122/D120) -> 28.94554832 | H122: =SUM(F122/J$6) -> 10.27566966
A123: Fertilizer | B123: N | C123: lb | D123: =+'Budget Generator'!C$16 -> 60 | E123: ='Input Price List'!B$26 -> 0.5986413043 | F123: =SUM(D123*E123) -> 35.91847826 | G123: =SUM(F123/D120) -> 8.979619565 | H123: 3.187764946
B124: P2O5 | C124: lb | D124: =+'Budget Generator'!C$17 -> 30 | E124: ='Input Price List'!B$27 -> 0.6135751418 | F124: 18.40725425 | G124: =SUM(F124/D120) -> 4.601813563 | H124: 1.633643815
B125: K2O | C125: lb | D125: =+'Budget Generator'!C$18 -> 30 | E125: ='Input Price List'!B$28 -> 0.4088 | F125: 12.264 | G125: =SUM(F125/D120) -> 3.066 | H125: 1.08843
B126: Boron | C126: lb | D126: 2 | E126: ='Input Price List'!B$29 -> 0.99 | F126: =SUM(D126*E126) -> 1.98 | G126: =SUM(F126/D120) -> 0.495 | H126: =SUM(G126/J6) -> 0.04393125
B127: Custom Application | C127: acre | D127: 1 | E127: ='Input Price List'!B$30 -> 12.71 | F127: =SUM(D127*E127) -> 12.71 | G127: =SUM(F127/D120) -> 3.1775 | H127: =SUM(F127/J$6) -> 1.1280125
A128: Lime & Application | B128: Custom Application | C128: ton | D128: =+'Budget Generator'!C$19 -> 0.33 | E128: ='Input Price List'!B$32 -> 43.63 | F128: =SUM(D128*E128) -> 14.3979 | G128: =SUM(F128/D120) -> 3.599475 | H128: =SUM(F128/J$6) -> 1.277813625
A129: Weed Control
A130: Post-Emerge | B130: Herbicide Application | C130: acre | D130: 2 | E130: =1.5*'Input Price List'!$B$37 -> 7.83 | F130: =SUM(D130*E130) -> 15.66 | G130: =SUM(F130/D120) -> 3.915 | H130: =SUM(F130/J$6) -> 1.389825
B131: Custom Application | C131: acre | D131: 2 | E131: ='Input Price List'!B$40 -> 11.81 | F131: =SUM(D131*E131) -> 23.62 | G131: =SUM(F131/D120) -> 5.905 | H131: =SUM(F131/J$6) -> 2.096275
A132: Pest Control | B132: Pest Control Application | C132: acre | D132: 1 | E132: =+'Input Table'!AS$5 -> 6.51 | F132: =SUM(D132*E132) -> 6.51 | G132: =SUM(F132/D120) -> 1.6275 | H132: =SUM(F132/J$6) -> 0.5777625
B133: Custom Application | C133: acre | D133: 1 | E133: ='Input Price List'!B$40 -> 11.81 | F133: =SUM(D133*E133) -> 11.81 | G133: =SUM(F133/D120) -> 2.9525 | H133: =SUM(F133/J$6) -> 1.0481375
A134: Total Variable Expenses | F134: =SUM(F122:F133) -> 269.0598258 | G134: =F134/D120 -> 67.26495645 | H134: =SUM(H122:H133) -> 23.74726579
A135: Return over Variable Expenses | F135: =F120-F134 -> 330.9401742 | G135: =F135/D120 -> 82.73504355 | H135: =SUM(H120-H134) -> 29.50273421
A136: Custom Machinery Cost
A137: Disk Mowing | C137: cutting | D137: =+'Budget Generator'!C$11 -> 2 | E137: =+'List Page'!B$26 -> 16.5 | F137: =SUM(D137*E137) -> 33 | G137: =SUM(F137/D120) -> 8.25 | H137: =SUM(F137/J$6) -> 2.92875
A138: Tedding | C138: cutting | D138: =+'Budget Generator'!C$11 -> 2 | E138: =+'List Page'!B$27 -> 6.67 | F138: =SUM(D138*E138) -> 13.34 | G138: =SUM(F138/D120) -> 3.335 | H138: =SUM(F138/J$6) -> 1.183925
A139: Raking | C139: cutting | D139: =+'Budget Generator'!C$11 -> 2 | E139: =+'List Page'!B$28 -> 8.67 | F139: 17.34 | G139: =SUM(F139/D120) -> 4.335 | H139: =SUM(F139/J$6) -> 1.538925
A140: Baling | C140: cutting | D140: =+'Budget Generator'!C$11 -> 2 | E140: =IF($I$4="Square",+'List Page'!$C$29,+'List Page'!B$39) -> 13.17 | F140: =SUM(E140*D141) -> 148.3943662 | G140: =SUM(F140/D120) -> 37.09859155 | H140: =SUM(F140/J$6) -> 13.17
A141: Hauling | C141: bale | D141: =+J$6 -> 11.26760563 | E141: =IF($I$4="Round",+'List Page'!$C$30,'List Page'!$D$30) -> 5.42 | F141: =(E141*D141) -> 61.07042254 | G141: =SUM(F141/D120) -> 15.26760563 | H141: =SUM(F141/J$6) -> 5.42
A142: Total Custom Machinery Cost | F142: =SUM(F137:F141) -> 273.1447887 | G142: =SUM(G137:G141) -> 68.28619718 | H142: =SUM(H137:H141) -> 24.2416
A143: Interest on Operating Capital | B143: 6 months | C143: acre | D143: =SUM(F134+F142) -> 542.2046145 | E143: =+'Input Price List'!B$2 -> 0.08 | F143: =SUM(D143*E143)/2 -> 21.68818458 | G143: =F143/D120 -> 5.422046145 | H143: =SUM(F143/J$6) -> 1.924826382
A144: Cash Rent | C144: acre | D144: 1 | F144: =SUM(D144*E144) -> 0 | G144: =F144/D120 -> 0 | H144: =SUM(F144/J$6) -> 0
A145: Storage
A146: Fixed Cost | B146: =+'Budget Generator'!C$13 -> Hay Barn | C146: bale | D146: =$D$6*2000/$I$6 -> 11.26760563 | E146: =IF(B$32="Hay barn",+'List Page'!C$18,IF(B$32="Stacked/tarped",+'List Page'!C$19,+'List Page'!C$20)) -> 4.432581695 | F146: =SUM(D146*E146) -> 49.94458247 | G146: =F146/D120 -> 12.48614562 | H146: =SUM(F146/J$6) -> 4.432581695
A147: Shrinkage Loss | C147: annual | D147: =IF(B$32="Hay barn",+'List Page'!B$18,IF(B$32="Stacked/tarped",+'List Page'!B$19,+'List Page'!B$20)) -> 0.035 | E147: =SUM(H134+H142+H143) -> 49.91369217 | F147: =D147*E147*D146 -> 19.68427297 | G147: =F147/D120 -> 4.921068242 | H147: =SUM(F147/J$6) -> 1.746979226
A148: Total Storage Cost | F148: =SUM(F146:F147) -> 69.62885544 | G148: =SUM(G146:G147) -> 17.40721386 | H148: =SUM(H146:H147) -> 6.179560921
A149: Total Budgeted Expenses | F149: =SUM(F134+F142+F143+F148+F144) -> 633.5216546 | G149: =SUM(G134+G142+G143+G148+G144) -> 158.3804136 | H149: =SUM(H134+H142+H143+H148+H144) -> 56.09325309
A150: Return to Land & Management | F150: =F120-F149 -> -33.52165457 | G150: =G120-G149 -> -8.380413643 | H150: =H120-H149 -> -2.843253093
A152: Alfalfa, Establishment
A153: Estimated Expenses per Acre
F154: Amount
A155: Item | B155: Description | C155: Unit | D155: Quantity | E155: Price | F155: ($/acre)
A156: Expenses
A157: Burndown | B157: Burndown | C157: acre | D157: 1 | E157: =+'Input Price List'!D$37 -> 15.66 | F157: =D157*E157 -> 15.66
A158: Seed | B158: Alfalfa | C158: lb | D158: =+'Input Table'!I$18 -> 17.5 | E158: =+'Input Price List'!B$8 -> 10.02 | F158: =E158*D158 -> 175.35
A159: Fertilizer | B159: N | C159: lb | D159: =+'Input Table'!J$18 -> 15 | E159: ='Input Price List'!B$26 -> 0.5986413043 | F159: =SUM(D159*E159) -> 8.979619565
B160: P2O5 | C160: lb | D160: =+'Input Table'!K$18 -> 60 | E160: ='Input Price List'!B$27 -> 0.6135751418 | F160: 36.81450851
B161: K2O | C161: lb | D161: =+'Input Table'!L$18 -> 190 | E161: ='Input Price List'!B$28 -> 0.4088 | F161: 77.672
B162: Boron | C162: lb | D162: 2 | E162: ='Input Price List'!B$29 -> 0.99 | F162: =SUM(D162*E162) -> 1.98
B163: Custom Application | C163: acre | D163: 1 | E163: ='Input Price List'!B$30 -> 12.71 | F163: =SUM(D163*E163) -> 12.71
A164: Lime & Application | B164: Custom Application | C164: ton | D164: =+'Input Table'!M$18 -> 2 | E164: ='Input Price List'!B$32 -> 43.63 | F164: =SUM(D164*E164) -> 87.26
A165: Total Variable Expenses | F165: =SUM(F157:F164) -> 416.4261281
A166: Custom Machinery Cost
A167: Spraying | C167: acre | D167: 1 | E167: =+'List Page'!B$31 -> 11.81 | F167: =SUM(D167*E167) -> 11.81
A168: No-till Drill | C168: acre | D168: 1 | E168: =+'List Page'!B$32 -> 17.08 | F168: 17.08
A169: Total Custom Machinery Cost | F169: =SUM(F167:F168) -> 28.89
A170: Interest on Operating Capital | B170: 6 months | C170: acre | D170: =SUM(F157:F164)+F167+F168 -> 445.3161281 | E170: =+'Input Price List'!B$2 -> 0.08 | F170: =SUM(D170*E170)/2 -> 17.81264512
A171: Total Budgeted Expenses | F171: =SUM(F165+F169+F170) -> 463.1287732

Sheet Alfalfa Baleage
A1: Alfalfa, Baleage | P1: Sensitivity Analysis
A2: Estimated Expenses per Acre | P2: Return Above Variable Expenses
F3: Amount | G3: Amount | H3: Amount | S3: Price ($/ton)
A4: Item | B4: Description | C4: Unit | D4: Quantity | E4: Price | F4: ($/acre) | G4: ($/ton) | H4: ($/bale) | I4: =+'Budget Generator'!C$9 -> Round | Q4: =SUM(R4-25) -> -50 | R4: =SUM(S4-25) -> -25 | S4: =+E6 -> 0 | T4: =SUM(S4+25) -> 25 | U4: =SUM(T4+25) -> 50
A5: Income | I5: =IF(+'Budget Generator'!C$9="Round",+'Budget Generator'!C$10,"Square") -> 4x5 | J5: Bale per Acre | P5: =SUM(P6-0.5) -> 5.4 | Q5: =IF($E$6>0,SUM(Q$4*P5)-$F$20," ") ->  | R5: =IF($E$6>0,SUM(R$4*P5)-$F$20," ") ->  | S5: =IF($E$6>0,SUM(S$4*P5)-$F$20," ") ->  | T5: =IF($E$6>0,SUM(T$4*P5)-$F$20," ") ->  | U5: =IF($E$6>0,SUM(U$4*P5)-$F$20," ") -> 
A6: Hay | B6: Alfalfa | C6: ton | D6: =+'Input Table'!AU$18*1.6 -> 6.4 | F6: =D6*E6 -> 0 | G6: =SUM(F6/D6) -> 0 | H6: =IF(F6>0,SUM(F6/J$6),"") ->  | I6: =+'Budget Generator'!E$10 -> 710 | J6: =SUM($D$6*2000)/$I$6 -> 18.02816901 | P6: =SUM(P7-0.5) -> 5.9 | Q6: =IF($E$6>0,SUM(Q$4*P6)-$F$20," ") ->  | R6: =IF($E$6>0,SUM(R$4*P6)-$F$20," ") ->  | T6: =IF($E$6>0,SUM(T$4*P6)-$F$20," ") ->  | U6: =IF($E$6>0,SUM(U$4*P6)-$F$20," ") -> 
A7: Expenses | O7: Yield | P7: =+D6 -> 6.4 | T7: =IF($E$6>0,SUM(T$4*P7)-$F$20," ") -> 
A8: Prorated Establishment Costs | C8: acre | D8: =SUM(1/I41) -> 0.25 | E8: =+F$57 -> 461.9731732 | F8: =D8*E8 -> 115.4932933 | G8: =SUM(F8/D6) -> 18.04582708 | H8: =SUM(F8/J$6) -> 6.406268613 | O8: (ton) | P8: =SUM(P7+0.5) -> 6.9
A9: Fertilizer | B9: N | C9: lb | D9: =+'Budget Generator'!C$16 -> 60 | E9: ='Input Price List'!B$26 -> 0.5986413043 | F9: =SUM(D9*E9) -> 35.91847826 | G9: =SUM(F9/D6) -> 5.612262228 | H9: 1.992353091 | P9: =SUM(P8+0.5) -> 7.4 | Q9: =IF($E$6>0,SUM(Q$4*P9)-$F$20," ") ->  | R9: =IF($E$6>0,SUM(R$4*P9)-$F$20," ") ->  | S9: =IF($E$6>0,SUM(S$4*P9)-$F$20," ") -> 
B10: P2O5 | C10: lb | D10: =+'Budget Generator'!C$17 -> 30 | E10: ='Input Price List'!B$27 -> 0.6135751418 | F10: 18.40725425 | G10: =SUM(F10/D6) -> 2.876133477 | H10: 1.021027384
B11: K2O | C11: lb | D11: =+'Budget Generator'!C$18 -> 30 | E11: ='Input Price List'!B$28 -> 0.4088 | F11: 12.264 | G11: =SUM(F11/D6) -> 1.91625 | H11: 0.68026875 | P11: Return Above Fixed Expenses
B12: Boron | C12: lb | D12: 2 | E12: ='Input Price List'!B$29 -> 0.99 | F12: =SUM(D12*E12) -> 1.98 | G12: =SUM(F12/D6) -> 0.309375 | H12: =SUM(G12/J6) -> 0.01716064453 | S12: Price ($/ton)
B13: Custom Application | C13: acre | D13: 1 | E13: ='Input Price List'!B$30 -> 12.71 | F13: =SUM(D13*E13) -> 12.71 | G13: =SUM(F13/D6) -> 1.9859375 | H13: =SUM(F13/J$6) -> 0.7050078125 | Q13: =SUM(R13-25) -> -50 | R13: =SUM(S13-25) -> -25 | S13: =+E6 -> 0 | T13: =SUM(S13+25) -> 25 | U13: =SUM(T13+25) -> 50
A14: Lime & Application | B14: Custom Application | C14: ton | D14: =+'Budget Generator'!C$19 -> 0.33 | E14: ='Input Price List'!B$32 -> 43.63 | F14: =SUM(D14*E14) -> 14.3979 | G14: =SUM(F14/D6) -> 2.249671875 | H14: =SUM(F14/J$6) -> 0.7986335156 | P14: =SUM(P15-0.5) -> 5.4 | Q14: =IF($E$6>0,SUM(Q$4*$P14)-$F$34," ") -> 
A15: Weed Control | P15: =SUM(P16-0.5) -> 5.9
A16: Post-Emerge | B16: Herbicide Application | C16: acre | D16: 2 | E16: =1.5*'Input Price List'!B$37 -> 7.83 | F16: =SUM(D16*E16) -> 15.66 | G16: =SUM(F16/D6) -> 2.446875 | H16: =SUM(F16/J$6) -> 0.868640625 | O16: Yield | P16: =+D6 -> 6.4
B17: Custom Application | C17: acre | D17: 2 | E17: ='Input Price List'!B$40 -> 11.81 | F17: =SUM(D17*E17) -> 23.62 | G17: =SUM(F17/D6) -> 3.690625 | H17: =SUM(F17/J$6) -> 1.310171875 | O17: (ton) | P17: =SUM(P16+0.5) -> 6.9
A18: Pest Control | B18: Pest Control Application | C18: acre | D18: 1 | E18: =+'Input Table'!AS$5 -> 6.51 | F18: =SUM(D18*E18) -> 6.51 | G18: =SUM(F18/D6) -> 1.0171875 | H18: =SUM(F18/J$6) -> 0.3611015625 | P18: =SUM(P17+0.5) -> 7.4
B19: Custom Application | C19: acre | D19: 1 | E19: ='Input Price List'!B$40 -> 11.81 | F19: =SUM(D19*E19) -> 11.81 | G19: =SUM(F19/D6) -> 1.8453125 | H19: =SUM(F19/J$6) -> 0.6550859375
A20: Total Variable Expenses | F20: =SUM(F8:F19) -> 268.7709258 | G20: =SUM(G8:G19) -> 41.99545716 | H20: =SUM(H8:H19) -> 14.81571981 | O20: Baleage
A21: Return over Variable Expenses | F21: =IF(F6>0,F6-F20," ") ->  | G21: =IF(G6>0,F21/D6,"") ->  | H21: =IF(E6>0,SUM(H6-H20),"") ->  | O21: * | P21: The budget is based on custom rates for machinery processes. Labor, operating, maintenance, and ownership costs are included in these rates.
A22: Custom Machinery Cost | P22: The baling rate includes binding.
A23: Disk Mowing | C23: cutting | D23: =+'Budget Generator'!C$11 -> 2 | E23: =+'List Page'!B$26 -> 16.5 | F23: =SUM(D23*E23) -> 33 | G23: =SUM(F23/D6) -> 5.15625 | H23: =SUM(F23/J$6) -> 1.83046875 | O23: * | P23: Based on Roundup Ready Alfalfa.
A24: Tedding | C24: cutting | D24: =+'Budget Generator'!C$11 -> 2 | E24: =+'List Page'!B$27 -> 6.67 | F24: =SUM(D24*E24) -> 13.34 | G24: =SUM(F24/D6) -> 2.084375 | H24: 0.739953125 | O24: * | P24: The budget is based on no-till establishment.
A25: Raking | C25: cutting | D25: =+'Budget Generator'!C$11 -> 2 | E25: =+'List Page'!B$28 -> 8.67 | F25: 17.34 | G25: =SUM(F25/D6) -> 2.709375 | H25: 0.961828125 | O25: * | P25: Lime prorated at two ton over three years.
A26: Baling | C26: cutting | D26: =+'Budget Generator'!C$11 -> 2 | E26: =+'List Page'!B$39+2 -> 15.17 | F26: 30.34 | G26: =SUM(F26/D6) -> 4.740625 | H26: 1.682921875 | O26: * | P26: Based on inline tube wrapping.
A27: Hauling | C27: bale | D27: =+J$6 -> 18.02816901 | E27: ='List Page'!$C$30 -> 5.42 | F27: =SUM(D27*E27) -> 97.71267606 | G27: =SUM(F27/D6) -> 15.26760563 | H27: 5.42 | O27: * | P27: For a more accurate fertilizer and lime recommendation, take a soil sample. | W27: (Instructions on how to take a soil sample.)
A28: Wrapping | C28: bale | D28: =+J$6 -> 18.02816901 | E28: =+'List Page'!C$35 -> 5.5 | F28: =(E28*D28) -> 99.15492958 | G28: =SUM(F28/D6) -> 15.49295775 | H28: 5.5 | O28: * | P28: The post-emergence weed control is based on an average of three common practices. Burndown is a common practice. For weed control and/or burndown
A29: Total Custom Machinery Cost | F29: =SUM(F23:F28) -> 290.8876056 | G29: =SUM(G23:G28) -> 45.45118838 | H29: =SUM(H23:H28) -> 16.13517187 | P29: recommendations, contact the county Extension office. | U29: (County office contact information.)
A30: Interest on Operating Capital | B30: 6 months | C30: acre | D30: =SUM(F20) -> 268.7709258 | E30: =+'Input Price List'!B$2 -> 0.08 | F30: =SUM(D30*E30)/2 -> 10.75083703 | G30: =F30/D6 -> 1.679818286 | H30: =SUM(F30/J$6) -> 0.5963354916 | O30: * | P30: Storage loss is based on an average of multiple studies.
A31: Cash Rent | C31: acre | D31: 1 | F31: =SUM(D31*E31) -> 0 | G31: =F31/D6 -> 0 | H31: =SUM(F31/J$6) -> 0 | O31: * | P31: Establishment pro-rated expenses for hay are set for four years.
A32: Storage
A33: Shrinkage Loss | C33: annual | D33: =+'List Page'!$B$21 -> 0.15 | E33: =SUM(F20+F29+F30+F31) -> 570.4093685 | F33: =D33*E33 -> 85.56140527 | G33: =F33/D6 -> 13.36896957 | H33: =SUM(F33/J$6) -> 4.745984199
A34: Total Budgeted Expenses | F34: =SUM(F20+F29+F30+F31) -> 570.4093685 | G34: =SUM(G20+G29+G30+G31) -> 89.12646382 | H34: =SUM(H20+H29+H30+H31) -> 31.54722718
A35: Return to Land & Management | F35: =IF(F6>0,F6-F34," ") ->  | G35: =IF(G6>0,F35/D6,"") ->  | H35: =IF(E6>0,SUM(H6-H34),"") -> 
A38: Alfalfa, Establishment | I38: Establishment Prorated Over Years
A39: Estimated Expenses per Acre
F40: Amount
A41: Item | B41: Description | C41: Unit | D41: Quantity | E41: Price | F41: ($/acre) | I41: 4
A42: Expenses
A43: Burndown | B43: Burndown | C43: acre | D43: 1 | E43: =+'Input Price List'!D$37 -> 15.66 | F43: =D43*E43 -> 15.66
A44: Seed | B44: Alfalfa | C44: lb | D44: =+'Input Table'!I$18 -> 17.5 | E44: =+'Input Price List'!B$8 -> 10.02 | F44: =E44*D44 -> 175.35
A45: Fertilizer | B45: N | C45: lb | D45: =+'Input Table'!J$18 -> 15 | E45: ='Input Price List'!B$26 -> 0.5986413043 | F45: =SUM(D45*E45) -> 8.979619565
B46: P2O5 | C46: lb | D46: =+'Input Table'!K$18 -> 60 | E46: ='Input Price List'!B$27 -> 0.6135751418 | F46: 36.81450851
B47: K2O | C47: lb | D47: =+'Input Table'!L$18 -> 190 | E47: ='Input Price List'!B$28 -> 0.4088 | F47: 77.672
B48: Boron | C48: lb | D48: 2 | E48: ='Input Price List'!B$29 -> 0.99 | F48: 1.98
B49: Custom Application | C49: acre | D49: 1 | E49: ='Input Price List'!B$30 -> 12.71 | F49: 12.71
A50: Lime & Application | B50: Custom Application | C50: ton | D50: =+'Input Table'!M$18 -> 2 | E50: ='Input Price List'!B$32 -> 43.63 | F50: =SUM(D50*E50) -> 87.26
A51: Total Variable Expenses | F51: =SUM(F43:F50) -> 416.4261281
A52: Custom Machinery Cost
A53: Spraying | C53: acre | D53: 1 | E53: =+'List Page'!B$31 -> 11.81 | F53: =SUM(D53*E53) -> 11.81
A54: No-till Drill | C54: acre | D54: 1 | E54: =+'List Page'!B$32 -> 17.08 | F54: 17.08
A55: Total Custom Machinery Cost | F55: =SUM(F53:F54) -> 28.89
A56: Interest on Operating Capital | B56: 6 months | C56: acre | D56: =SUM(F43:F50) -> 416.4261281 | E56: =+'Input Price List'!B$2 -> 0.08 | F56: =SUM(D56*E56)/2 -> 16.65704512
A57: Total Budgeted Expenses | F57: =SUM(F51+F55+F56) -> 461.9731732
A115: Alfalfa, Baleage
A116: Estimated Expenses per Acre
F117: Amount | G117: Amount | H117: Amount
A118: Item | B118: Description | C118: Unit | D118: Quantity | E118: Price | F118: ($/acre) | G118: ($/ton) | H118: ($/bale)
A119: Income
A120: Hay | B120: Alfalfa | C120: ton | D120: =+'Input Table'!AU$18*1.6 -> 6.4 | F120: =D120*E120 -> 0 | G120: =SUM(F120/D120) -> 0 | H120: =IF(F120>0,SUM(F120/J$6),"") -> 
A121: Expenses
A122: Prorated Establishment Costs | C122: acre | D122: =SUM(1/I41) -> 0.25 | E122: =+F$57 -> 461.9731732 | F122: =D122*E122 -> 115.4932933 | G122: =SUM(F122/D120) -> 18.04582708 | H122: =SUM(F122/J$6) -> 6.406268613
A123: Fertilizer | B123: N | C123: lb | D123: =+'Budget Generator'!C$16 -> 60 | E123: ='Input Price List'!B$26 -> 0.5986413043 | F123: =SUM(D123*E123) -> 35.91847826 | G123: =SUM(F123/D120) -> 5.612262228 | H123: 1.992353091
B124: P2O5 | C124: lb | D124: =+'Budget Generator'!C$17 -> 30 | E124: ='Input Price List'!B$27 -> 0.6135751418 | F124: 18.40725425 | G124: =SUM(F124/D120) -> 2.876133477 | H124: 1.021027384
B125: K2O | C125: lb | D125: =+'Budget Generator'!C$18 -> 30 | E125: ='Input Price List'!B$28 -> 0.4088 | F125: 12.264 | G125: =SUM(F125/D120) -> 1.91625 | H125: 0.68026875
B126: Boron | C126: lb | D126: 2 | E126: ='Input Price List'!B$29 -> 0.99 | F126: =SUM(D126*E126) -> 1.98 | G126: =SUM(F126/D120) -> 0.309375 | H126: =SUM(G126/J6) -> 0.01716064453
B127: Custom Application | C127: acre | D127: 1 | E127: ='Input Price List'!B$30 -> 12.71 | F127: =SUM(D127*E127) -> 12.71 | G127: =SUM(F127/D120) -> 1.9859375 | H127: =SUM(F127/J$6) -> 0.7050078125
A128: Lime & Application | B128: Custom Application | C128: ton | D128: =+'Budget Generator'!C$19 -> 0.33 | E128: ='Input Price List'!B$32 -> 43.63 | F128: =SUM(D128*E128) -> 14.3979 | G128: =SUM(F128/D120) -> 2.249671875 | H128: =SUM(F128/J$6) -> 0.7986335156
A129: Weed Control
A130: Post-Emerge | B130: Herbicide Application | C130: acre | D130: 2 | E130: =1.5*'Input Price List'!B$37 -> 7.83 | F130: =SUM(D130*E130) -> 15.66 | G130: =SUM(F130/D120) -> 2.446875 | H130: =SUM(F130/J$6) -> 0.868640625
B131: Custom Application | C131: acre | D131: 2 | E131: ='Input Price List'!B$40 -> 11.81 | F131: =SUM(D131*E131) -> 23.62 | G131: =SUM(F131/D120) -> 3.690625 | H131: =SUM(F131/J$6) -> 1.310171875
A132: Pest Control | B132: Pest Control Application | C132: acre | D132: 1 | E132: =+'Input Table'!AS$5 -> 6.51 | F132: =SUM(D132*E132) -> 6.51 | G132: =SUM(F132/D120) -> 1.0171875 | H132: =SUM(F132/J$6) -> 0.3611015625
B133: Custom Application | C133: acre | D133: 1 | E133: ='Input Price List'!B$40 -> 11.81 | F133: =SUM(D133*E133) -> 11.81 | G133: =SUM(F133/D120) -> 1.8453125 | H133: =SUM(F133/J$6) -> 0.6550859375
A134: Total Variable Expenses | F134: =SUM(F122:F133) -> 268.7709258 | G134: =F134/D120 -> 41.99545716 | H134: =SUM(H122:H133) -> 14.81571981
A135: Return over Variable Expenses | F135: =IF(F120>0,F120-F134," ") ->  | G135: =IF(G120>0,F135/D120,"") ->  | H135: =IF(E120>0,SUM(H120-H134),"") -> 
A136: Custom Machinery Cost
A137: Disk Mowing | C137: cutting | D137: =+'Budget Generator'!C$11 -> 2 | E137: =+'List Page'!B$26 -> 16.5 | F137: =SUM(D137*E137) -> 33 | G137: =SUM(F137/D120) -> 5.15625 | H137: =SUM(F137/J$6) -> 1.83046875
A138: Tedding | C138: cutting | D138: =+'Budget Generator'!C$11 -> 2 | E138: =+'List Page'!B$27 -> 6.67 | F138: =SUM(D138*E138) -> 13.34 | G138: =SUM(F138/D120) -> 2.084375 | H138: 0.739953125
A139: Raking | C139: cutting | D139: =+'Budget Generator'!C$11 -> 2 | E139: =+'List Page'!B$28 -> 8.67 | F139: 17.34 | G139: =SUM(F139/D120) -> 2.709375 | H139: 0.961828125
A140: Baling | C140: cutting | D140: =+'Budget Generator'!C$11 -> 2 | E140: =+'List Page'!B$39+2 -> 15.17 | F140: 30.34 | G140: =SUM(F140/D120) -> 4.740625 | H140: 1.682921875
A141: Hauling | C141: bale | D141: =+J$6 -> 18.02816901 | E141: ='List Page'!$C$30 -> 5.42 | F141: 97.71267606 | G141: =SUM(F141/D120) -> 15.26760563 | H141: 5.42
A142: Wrapping | C142: bale | D142: =+J$6 -> 18.02816901 | E142: =+'List Page'!C$35 -> 5.5 | F142: =(E142*D142) -> 99.15492958 | G142: =SUM(F142/D120) -> 15.49295775 | H142: 5.5
A143: Total Custom Machinery Cost | F143: =SUM(F137:F142) -> 290.8876056 | G143: =SUM(G137:G142) -> 45.45118838 | H143: =SUM(H137:H142) -> 16.13517187
A144: Interest on Operating Capital | B144: 6 months | C144: acre | D144: =SUM(F134) -> 268.7709258 | E144: =+'Input Price List'!B$2 -> 0.08 | F144: =SUM(D144*E144)/2 -> 10.75083703 | G144: =F144/D120 -> 1.679818286 | H144: =SUM(F144/J$6) -> 0.5963354916
A145: Cash Rent | C145: acre | D145: 1 | F145: =SUM(D145*E145) -> 0 | G145: =F145/D120 -> 0 | H145: =SUM(F145/J$6) -> 0
A146: Storage
A147: Shrinkage Loss | C147: annual | D147: =+'List Page'!$B$21 -> 0.15 | E147: =SUM(H134+H143+H144) -> 31.54722718 | F147: =D147*E147 -> 4.732084077 | G147: =F147/D120 -> 0.739388137 | H147: =SUM(F147/J$6) -> 0.2624827886
A148: Total Budgeted Expenses | F148: =SUM(F134+F143+F144+F145) -> 570.4093685 | G148: =SUM(G134+G143+G144+G145) -> 89.12646382 | H148: =SUM(H134+H143+H144+H145) -> 31.54722718
A149: Return to Land & Management | F149: =IF(F120>0,F120-F148," ") ->  | G149: =IF(G120>0,F149/D120,"") ->  | H149: =IF(E120>0,SUM(H120-H148),"") -> 
A152: Alfalfa, Establishment
A153: Estimated Expenses per Acre
F154: Amount
A155: Item | B155: Description | C155: Unit | D155: Quantity | E155: Price | F155: ($/acre)
A156: Expenses
A157: Burndown | B157: Burndown | C157: acre | D157: 1 | E157: =+'Input Price List'!D$37 -> 15.66 | F157: =D157*E157 -> 15.66
A158: Seed | B158: Alfalfa | C158: lb | D158: =+'Input Table'!I$18 -> 17.5 | E158: =+'Input Price List'!B$8 -> 10.02 | F158: =E158*D158 -> 175.35
A159: Fertilizer | B159: N | C159: lb | D159: =+'Input Table'!J$18 -> 15 | E159: ='Input Price List'!B$26 -> 0.5986413043 | F159: =SUM(D159*E159) -> 8.979619565
B160: P2O5 | C160: lb | D160: =+'Input Table'!K$18 -> 60 | E160: ='Input Price List'!B$27 -> 0.6135751418 | F160: 36.81450851
B161: K2O | C161: lb | D161: =+'Input Table'!L$18 -> 190 | E161: ='Input Price List'!B$28 -> 0.4088 | F161: 77.672
B162: Boron | C162: lb | D162: 2 | E162: ='Input Price List'!B$29 -> 0.99 | F162: 1.98
B163: Custom Application | C163: acre | D163: 1 | E163: ='Input Price List'!B$30 -> 12.71 | F163: 12.71
A164: Lime & Application | B164: Custom Application | C164: ton | D164: =+'Input Table'!M$18 -> 2 | E164: ='Input Price List'!B$32 -> 43.63 | F164: =SUM(D164*E164) -> 87.26
A165: Total Variable Expenses | F165: =SUM(F157:F164) -> 416.4261281
A166: Custom Machinery Cost
A167: Spraying | C167: acre | D167: 1 | E167: =+'List Page'!B$31 -> 11.81 | F167: =SUM(D167*E167) -> 11.81
A168: No-till Drill | C168: acre | D168: 1 | E168: =+'List Page'!B$32 -> 17.08 | F168: 17.08
A169: Total Custom Machinery Cost | F169: =SUM(F167:F168) -> 28.89
A170: Interest on Operating Capital | B170: 6 months | C170: acre | D170: =SUM(F157:F164) -> 416.4261281 | E170: =+'Input Price List'!B$2 -> 0.08 | F170: =SUM(D170*E170)/2 -> 16.65704512
A171: Total Budgeted Expenses | F171: =SUM(F165+F169) -> 445.3161281

Sheet Alfalfa Pasture
A1: Alfalfa, Pasture | K1: Pasture
A2: Estimated Expenses per Acre | K2: * | L2: The budget is based on custom rates for machinery processes. Labor, operating, maintenance, and ownership costs are included in these rates.
F3: Amount | K3: * | L3: The budget is based on no-till establishment.
A4: Item | B4: Description | C4: Unit | D4: Quantity | E4: Price | F4: ($/acre) | K4: * | L4: Based on Roundup Ready Alfalfa.
A5: Expenses | K5: * | L5: For a more accurate fertilizer and lime recommendation, take a soil sample. | S5: (Instructions on how to take a soil sample.)
A6: Prorated Establishment Costs | B6: Alfalfa | C6: acre | D6: =SUM(1/H$30) -> 0.25 | E6: =+F$46 -> 461.9731732 | F6: =D6*E6 -> 115.4932933 | K6: * | L6: The post-emergence weed control is based on an average of three common practices. Burndown is a common practice. For weed control and/or burndown
A7: Fertilizer | B7: N | C7: lb | D7: =+'Budget Generator'!$C$16 -> 60 | E7: ='Input Price List'!B$26 -> 0.5986413043 | F7: =SUM(D7*E7) -> 35.91847826 | L7: recommendations, contact the county Extension office. | Q7: (County office contact information.)
B8: P2O5 | C8: lb | D8: =+'Budget Generator'!$C$17 -> 30 | E8: ='Input Price List'!B$27 -> 0.6135751418 | F8: 18.40725425 | K8: * | L8: Establishment pro-rated expenses for pasture are set for four years.
B9: K2O | C9: lb | D9: =+'Budget Generator'!$C$18 -> 30 | E9: ='Input Price List'!B$28 -> 0.4088 | F9: 12.264
B10: Boron | C10: lb | D10: 2 | E10: ='Input Price List'!B$29 -> 0.99 | F10: 1.98
B11: Custom Application | C11: acre | D11: 1 | E11: ='Input Price List'!B$30 -> 12.71 | F11: =SUM(D11*E11) -> 12.71
A12: Lime & Application | B12: Custom Application | C12: ton | D12: =+'Budget Generator'!$C$19 -> 0.33 | E12: ='Input Price List'!B$32 -> 43.63 | F12: =SUM(D12*E12) -> 14.3979
A13: Weed Control
A14: Post-Emerge | B14: Herbicide Application | C14: acre | D14: 2 | E14: =1.5*'Input Price List'!B$37 -> 7.83 | F14: =SUM(D14*E14) -> 15.66
B15: Custom Application | C15: acre | D15: 2 | E15: ='Input Price List'!B$40 -> 11.81 | F15: =SUM(D15*E15) -> 23.62
A16: Pest Control | B16: Pest Control Application | C16: acre | D16: 1 | E16: =+'Input Table'!AS$5 -> 6.51 | F16: =SUM(D16*E16) -> 6.51
B17: Custom Application | C17: acre | D17: 1 | E17: ='Input Price List'!B$40 -> 11.81 | F17: =SUM(D17*E17) -> 11.81
A18: Total Variable Expenses | F18: =SUM(F6:F17) -> 268.7709258
A19: Custom Machinery Cost
A20: Bush Hogging | C20: acre | D20: 1 | E20: =+'List Page'!B$33 -> 19.5 | F20: =SUM(D20*E20) -> 19.5
A21: Total Custom Machinery Cost | F21: =SUM(F20:F20) -> 19.5
A22: Interest on Operating Capital | B22: 6 months | C22: acre | D22: =SUM(F18) -> 268.7709258 | E22: =+'Input Price List'!B$2 -> 0.08 | F22: =SUM(D22*E22)/2 -> 10.75083703
A23: Cash Rent | C23: acre | D23: 1 | F23: =SUM(D23*E23) -> 0
A24: Total Budgeted Expenses | F24: =SUM(F18+F21+F22+F23) -> 299.0217628
A27: Alfalfa, Establishment | H27: Establishment Prorated Over Years
A28: Estimated Expenses per Acre
F29: Amount
A30: Item | B30: Description | C30: Unit | D30: Quantity | E30: Price | F30: ($/acre) | H30: 4
A31: Expenses
A32: Burndown | B32: Burndown | C32: acre | D32: 1 | E32: =+'Input Price List'!D$37 -> 15.66 | F32: =D32*E32 -> 15.66
A33: Seed | B33: Alfalfa | C33: lb | D33: =+'Input Table'!I$18 -> 17.5 | E33: =+'Input Price List'!B$8 -> 10.02 | F33: =E33*D33 -> 175.35
A34: Fertilizer | B34: N | C34: lb | D34: =+'Input Table'!J$18 -> 15 | E34: ='Input Price List'!B$26 -> 0.5986413043 | F34: =SUM(D34*E34) -> 8.979619565
B35: P2O5 | C35: lb | D35: =+'Input Table'!K$18 -> 60 | E35: ='Input Price List'!B$27 -> 0.6135751418 | F35: 36.81450851
B36: K2O | C36: lb | D36: =+'Input Table'!L$18 -> 190 | E36: ='Input Price List'!B$28 -> 0.4088 | F36: 77.672
B37: Boron | C37: lb | D37: 2 | E37: ='Input Price List'!B$29 -> 0.99 | F37: 1.98
B38: Custom Application | C38: acre | D38: 1 | E38: ='Input Price List'!B$30 -> 12.71 | F38: 12.71
A39: Lime & Application | B39: Custom Application | C39: ton | D39: =+'Input Table'!M$18 -> 2 | E39: ='Input Price List'!B$32 -> 43.63 | F39: =SUM(D39*E39) -> 87.26
A40: Total Variable Expenses | F40: =SUM(F32:F39) -> 416.4261281
A41: Custom Machinery Cost
A42: Spraying | C42: acre | D42: 1 | E42: =+'List Page'!B$31 -> 11.81 | F42: =SUM(D42*E42) -> 11.81
A43: No-till Drill | C43: acre | D43: 1 | E43: =+'List Page'!B$32 -> 17.08 | F43: 17.08
A44: Total Custom Machinery Cost | F44: =SUM(F42:F43) -> 28.89
A45: Interest on Operating Capital | B45: 6 months | C45: acre | D45: =SUM(F32:F39) -> 416.4261281 | E45: =+'Input Price List'!B$2 -> 0.08 | F45: =SUM(D45*E45)/2 -> 16.65704512
A46: Total Budgeted Expenses | F46: =SUM(F40+F44+F45) -> 461.9731732
A115: Alfalfa, Pasture
A116: Estimated Expenses per Acre
F117: Amount
A118: Item | B118: Description | C118: Unit | D118: Quantity | E118: Price | F118: ($/acre)
A119: Expenses
A120: Prorated Establishment Costs | B120: Alfalfa | C120: acre | D120: =SUM(1/H$30) -> 0.25 | E120: =+F$46 -> 461.9731732 | F120: =D120*E120 -> 115.4932933
A121: Fertilizer | B121: N | C121: lb | D121: =+'Budget Generator'!$C$16 -> 60 | E121: ='Input Price List'!B$26 -> 0.5986413043 | F121: =SUM(D121*E121) -> 35.91847826
B122: P2O5 | C122: lb | D122: =+'Budget Generator'!$C$17 -> 30 | E122: ='Input Price List'!B$27 -> 0.6135751418 | F122: 18.40725425
B123: K2O | C123: lb | D123: =+'Budget Generator'!$C$18 -> 30 | E123: ='Input Price List'!B$28 -> 0.4088 | F123: 12.264
B124: Boron | C124: lb | D124: 2 | E124: ='Input Price List'!B$29 -> 0.99 | F124: 1.98
B125: Custom Application | C125: acre | D125: 1 | E125: ='Input Price List'!B$30 -> 12.71 | F125: =SUM(D125*E125) -> 12.71
A126: Lime & Application | B126: Custom Application | C126: ton | D126: =+'Budget Generator'!$C$19 -> 0.33 | E126: ='Input Price List'!B$32 -> 43.63 | F126: =SUM(D126*E126) -> 14.3979
A127: Weed Control
A128: Post-Emerge | B128: Herbicide Application | C128: acre | D128: 2 | E128: =1.5*'Input Price List'!B$37 -> 7.83 | F128: =SUM(D128*E128) -> 15.66
B129: Custom Application | C129: acre | D129: 2 | E129: ='Input Price List'!B$40 -> 11.81 | F129: =SUM(D129*E129) -> 23.62
A130: Pest Control | B130: Pest Control Application | C130: acre | D130: 1 | E130: =+'Input Table'!AS$5 -> 6.51 | F130: =SUM(D130*E130) -> 6.51
B131: Custom Application | C131: acre | D131: 1 | E131: ='Input Price List'!B$40 -> 11.81 | F131: =SUM(D131*E131) -> 11.81
A132: Total Variable Expenses | F132: =SUM(F120:F131) -> 268.7709258
A133: Custom Machinery Cost
A134: Bush Hogging | C134: acre | D134: 1 | E134: =+'List Page'!B$33 -> 19.5 | F134: =SUM(D134*E134) -> 19.5
A135: Total Custom Machinery Cost | F135: =SUM(F134:F134) -> 19.5
A136: Interest on Operating Capital | B136: 6 months | C136: acre | D136: =SUM(F132) -> 268.7709258 | E136: =+'Input Price List'!B$2 -> 0.08 | F136: =SUM(D136*E136)/2 -> 10.75083703
A137: Cash Rent | C137: acre | D137: 1 | F137: =SUM(D137*E137) -> 0
A138: Total Budgeted Expenses | F138: =SUM(F132+F135+F136+F137) -> 299.0217628
A139: Alfalfa, Establishment
A140: Estimated Expenses per Acre
F141: Amount
A142: Item | B142: Description | C142: Unit | D142: Quantity | E142: Price | F142: ($/acre)
A143: Expenses
A144: Burndown | B144: Burndown | C144: acre | D144: 1 | E144: =+'Input Price List'!D$37 -> 15.66 | F144: =D144*E144 -> 15.66
A145: Seed | B145: Alfalfa | C145: lb | D145: =+'Input Table'!I$18 -> 17.5 | E145: =+'Input Price List'!B$8 -> 10.02 | F145: =E145*D145 -> 175.35
A146: Fertilizer | B146: N | C146: lb | D146: =+'Input Table'!J$18 -> 15 | E146: ='Input Price List'!B$26 -> 0.5986413043 | F146: =SUM(D146*E146) -> 8.979619565
B147: P2O5 | C147: lb | D147: =+'Input Table'!K$18 -> 60 | E147: ='Input Price List'!B$27 -> 0.6135751418 | F147: 36.81450851
B148: K2O | C148: lb | D148: =+'Input Table'!L$18 -> 190 | E148: ='Input Price List'!B$28 -> 0.4088 | F148: 77.672
B149: Boron | C149: lb | D149: 2 | E149: ='Input Price List'!B$29 -> 0.99 | F149: 1.98
B150: Custom Application | C150: acre | D150: 1 | E150: ='Input Price List'!B$30 -> 12.71 | F150: 12.71
A151: Lime & Application | B151: Custom Application | C151: ton | D151: =+'Input Table'!M$18 -> 2 | E151: ='Input Price List'!B$32 -> 43.63 | F151: =SUM(D151*E151) -> 87.26
A152: Total Variable Expenses | F152: =SUM(F144:F151) -> 416.4261281
A153: Custom Machinery Cost
A154: Spraying | C154: acre | D154: 1 | E154: =+'List Page'!B$31 -> 11.81 | F154: =SUM(D154*E154) -> 11.81
A155: No-till Drill | C155: acre | D155: 1 | E155: =+'List Page'!B$32 -> 17.08 | F155: 17.08
A156: Total Custom Machinery Cost | F156: =SUM(F154:F155) -> 28.89
A157: Interest on Operating Capital | B157: 6 months | C157: acre | D157: =SUM(F144:F151) -> 416.4261281 | E157: =+'Input Price List'!B$2 -> 0.08 | F157: =SUM(D157*E157)/2 -> 16.65704512
A158: Total Budgeted Expenses | F158: =SUM(F152+F156+F157) -> 461.9731732

Sheet Bermudagrass Hay
A1: Bermudagrass, Hay | P1: Bermudagrass, Hay
A2: Estimated Expenses per Acre | P2: Sensitivity Analysis | X2: Sensitivity Analysis
F3: Amount | G3: Amount | H3: Amount | P3: Return Above Variable Expenses
A4: Item | B4: Description | C4: Unit | D4: Quantity | E4: Price | F4: ($/acre) | G4: ($/ton) | H4: ($/bale) | I4: =IF(+'Budget Generator'!C$3="Hay",+'Budget Generator'!C$9," ") -> Round | S4: Price ($/ton) | Y4: Variable Costs | AA4: Total Costs
A5: Income | I5: =IF(+'Budget Generator'!C$9="Round",+'Budget Generator'!C$10,"Square") -> 4x5 | J5: Bale per Acre | Q5: =SUM(R5-25) -> 100 | R5: =SUM(S5-25) -> 125 | S5: =+E6 -> 150 | T5: =SUM(S5+25) -> 175 | U5: =SUM(T5+25) -> 200 | Y5: (per bale) | AA5: (per bale)
A6: Hay | B6: Bermudagrass | C6: ton | D6: =+'Input Table'!AU$19 -> 6 | E6: =IF(I$4="Round",'Input Price List'!G$1,'Input Price List'!H$1) -> 150 | F6: =D6*E6 -> 900 | G6: =SUM(F6/D6) -> 150 | H6: =SUM(F6/J$6) -> 53.25 | I6: =+'Budget Generator'!E$10 -> 710 | J6: =SUM($D$6*2000)/$I$6 -> 16.90140845 | P6: =SUM(P7-0.5) -> 5 | Q6: =SUM(Q$5*P6)-$F$19 -> 295.4111572 | R6: =SUM(R$5*$P6)-$F$19 -> 420.4111572 | S6: 545.4111572 | T6: 670.4111572 | U6: 795.4111572 | W6: Yield (ton) | X6: =X7-(X7*0.25) -> 3.375 | Y6: =($F$19/((X6*2000)/$I$6)) -> 21.51971532 | AA6: =($F$34/((X6*2000)/$I$6)) -> 72.18219614
A7: Expenses | P7: =SUM(P8-0.5) -> 5.5 | Q7: =SUM(Q$5*P7)-$F$19 -> 345.4111572 | R7: 482.9111572 | S7: 620.4111572 | T7: 757.9111572 | U7: 895.4111572 | X7: =X8-(X8*0.25) -> 4.5 | Y7: =($F$19/((X7*2000)/$I$6)) -> 16.13978649 | AA7: =($F$34/((X7*2000)/$I$6)) -> 54.1366471
A8: Prorated Establishment Costs | C8: acre | D8: =SUM(1/I41) -> 0.1 | E8: =+F$58 -> 303.3621033 | F8: =D8*E8 -> 30.33621033 | G8: =SUM(F8/D6) -> 5.056035055 | H8: =SUM(F8/J$6) -> 1.794892444 | O8: Yield | P8: =+D6 -> 6 | Q8: =SUM(Q$5*P8)-$F$19 -> 395.4111572 | R8: 545.4111572 | S8: 695.4111572 | T8: 845.4111572 | U8: 995.4111572 | X8: =+D6 -> 6 | Y8: =($F$19/((X8*2000)/$I$6)) -> 12.10483987 | AA8: =($F$34/((X8*2000)/$I$6)) -> 40.60248533
A9: Fertilizer | B9: N | C9: lb | D9: =+'Budget Generator'!C$16 -> 60 | E9: ='Input Price List'!B$26 -> 0.5986413043 | F9: =SUM(D9*E9) -> 35.91847826 | G9: =SUM(F9/D6) -> 5.986413043 | H9: 2.12517663 | O9: (ton) | P9: =SUM(P8+0.5) -> 6.5 | Q9: =SUM(Q$5*P9)-$F$19 -> 445.4111572 | R9: 607.9111572 | S9: 770.4111572 | T9: 932.9111572 | U9: 1095.411157 | X9: =X8+(X8*0.25) -> 7.5 | Y9: =($F$19/((X9*2000)/$I$6)) -> 9.683871895 | AA9: =($F$34/((X9*2000)/$I$6)) -> 32.48198826
B10: P2O5 | C10: lb | D10: =+'Budget Generator'!C$17 -> 30 | E10: ='Input Price List'!B$27 -> 0.6135751418 | F10: 18.40725425 | G10: =SUM(F10/D6) -> 3.067875709 | H10: 1.089095877 | P10: =SUM(P9+0.5) -> 7 | Q10: =SUM(Q$5*P10)-$F$19 -> 495.4111572 | R10: 670.4111572 | S10: 845.4111572 | T10: 1020.411157 | U10: 1195.411157 | X10: =X9+(X9*0.25) -> 9.375 | Y10: =($F$19/((X10*2000)/$I$6)) -> 7.747097516 | AA10: =($F$34/((X10*2000)/$I$6)) -> 25.98559061
B11: K2O | C11: lb | D11: =+'Budget Generator'!C$18 -> 30 | E11: ='Input Price List'!B$28 -> 0.4088 | F11: 12.264 | G11: =SUM(F11/D6) -> 2.044 | H11: 0.72562
B12: Custom Application | C12: acre | D12: 4 | E12: ='Input Price List'!B$30 -> 12.71 | F12: =SUM(D12*E12) -> 50.84 | G12: =SUM(F12/D6) -> 8.473333333 | H12: =SUM(F12/J$6) -> 3.008033333 | P12: Return Above Fixed Expenses | X12: Return Above Fixed Expenses
A13: Lime & Application | B13: Custom Application | C13: ton | D13: =+'Budget Generator'!C$19 -> 0.33 | E13: ='Input Price List'!B$32 -> 43.63 | F13: =SUM(D13*E13) -> 14.3979 | G13: =SUM(F13/D6) -> 2.39965 | H13: =SUM(F13/J$6) -> 0.85187575 | S13: Price ($/ton) | AA13: Price ($/bale)
A14: Weed Control | Q14: =SUM(R14-25) -> 100 | R14: =SUM(S14-25) -> 125 | S14: =+E6 -> 150 | T14: =SUM(S14+25) -> 175 | U14: =SUM(T14+25) -> 200 | Y14: =IF($I$4="Round",SUM(Z14-5),SUM(Z14-1)) -> 43.25 | Z14: =IF($I$4="Round",SUM(AA14-5),SUM(AA14-1)) -> 48.25 | AA14: =+H6 -> 53.25 | AB14: =IF($I$4="Round",SUM(AA14+5),SUM(AA14+1)) -> 58.25 | AC14: =IF($I$4="Round",SUM(AB14+5),SUM(AB14+1)) -> 63.25
A15: Post-Emerge | B15: Herbicide Application | C15: acre | D15: 1 | E15: =+'Input Table'!AF$5 -> 12.295 | F15: =SUM(D15*E15) -> 12.295 | G15: =SUM(F15/D6) -> 2.049166667 | H15: =SUM(F15/J$6) -> 0.7274541667 | P15: =SUM(P16-0.5) -> 5 | Q15: =SUM(Q$5*P15)-$F$34 -> -186.2391887 | R15: =SUM(R$5*$P15)-$F$34 -> -61.23918865 | S15: 63.76081135 | T15: 188.7608113 | U15: 313.7608113 | W15: Yield (bale) | X15: =SUM(X16-2) -> 12.90140845 | Y15: =SUM((Y$14*$X15)-$F$34)/$X15 -> -9.941028815 | Z15: -4.941028815 | AA15: 0.05897118514 | AB15: 5.058971185 | AC15: 10.05897119
B16: Custom Application | C16: acre | D16: 1 | E16: ='Input Price List'!B$40 -> 11.81 | F16: =SUM(D16*E16) -> 11.81 | G16: =SUM(F16/D6) -> 1.968333333 | H16: =SUM(F16/J$6) -> 0.6987583333 | P16: =SUM(P17-0.5) -> 5.5 | Q16: =SUM(Q$5*P16)-$F$34 -> -136.2391887 | R16: 1.260811346 | S16: 138.7608113 | T16: 276.2608113 | U16: 413.7608113 | X16: =SUM(X17-2) -> 14.90140845 | Y16: -2.801968237 | Z16: 2.198031763 | AA16: 7.198031763 | AB16: 12.19803176 | AC16: 17.19803176
A17: Pest Control | B17: Pest Control Application | C17: acre | D17: 1 | E17: =+'Input Table'!AS$5 -> 6.51 | F17: =SUM(D17*E17) -> 6.51 | G17: =SUM(F17/D6) -> 1.085 | H17: =SUM(F17/J$6) -> 0.385175 | O17: Yield | P17: =+D6 -> 6 | Q17: =SUM(Q$5*P17)-$F$34 -> -86.23918865 | R17: 63.76081135 | S17: 213.7608113 | T17: 363.7608113 | U17: 513.7608113 | X17: =+J6 -> 16.90140845 | Y17: 2.647514671 | Z17: 7.647514671 | AA17: 12.64751467 | AB17: 17.64751467 | AC17: 22.64751467
B18: Custom Application | C18: acre | D18: 1 | E18: ='Input Price List'!B$40 -> 11.81 | F18: =SUM(D18*E18) -> 11.81 | G18: =SUM(F18/D6) -> 1.968333333 | H18: =SUM(F18/J$6) -> 0.6987583333 | O18: (ton) | P18: =SUM(P17+0.5) -> 6.5 | Q18: =SUM(Q$5*P18)-$F$34 -> -36.23918865 | R18: 126.2608113 | S18: 288.7608113 | T18: 451.2608113 | U18: 613.7608113 | X18: =SUM(X17+2) -> 18.90140845 | Y18: 6.943753804 | Z18: 11.9437538 | AA18: 16.9437538 | AB18: 21.9437538 | AC18: 26.9437538
A19: Total Variable Expenses | F19: =SUM(F8:F18) -> 204.5888428 | G19: =SUM(G8:G18) -> 34.09814047 | H19: =SUM(H8:H18) -> 12.10483987 | P19: =SUM(P18+0.5) -> 7 | Q19: =SUM(Q$5*P19)-$F$34 -> 13.76081135 | R19: 188.7608113 | S19: 363.7608113 | T19: 538.7608113 | U19: 713.7608113 | X19: =SUM(X18+2) -> 20.90140845 | Y19: 10.41780162 | Z19: 15.41780162 | AA19: 20.41780162 | AB19: 25.41780162 | AC19: 30.41780162
A20: Return over Variable Expenses | F20: =F6-F19 -> 695.4111572 | G20: =F20/D6 -> 115.9018595 | H20: =SUM(H6-H19) -> 41.14516013
A21: Custom Machinery Cost | O21: Hay
A22: Disk Mowing | C22: cutting | D22: =+'Budget Generator'!C$11 -> 2 | E22: =+'List Page'!B$26 -> 16.5 | F22: =SUM(D22*E22) -> 33 | G22: =SUM(F22/D6) -> 5.5 | H22: =SUM(F22/J$6) -> 1.9525 | O22: * | P22: The budget is based on custom rates for machinery processes. Labor, operating, maintenance, and ownership costs are included in these rates.
A23: Tedding | C23: cutting | D23: =+'Budget Generator'!C$11 -> 2 | E23: =+'List Page'!B$27 -> 6.67 | F23: =SUM(D23*E23) -> 13.34 | G23: =SUM(F23/D6) -> 2.223333333 | H23: =SUM(F23/J$6) -> 0.7892833333 | P23: The baling rate includes binding.
A24: Raking | C24: cutting | D24: =+'Budget Generator'!C$11 -> 2 | E24: =+'List Page'!B$28 -> 8.67 | F24: 17.34 | G24: =SUM(F24/D6) -> 2.89 | H24: =SUM(F24/J$6) -> 1.02595 | O24: * | P24: The budget is based on no-till establishment.
A25: Baling | C25: cutting | D25: =+'Budget Generator'!C$11 -> 2 | E25: =IF($I$4="Square",+'List Page'!$C$29,+'List Page'!B$39) -> 13.17 | F25: =SUM(D26*E25) -> 222.5915493 | G25: =SUM(F25/D6) -> 37.09859155 | H25: =SUM(F25/J$6) -> 13.17 | O25: * | P25: Nitrogen is applied in split applications.
A26: Hauling | C26: bale | D26: =+J$6 -> 16.90140845 | E26: =IF($I$4="Round",+'List Page'!$C$30,'List Page'!$D$30) -> 5.42 | F26: =(E26*D26) -> 91.6056338 | G26: =SUM(F26/D6) -> 15.26760563 | H26: =SUM(F26/J$6) -> 5.42 | O26: * | P26: Lime prorated at one ton over three years.
A27: Total Custom Machinery Cost | F27: =SUM(F22:F26) -> 377.8771831 | G27: =SUM(G22:G26) -> 62.97953052 | H27: =SUM(H22:H26) -> 22.35773333 | O27: * | P27: For a more accurate fertilizer and lime recommendation, take a soil sample. | W27: (Instructions on how to take a soil sample.)
A28: Interest on Operating Capital | B28: 6 months | C28: acre | D28: =SUM(F19) -> 204.5888428 | E28: =+'Input Price List'!B$2 -> 0.08 | F28: =SUM(D28*E28)/2 -> 8.183553714 | G28: =F28/D6 -> 1.363925619 | H28: =SUM(F28/J$6) -> 0.4841935947 | O28: * | P28: The post-emergence weed control is based on an average of three common practices. Burndown is a common practice. For weed control and/or burndown
A29: Cash Rent | C29: acre | D29: 1 | F29: =SUM(D29*E29) -> 0 | G29: =F29/D6 -> 0 | H29: =SUM(F29/J$6) -> 0 | P29: recommendations, contact the county Extension office. | U29: (County office contact information.)
A30: Storage | O30: * | P30: Storage loss is based on an average of multiple studies.
A31: Fixed Cost | B31: =+'Budget Generator'!C$13 -> Hay Barn | C31: bale | D31: =$D$6*2000/$I$6 -> 16.90140845 | E31: =IF(B$31="Hay barn",+'List Page'!C$18,IF(B$31="Stacked/tarped",+'List Page'!C$19,+'List Page'!C$20)) -> 4.432581695 | F31: =SUM(D31*E31) -> 74.91687371 | G31: =F31/D6 -> 12.48614562 | H31: =SUM(F31/J$6) -> 4.432581695 | O31: * | P31: Establishment pro-rated expenses for hay are set for ten years.
A32: Shrinkage Loss | C32: annual | D32: =IF(B$31="Hay barn",+'List Page'!B$18,IF(B$31="Stacked/tarped",+'List Page'!B$19,+'List Page'!B$20)) -> 0.035 | E32: =SUM(F19+F27+F28+F29) -> 590.6495797 | F32: =D32*E32 -> 20.67273529 | G32: =F32/D6 -> 3.445455881 | H32: =SUM(F32/J$6) -> 1.223136838
A33: Total Storage Cost | F33: =SUM(F31:F32) -> 95.589609 | G33: =SUM(G31:G32) -> 15.9316015 | H33: =SUM(H31:H32) -> 5.655718532
A34: Total Budgeted Expenses | F34: =SUM(F19+F27+F28+F33+F29) -> 686.2391887 | G34: =SUM(G19+G27+G28+G33+G29) -> 114.3731981 | H34: =SUM(H19+H27+H28+H33+H29) -> 40.60248533
A35: Return to Land & Management | F35: =F6-F34 -> 213.7608113 | G35: =G6-G34 -> 35.62680189 | H35: =H6-H34 -> 12.64751467
A38: Bermudagrass, Establishment | I38: Establishment Prorated Over Years
A39: Estimated Expenses per Acre
F40: Amount
A41: Item | B41: Description | C41: Unit | D41: Quantity | E41: Price | F41: ($/acre) | I41: 10
A42: Expenses
A43: Burndown | B43: Burndown | C43: acre | D43: 1 | E43: =+'Input Price List'!D$37 -> 15.66 | F43: =D43*E43 -> 15.66
A44: Seed | B44: Bermudagrass | C44: lb | D44: =+'Input Table'!I$19 -> 6.5 | E44: =+'Input Price List'!B$9 -> 8.48 | F44: =E44*D44 -> 55.12
A45: Sprigging | B45: Bermudagrass | C45: acre | E45: =+'Input Price List'!B$10 -> 0 | F45: =E45*D45 -> 0
A46: Fertilizer | B46: N | C46: lb | D46: =+'Input Table'!J$19 -> 60 | E46: ='Input Price List'!B$26 -> 0.5986413043 | F46: =SUM(D46*E46) -> 35.91847826
B47: P2O5 | C47: lb | D47: =+'Input Table'!K$19 -> 40 | E47: ='Input Price List'!B$27 -> 0.6135751418 | F47: 24.54300567
B48: K2O | C48: lb | D48: =+'Input Table'!L$19 -> 80 | E48: ='Input Price List'!B$28 -> 0.4088 | F48: 32.704
B49: Custom Application | C49: acre | D49: 1 | E49: ='Input Price List'!B$30 -> 12.71 | F49: 12.71
A50: Lime & Application | B50: Custom Application | C50: ton | D50: =+'Input Table'!M$19 -> 2 | E50: ='Input Price List'!B$32 -> 43.63 | F50: =SUM(D50*E50) -> 87.26
A51: Total Variable Expenses | F51: =SUM(F43:F50) -> 263.9154839
A52: Custom Machinery Cost
A53: Spraying | C53: acre | D53: 1 | E53: =+'List Page'!B$31 -> 11.81 | F53: =SUM(D53*E53) -> 11.81
A54: No-till Drill | C54: acre | D54: 1 | E54: =+'List Page'!B$32 -> 17.08 | F54: 17.08
A55: Sprigging | C55: acre | D55: 1 | E55: =+'List Page'!C$36 -> 0 | F55: =SUM(D55*E55) -> 0
A56: Total Custom Machinery Cost | F56: =SUM(F53:F55) -> 28.89
A57: Interest on Operating Capital | B57: 6 months | C57: acre | D57: =SUM(F43:F50) -> 263.9154839 | E57: =+'Input Price List'!B$2 -> 0.08 | F57: =SUM(D57*E57)/2 -> 10.55661936
A58: Total Budgeted Expenses | F58: =SUM(F51+F56+F57) -> 303.3621033
A115: Bermudagrass, Hay
A116: Estimated Expenses per Acre
F117: Amount | G117: Amount | H117: Amount
A118: Item | B118: Description | C118: Unit | D118: Quantity | E118: Price | F118: ($/acre) | G118: ($/ton) | H118: ($/bale)
A119: Income
A120: Hay | B120: Bermudagrass | C120: ton | D120: =+'Input Table'!AU$19 -> 6 | E120: =IF(I$4="Round",'Input Price List'!G$1,'Input Price List'!H$1) -> 150 | F120: =D120*E120 -> 900 | G120: =SUM(F120/D120) -> 150 | H120: =SUM(F120/J$6) -> 53.25
A121: Expenses
A122: Prorated Establishment Costs | C122: acre | D122: =SUM(1/I41) -> 0.1 | E122: =+F$58 -> 303.3621033 | F122: =D122*E122 -> 30.33621033 | G122: =SUM(F122/D120) -> 5.056035055 | H122: =SUM(F122/J$6) -> 1.794892444
A123: Fertilizer | B123: N | C123: lb | D123: =+'Budget Generator'!C$16 -> 60 | E123: ='Input Price List'!B$26 -> 0.5986413043 | F123: =SUM(D123*E123) -> 35.91847826 | G123: =SUM(F123/D120) -> 5.986413043 | H123: 2.12517663
B124: P2O5 | C124: lb | D124: =+'Budget Generator'!C$17 -> 30 | E124: ='Input Price List'!B$27 -> 0.6135751418 | F124: 18.40725425 | G124: =SUM(F124/D120) -> 3.067875709 | H124: 1.089095877
B125: K2O | C125: lb | D125: =+'Budget Generator'!C$18 -> 30 | E125: ='Input Price List'!B$28 -> 0.4088 | F125: 12.264 | G125: =SUM(F125/D120) -> 2.044 | H125: 0.72562
B126: Custom Application | C126: acre | D126: 4 | E126: ='Input Price List'!B$30 -> 12.71 | F126: =SUM(D126*E126) -> 50.84 | G126: =SUM(F126/D120) -> 8.473333333 | H126: =SUM(F126/J$6) -> 3.008033333
A127: Lime & Application | B127: Custom Application | C127: ton | D127: =+'Budget Generator'!C$19 -> 0.33 | E127: ='Input Price List'!B$32 -> 43.63 | F127: =SUM(D127*E127) -> 14.3979 | G127: =SUM(F127/D120) -> 2.39965 | H127: =SUM(F127/J$6) -> 0.85187575
A128: Weed Control
A129: Post-Emerge | B129: Herbicide Application | C129: acre | D129: 1 | E129: =+'Input Table'!AF$5 -> 12.295 | F129: =SUM(D129*E129) -> 12.295 | G129: =SUM(F129/D120) -> 2.049166667 | H129: =SUM(F129/J$6) -> 0.7274541667
B130: Custom Application | C130: acre | D130: 1 | E130: ='Input Price List'!B$40 -> 11.81 | F130: =SUM(D130*E130) -> 11.81 | G130: =SUM(F130/D120) -> 1.968333333 | H130: =SUM(F130/J$6) -> 0.6987583333
A131: Pest Control | B131: Pest Control Application | C131: acre | D131: 1 | E131: =+'Input Table'!AS$5 -> 6.51 | F131: =SUM(D131*E131) -> 6.51 | G131: =SUM(F131/D120) -> 1.085 | H131: =SUM(F131/J$6) -> 0.385175
B132: Custom Application | C132: acre | D132: 1 | E132: ='Input Price List'!B$40 -> 11.81 | F132: =SUM(D132*E132) -> 11.81 | G132: =SUM(F132/D120) -> 1.968333333 | H132: =SUM(F132/J$6) -> 0.6987583333
A133: Total Variable Expenses | F133: =SUM(F122:F132) -> 204.5888428 | G133: =F133/D120 -> 34.09814047 | H133: =SUM(H122:H132) -> 12.10483987
A134: Return over Variable Expenses | F134: =F120-F133 -> 695.4111572 | G134: =F134/D120 -> 115.9018595 | H134: =SUM(H120-H133) -> 41.14516013
A135: Custom Machinery Cost
A136: Disk Mowing | C136: cutting | D136: =+'Budget Generator'!C$11 -> 2 | E136: =+'List Page'!B$26 -> 16.5 | F136: =SUM(D136*E136) -> 33 | G136: =SUM(F136/D120) -> 5.5 | H136: =SUM(F136/J$6) -> 1.9525
A137: Tedding | C137: cutting | D137: =+'Budget Generator'!C$11 -> 2 | E137: =+'List Page'!B$27 -> 6.67 | F137: =SUM(D137*E137) -> 13.34 | G137: =SUM(F137/D120) -> 2.223333333 | H137: =SUM(F137/J$6) -> 0.7892833333
A138: Raking | C138: cutting | D138: =+'Budget Generator'!C$11 -> 2 | E138: =+'List Page'!B$28 -> 8.67 | F138: 17.34 | G138: =SUM(F138/D120) -> 2.89 | H138: =SUM(F138/J$6) -> 1.02595
A139: Baling | C139: cutting | D139: =+'Budget Generator'!C$11 -> 2 | E139: =IF($I$4="Square",+'List Page'!$C$29,+'List Page'!B$39) -> 13.17 | F139: =SUM(D140*E139) -> 222.5915493 | G139: =SUM(F139/D120) -> 37.09859155 | H139: =SUM(F139/J$6) -> 13.17
A140: Hauling | C140: bale | D140: =+J$6 -> 16.90140845 | E140: =IF($I$4="Round",+'List Page'!$C$30,'List Page'!$D$30) -> 5.42 | F140: =(E140*D140) -> 91.6056338 | G140: =SUM(F140/D120) -> 15.26760563 | H140: =SUM(F140/J$6) -> 5.42
A141: Total Custom Machinery Cost | F141: =SUM(F136:F140) -> 377.8771831 | G141: =SUM(G136:G140) -> 62.97953052 | H141: =SUM(H136:H140) -> 22.35773333
A142: Interest on Operating Capital | B142: 6 months | C142: acre | D142: =SUM(F133) -> 204.5888428 | E142: =+'Input Price List'!B$2 -> 0.08 | F142: =SUM(D142*E142)/2 -> 8.183553714 | G142: =F142/D120 -> 1.363925619 | H142: =SUM(F142/J$6) -> 0.4841935947
A143: Cash Rent | C143: acre | D143: 1 | F143: =SUM(D143*E143) -> 0 | G143: =F143/D120 -> 0 | H143: =SUM(F143/J$6) -> 0
A144: Storage
A145: Fixed Cost | B145: =+'Budget Generator'!C$13 -> Hay Barn | C145: bale | D145: =$D$6*2000/$I$6 -> 16.90140845 | E145: =IF(B$31="Hay barn",+'List Page'!C$18,IF(B$31="Stacked/tarped",+'List Page'!C$19,+'List Page'!C$20)) -> 4.432581695 | F145: =SUM(D145*E145) -> 74.91687371 | G145: =F145/D120 -> 12.48614562 | H145: =SUM(F145/J$6) -> 4.432581695
A146: Shrinkage Loss | C146: annual | D146: =IF(B$31="Hay barn",+'List Page'!B$18,IF(B$31="Stacked/tarped",+'List Page'!B$19,+'List Page'!B$20)) -> 0.035 | E146: =SUM(H133+H141+H142) -> 34.9467668 | F146: =D146*E146*D145 -> 20.67273529 | G146: =F146/D120 -> 3.445455881 | H146: =SUM(F146/J$6) -> 1.223136838
A147: Total Storage Cost | F147: =SUM(F145:F146) -> 95.589609 | G147: =SUM(G145:G146) -> 15.9316015 | H147: =SUM(H145:H146) -> 5.655718532
A148: Total Budgeted Expenses | F148: =SUM(F133+F141+F142+F147+F143) -> 686.2391887 | G148: =SUM(G133+G141+G142+G147+G143) -> 114.3731981 | H148: =SUM(H133+H141+H142+H147+H143) -> 40.60248533
A149: Return to Land & Management | F149: =F120-F148 -> 213.7608113 | G149: =G120-G148 -> 35.62680189 | H149: =H120-H148 -> 12.64751467
A151: Bermudagrass, Establishment
A152: Estimated Expenses per Acre
F153: Amount
A154: Item | B154: Description | C154: Unit | D154: Quantity | E154: Price | F154: ($/acre)
A155: Expenses
A156: Burndown | B156: Burndown | C156: acre | D156: 1 | E156: =+'Input Price List'!D$37 -> 15.66 | F156: =D156*E156 -> 15.66
A157: Seed | B157: Bermudagrass | C157: lb | D157: =+'Input Table'!I$19 -> 6.5 | E157: =+'Input Price List'!B$9 -> 8.48 | F157: =E157*D157 -> 55.12
A158: Sprigging | B158: Bermudagrass | C158: acre | E158: =+'Input Price List'!B$10 -> 0 | F158: =E158*D158 -> 0
A159: Fertilizer | B159: N | C159: lb | D159: =+'Input Table'!J$19 -> 60 | E159: ='Input Price List'!B$26 -> 0.5986413043 | F159: =SUM(D159*E159) -> 35.91847826
B160: P2O5 | C160: lb | D160: =+'Input Table'!K$19 -> 40 | E160: ='Input Price List'!B$27 -> 0.6135751418 | F160: 24.54300567
B161: K2O | C161: lb | D161: =+'Input Table'!L$19 -> 80 | E161: ='Input Price List'!B$28 -> 0.4088 | F161: 32.704
B162: Custom Application | C162: acre | D162: 1 | E162: ='Input Price List'!B$30 -> 12.71 | F162: 12.71
A163: Lime & Application | B163: Custom Application | C163: ton | D163: =+'Input Table'!M$19 -> 2 | E163: ='Input Price List'!B$32 -> 43.63 | F163: =SUM(D163*E163) -> 87.26
A164: Total Variable Expenses | F164: =SUM(F156:F163) -> 263.9154839
A165: Custom Machinery Cost
A166: Spraying | C166: acre | D166: 1 | E166: =+'List Page'!B$31 -> 11.81 | F166: =SUM(D166*E166) -> 11.81
A167: No-till Drill | C167: acre | D167: 1 | E167: =+'List Page'!B$32 -> 17.08 | F167: 17.08
A168: Sprigging | C168: acre | D168: 1 | E168: =+'List Page'!C$36 -> 0 | F168: 0
A169: Total Custom Machinery Cost | F169: =SUM(F166:F168) -> 28.89
A170: Interest on Operating Capital | B170: 6 months | C170: acre | D170: =SUM(F156:F163) -> 263.9154839 | E170: =+'Input Price List'!B$2 -> 0.08 | F170: =SUM(D170*E170)/2 -> 10.55661936
A171: Total Budgeted Expenses | F171: =SUM(F164+F169+F170) -> 303.3621033

Sheet Bermudagrass Baleage
A1: Bermudagrass, Baleage | P1: Sensitivity Analysis
A2: Estimated Expenses per Acre | P2: Return Above Variable Expenses
F3: Amount | G3: Amount | H3: Amount | S3: Price ($/ton)
A4: Item | B4: Description | C4: Unit | D4: Quantity | E4: Price | F4: ($/acre) | G4: ($/ton) | H4: ($/bale) | I4: =+'Budget Generator'!C$9 -> Round | Q4: =SUM(R4-25) -> -50 | R4: =SUM(S4-25) -> -25 | S4: =+E6 -> 0 | T4: =SUM(S4+25) -> 25 | U4: =SUM(T4+25) -> 50
A5: Income | I5: =IF(+'Budget Generator'!C$9="Round",+'Budget Generator'!C$10,"Square") -> 4x5 | J5: Bale per Acre | P5: =SUM(P6-0.5) -> 8.6 | Q5: =IF($E$6>0,SUM(Q$4*$P5)-$F$19," ") ->  | R5: =IF($E$6>0,SUM(R$4*$P5)-$F$19," ") ->  | S5: =IF($E$6>0,SUM(S$4*$P5)-$F$19," ") -> 
A6: Hay | B6: Bermudagrass | C6: ton | D6: =+'Input Table'!AU$19*1.6 -> 9.6 | F6: =D6*E6 -> 0 | G6: =SUM(F6/D6) -> 0 | H6: =IF(F6>0,SUM(F6/J$6),"") ->  | I6: =+'Budget Generator'!E$10 -> 710 | J6: =SUM($D$6*2000)/$I$6 -> 27.04225352 | P6: =SUM(P7-0.5) -> 9.1 | Q6: =IF($E$6>0,SUM(Q$4*$P6)-$F$19," ") ->  | S6: =IF($E$6>0,SUM(S$4*$P6)-$F$19," ") -> 
A7: Expenses | O7: Yield | P7: =+D6 -> 9.6
A8: Prorated Establishment Costs | C8: acre | D8: =SUM(1/I41) -> 0.1 | E8: =+F$58 -> 303.3621033 | F8: =D8*E8 -> 30.33621033 | G8: =SUM(F8/D6) -> 3.160021909 | H8: =SUM(F8/J$6) -> 1.121807778 | O8: (ton) | P8: =SUM(P7+0.5) -> 10.1
A9: Fertilizer | B9: N | C9: lb | D9: =+'Budget Generator'!C$16 -> 60 | E9: ='Input Price List'!B$26 -> 0.5986413043 | F9: =SUM(D9*E9) -> 35.91847826 | G9: =SUM(F9/D6) -> 3.741508152 | H9: 1.328235394 | P9: =SUM(P8+0.5) -> 10.6
B10: P2O5 | C10: lb | D10: =+'Budget Generator'!C$17 -> 30 | E10: ='Input Price List'!B$27 -> 0.6135751418 | F10: 18.40725425 | G10: =SUM(F10/D6) -> 1.917422318 | H10: 0.6806849229
B11: K2O | C11: lb | D11: =+'Budget Generator'!C$18 -> 30 | E11: ='Input Price List'!B$28 -> 0.4088 | F11: 12.264 | G11: =SUM(F11/D6) -> 1.2775 | H11: 0.4535125 | P11: Return Above Fixed Expenses
B12: Custom Application | C12: acre | D12: 2 | E12: ='Input Price List'!B$30 -> 12.71 | F12: =SUM(D12*E12) -> 25.42 | G12: =SUM(F12/D6) -> 2.647916667 | H12: =SUM(F12/J$6) -> 0.9400104167 | S12: Price ($/ton)
A13: Lime & Application | B13: Custom Application | C13: ton | D13: =+'Budget Generator'!C$19 -> 0.33 | E13: ='Input Price List'!B$32 -> 43.63 | F13: =SUM(D13*E13) -> 14.3979 | G13: =SUM(F13/D6) -> 1.49978125 | H13: =SUM(F13/J$6) -> 0.5324223437 | Q13: =SUM(R13-25) -> -50 | R13: =SUM(S13-25) -> -25 | S13: =+E6 -> 0 | T13: =SUM(S13+25) -> 25 | U13: =SUM(T13+25) -> 50
A14: Weed Control | P14: =SUM(P15-0.5) -> 8.6 | Q14: =IF($E$6>0,SUM(Q$4*$P14)-$F$33," ") -> 
A15: Post-Emerge | B15: Herbicide Application | C15: acre | D15: 1 | E15: =+'Input Table'!AF$5 -> 12.295 | F15: =SUM(D15*E15) -> 12.295 | G15: =SUM(F15/D6) -> 1.280729167 | H15: =SUM(F15/J$6) -> 0.4546588542 | P15: =SUM(P16-0.5) -> 9.1
B16: Custom Application | C16: acre | D16: 1 | E16: ='Input Price List'!B$40 -> 11.81 | F16: =SUM(D16*E16) -> 11.81 | G16: =SUM(F16/D6) -> 1.230208333 | H16: =SUM(F16/J$6) -> 0.4367239583 | O16: Yield | P16: =+D6 -> 9.6
A17: Pest Control | B17: Pest Control Application | C17: acre | D17: 1 | E17: =+'Input Table'!AS$5 -> 6.51 | F17: =SUM(D17*E17) -> 6.51 | G17: =SUM(F17/D6) -> 0.678125 | H17: =SUM(F17/J$6) -> 0.240734375 | O17: (ton) | P17: =SUM(P16+0.5) -> 10.1
B18: Custom Application | C18: acre | D18: 1 | E18: ='Input Price List'!B$40 -> 11.81 | F18: =SUM(D18*E18) -> 11.81 | G18: =SUM(F18/D6) -> 1.230208333 | H18: =SUM(F18/J$6) -> 0.4367239583 | P18: =SUM(P17+0.5) -> 10.6
A19: Total Variable Expenses | F19: =SUM(F8:F18) -> 179.1688428 | G19: =SUM(G8:G18) -> 18.66342113 | H19: =SUM(H8:H18) -> 6.625514501
A20: Return over Variable Expenses | F20: =IF(F6>0,F6-F19," ") ->  | G20: =IF(G6>0,F20/D6,"") ->  | H20: =IF(E6>0,SUM(H6-H19),"") -> 
A21: Custom Machinery Cost | O21: Baleage
A22: Disk Mowing | C22: cutting | D22: =+'Budget Generator'!C$11 -> 2 | E22: =+'List Page'!B$26 -> 16.5 | F22: =SUM(D22*E22) -> 33 | G22: =SUM(F22/D6) -> 3.4375 | H22: =SUM(F22/J$6) -> 1.2203125 | O22: * | P22: The budget is based on custom rates for machinery processes. Labor, operating, maintenance, and ownership costs are included in these rates.
A23: Tedding | C23: cutting | D23: =+'Budget Generator'!C$11 -> 2 | E23: =+'List Page'!B$27 -> 6.67 | F23: =SUM(D23*E23) -> 13.34 | G23: =SUM(F23/D6) -> 1.389583333 | H23: 0.4933020833 | P23: The baling rate includes binding.
A24: Raking | C24: cutting | D24: =+'Budget Generator'!C$11 -> 2 | E24: =+'List Page'!B$28 -> 8.67 | F24: 17.34 | G24: =SUM(F24/D6) -> 1.80625 | H24: 0.64121875 | O24: * | P24: The budget is based on no-till establishment.
A25: Baling | C25: cutting | D25: =+'Budget Generator'!C$11 -> 2 | E25: =+'List Page'!B$39+2 -> 15.17 | F25: 30.34 | G25: =SUM(F25/D6) -> 3.160416667 | H25: 1.121947917 | O25: * | P25: Nitrogen is applied in split applications.
A26: Hauling | C26: bale | D26: =+J$6 -> 27.04225352 | E26: ='List Page'!$C$30 -> 5.42 | F26: =SUM(D26*E26) -> 146.5690141 | G26: =SUM(F26/D6) -> 15.26760563 | H26: 5.42 | O26: * | P26: Lime prorated at one ton over three years.
A27: Wrapping | C27: bale | D27: =+J$6 -> 27.04225352 | E27: =+'List Page'!C$35 -> 5.5 | F27: =(E27*D27) -> 148.7323944 | G27: =SUM(F27/D6) -> 15.49295775 | H27: 5.5 | O27: * | P27: Based on inline tube wrapping.
A28: Total Custom Machinery Cost | F28: =SUM(F22:F27) -> 389.3214085 | G28: =SUM(G22:G27) -> 40.55431338 | H28: =SUM(H22:H27) -> 14.39678125 | O28: * | P28: For a more accurate fertilizer and lime recommendation, take a soil sample. | V28: (Instructions on how to take a soil sample.)
A29: Interest on Operating Capital | B29: 6 months | C29: acre | D29: =SUM(F19) -> 179.1688428 | E29: =+'Input Price List'!B$2 -> 0.08 | F29: =SUM(D29*E29)/2 -> 7.166753714 | G29: =F29/D6 -> 0.7465368452 | H29: =SUM(F29/J$6) -> 0.26502058 | O29: * | P29: The post-emergence weed control is based on an average of three common practices. Burndown is a common practice. For weed control and/or burndown
A30: Cash Rent | C30: acre | D30: 1 | F30: =SUM(D30*E30) -> 0 | G30: =F30/D6 -> 0 | H30: =SUM(F30/J$6) -> 0 | P30: recommendations, contact the county Extension office. | U30: (County office contact information.)
A31: Storage | O31: * | P31: Storage loss is based on an average of multiple studies.
A32: Shrinkage Loss | C32: annual | D32: =+'List Page'!$B$21 -> 0.15 | E32: =SUM(F19+F28+F29+F30) -> 575.657005 | F32: =D32*E32 -> 86.34855075 | G32: =F32/D6 -> 8.994640703 | H32: =SUM(F32/J$6) -> 3.19309745 | O32: * | P32: Establishment pro-rated expenses for hay are set for ten years.
A33: Total Budgeted Expenses | F33: =SUM(F19+F28+F29+F30) -> 575.657005 | G33: =SUM(G19+G28+G29+G30) -> 59.96427135 | H33: =SUM(H19+H28+H29+H30) -> 21.28731633
A34: Return to Land & Management | F34: =IF(F6>0,F6-F33," ") ->  | G34: =IF(G6>0,F34/D6,"") ->  | H34: =IF(E6>0,SUM(H6-H33),"") -> 
A38: Bermudagrass, Establishment | I38: Establishment Prorated Over Years
A39: Estimated Expenses per Acre
F40: Amount
A41: Item | B41: Description | C41: Unit | D41: Quantity | E41: Price | F41: ($/acre) | I41: 10
A42: Expenses
A43: Burndown | B43: Burndown | C43: acre | D43: 1 | E43: =+'Input Price List'!D$37 -> 15.66 | F43: =D43*E43 -> 15.66
A44: Seed | B44: Bermudagrass | C44: lb | D44: =+'Input Table'!I$19 -> 6.5 | E44: =+'Input Price List'!B$9 -> 8.48 | F44: =E44*D44 -> 55.12
A45: Sprigging | B45: Bermudagrass | C45: acre | E45: =+'Input Price List'!B$10 -> 0 | F45: =E45*D45 -> 0
A46: Fertilizer | B46: N | C46: lb | D46: =+'Input Table'!J$19 -> 60 | E46: ='Input Price List'!B$26 -> 0.5986413043 | F46: =SUM(D46*E46) -> 35.91847826
B47: P2O5 | C47: lb | D47: =+'Input Table'!K$19 -> 40 | E47: ='Input Price List'!B$27 -> 0.6135751418 | F47: 24.54300567
B48: K2O | C48: lb | D48: =+'Input Table'!L$19 -> 80 | E48: ='Input Price List'!B$28 -> 0.4088 | F48: 32.704
B49: Custom Application | C49: acre | D49: 1 | E49: ='Input Price List'!B$30 -> 12.71 | F49: 12.71
A50: Lime & Application | B50: Custom Application | C50: ton | D50: =+'Input Table'!M$19 -> 2 | E50: ='Input Price List'!B$32 -> 43.63 | F50: =SUM(D50*E50) -> 87.26
A51: Total Variable Expenses | F51: =SUM(F43:F50) -> 263.9154839
A52: Custom Machinery Cost
A53: Spraying | C53: acre | D53: 1 | E53: =+'List Page'!B$31 -> 11.81 | F53: =SUM(D53*E53) -> 11.81
A54: No-till Drill | C54: acre | D54: 1 | E54: =+'List Page'!B$32 -> 17.08 | F54: 17.08
A55: Sprigging | C55: acre | D55: 1 | E55: =+'List Page'!C$36 -> 0 | F55: 0
A56: Total Custom Machinery Cost | F56: =SUM(F53:F55) -> 28.89
A57: Interest on Operating Capital | B57: 6 months | C57: acre | D57: =SUM(F43:F50) -> 263.9154839 | E57: =+'Input Price List'!B$2 -> 0.08 | F57: =SUM(D57*E57)/2 -> 10.55661936
A58: Total Budgeted Expenses | F58: =SUM(F51+F56+F57) -> 303.3621033
A115: Bermudagrass, Baleage
A116: Estimated Expenses per Acre
F117: Amount | G117: Amount | H117: Amount
A118: Item | B118: Description | C118: Unit | D118: Quantity | E118: Price | F118: ($/acre) | G118: ($/ton) | H118: ($/bale)
A119: Income
A120: Hay | B120: Bermudagrass | C120: ton | D120: =+'Input Table'!AU$19*1.6 -> 9.6 | F120: =D120*E120 -> 0 | G120: =SUM(F120/D120) -> 0 | H120: =IF(F120>0,SUM(F120/J$6),"") -> 
A121: Expenses
A122: Prorated Establishment Costs | C122: acre | D122: =SUM(1/I154) ->  | E122: =+F$58 -> 303.3621033 | F122: =D122*E122 ->  | G122: =SUM(F122/D120) ->  | H122: =SUM(F122/J$6) -> 
A123: Fertilizer | B123: N | C123: lb | D123: =+'Budget Generator'!C$16 -> 60 | E123: ='Input Price List'!B$26 -> 0.5986413043 | F123: =SUM(D123*E123) -> 35.91847826 | G123: =SUM(F123/D120) -> 3.741508152 | H123: 1.328235394
B124: P2O5 | C124: lb | D124: =+'Budget Generator'!C$17 -> 30 | E124: ='Input Price List'!B$27 -> 0.6135751418 | F124: 18.40725425 | G124: =SUM(F124/D120) -> 1.917422318 | H124: 0.6806849229
B125: K2O | C125: lb | D125: =+'Budget Generator'!C$18 -> 30 | E125: ='Input Price List'!B$28 -> 0.4088 | F125: 12.264 | G125: =SUM(F125/D120) -> 1.2775 | H125: 0.4535125
B126: Custom Application | C126: acre | D126: 2 | E126: ='Input Price List'!B$30 -> 12.71 | F126: =SUM(D126*E126) -> 25.42 | G126: =SUM(F126/D120) -> 2.647916667 | H126: =SUM(F126/J$6) -> 0.9400104167
A127: Lime & Application | B127: Custom Application | C127: ton | D127: =+'Budget Generator'!C$19 -> 0.33 | E127: ='Input Price List'!B$32 -> 43.63 | F127: =SUM(D127*E127) -> 14.3979 | G127: =SUM(F127/D120) -> 1.49978125 | H127: =SUM(F127/J$6) -> 0.5324223437
A128: Weed Control
A129: Post-Emerge | B129: Herbicide Application | C129: acre | D129: 1 | E129: =+'Input Table'!AF$5 -> 12.295 | F129: =SUM(D129*E129) -> 12.295 | G129: =SUM(F129/D120) -> 1.280729167 | H129: =SUM(F129/J$6) -> 0.4546588542
B130: Custom Application | C130: acre | D130: 1 | E130: ='Input Price List'!B$40 -> 11.81 | F130: =SUM(D130*E130) -> 11.81 | G130: =SUM(F130/D120) -> 1.230208333 | H130: =SUM(F130/J$6) -> 0.4367239583
A131: Pest Control | B131: Pest Control Application | C131: acre | D131: 1 | E131: =+'Input Table'!AS$5 -> 6.51 | F131: =SUM(D131*E131) -> 6.51 | G131: =SUM(F131/D120) -> 0.678125 | H131: =SUM(F131/J$6) -> 0.240734375
B132: Custom Application | C132: acre | D132: 1 | E132: ='Input Price List'!B$40 -> 11.81 | F132: =SUM(D132*E132) -> 11.81 | G132: =SUM(F132/D120) -> 1.230208333 | H132: =SUM(F132/J$6) -> 0.4367239583
A133: Total Variable Expenses | F133: =SUM(F122:F132) ->  | G133: =F133/D120 ->  | H133: =SUM(H122:H132) -> 
A134: Return over Variable Expenses | F134: =IF(F120>0,F120-F133," ") ->  | G134: =IF(G120>0,F134/D120,"") ->  | H134: =IF(E120>0,SUM(H120-H133),"") -> 
A135: Custom Machinery Cost
A136: Disk Mowing | C136: cutting | D136: =+'Budget Generator'!C$11 -> 2 | E136: =+'List Page'!B$26 -> 16.5 | F136: =SUM(D136*E136) -> 33 | G136: =SUM(F136/D120) -> 3.4375 | H136: =SUM(F136/J$6) -> 1.2203125
A137: Tedding | C137: cutting | D137: =+'Budget Generator'!C$11 -> 2 | E137: =+'List Page'!B$27 -> 6.67 | F137: =SUM(D137*E137) -> 13.34 | G137: =SUM(F137/D120) -> 1.389583333 | H137: 0.4933020833
A138: Raking | C138: cutting | D138: =+'Budget Generator'!C$11 -> 2 | E138: =+'List Page'!B$28 -> 8.67 | F138: 17.34 | G138: =SUM(F138/D120) -> 1.80625 | H138: 0.64121875
A139: Baling | C139: cutting | D139: =+'Budget Generator'!C$11 -> 2 | E139: =+'List Page'!B$39+2 -> 15.17 | F139: 30.34 | G139: =SUM(F139/D120) -> 3.160416667 | H139: 1.121947917
A140: Hauling | C140: bale | D140: =+J$6 -> 27.04225352 | E140: ='List Page'!$C$30 -> 5.42 | F140: 146.5690141 | G140: =SUM(F140/D120) -> 15.26760563 | H140: 5.42
A141: Wrapping | C141: bale | D141: =+J$6 -> 27.04225352 | E141: =+'List Page'!C$35 -> 5.5 | F141: =(E141*D141) -> 148.7323944 | G141: =SUM(F141/D120) -> 15.49295775 | H141: 5.5
A142: Total Custom Machinery Cost | F142: =SUM(F136:F141) -> 389.3214085 | G142: =SUM(G136:G141) -> 40.55431338 | H142: =SUM(H136:H141) -> 14.39678125
A143: Interest on Operating Capital | B143: 6 months | C143: acre | D143: =SUM(F133) ->  | E143: =+'Input Price List'!B$2 -> 0.08 | F143: =SUM(D143*E143)/2 ->  | G143: =F143/D120 ->  | H143: =SUM(F143/J$6) -> 
A144: Cash Rent | C144: acre | D144: 1 | F144: =SUM(D144*E144) -> 0 | G144: =F144/D120 -> 0 | H144: =SUM(F144/J$6) -> 0
A145: Storage
A146: Shrinkage Loss | C146: annual | D146: =+'List Page'!$B$21 -> 0.15 | E146: =SUM(H133+H142+H143) ->  | F146: =D146*E146 ->  | G146: =F146/D120 ->  | H146: =SUM(F146/J$6) -> 
A147: Total Budgeted Expenses | F147: =SUM(F133+F142+F143+F144) ->  | G147: =SUM(G133+G142+G143+G144) ->  | H147: =SUM(H133+H142+H143+H144) -> 
A148: Return to Land & Management | F148: =IF(F120>0,F120-F147," ") ->  | G148: =IF(G120>0,F148/D120,"") ->  | H148: =IF(E120>0,SUM(H120-H147),"") -> 
A151: Bermudagrass, Establishment
A152: Estimated Expenses per Acre
F153: Amount
A154: Item | B154: Description | C154: Unit | D154: Quantity | E154: Price | F154: ($/acre)
A155: Expenses
A156: Burndown | B156: Burndown | C156: acre | D156: 1 | E156: =+'Input Price List'!D$37 -> 15.66 | F156: =D156*E156 -> 15.66
A157: Seed | B157: Bermudagrass | C157: lb | D157: =+'Input Table'!I$19 -> 6.5 | E157: =+'Input Price List'!B$9 -> 8.48 | F157: =E157*D157 -> 55.12
A158: Sprigging | B158: Bermudagrass | C158: acre | E158: =+'Input Price List'!B$10 -> 0 | F158: =E158*D158 -> 0
A159: Fertilizer | B159: N | C159: lb | D159: =+'Input Table'!J$19 -> 60 | E159: ='Input Price List'!B$26 -> 0.5986413043 | F159: =SUM(D159*E159) -> 35.91847826
B160: P2O5 | C160: lb | D160: =+'Input Table'!K$19 -> 40 | E160: ='Input Price List'!B$27 -> 0.6135751418 | F160: 24.54300567
B161: K2O | C161: lb | D161: =+'Input Table'!L$19 -> 80 | E161: ='Input Price List'!B$28 -> 0.4088 | F161: 32.704
B162: Custom Application | C162: acre | D162: 1 | E162: ='Input Price List'!B$30 -> 12.71 | F162: 12.71
A163: Lime & Application | B163: Custom Application | C163: ton | D163: =+'Input Table'!M$19 -> 2 | E163: ='Input Price List'!B$32 -> 43.63 | F163: =SUM(D163*E163) -> 87.26
A164: Total Variable Expenses | F164: =SUM(F156:F163) -> 263.9154839
A165: Custom Machinery Cost
A166: Spraying | C166: acre | D166: 1 | E166: =+'List Page'!B$31 -> 11.81 | F166: =SUM(D166*E166) -> 11.81
A167: No-till Drill | C167: acre | D167: 1 | E167: =+'List Page'!B$32 -> 17.08 | F167: 17.08
A168: Sprigging | C168: acre | D168: 1 | E168: =+'List Page'!C$36 -> 0 | F168: 0
A169: Total Custom Machinery Cost | F169: =SUM(F166:F168) -> 28.89
A170: Interest on Operating Capital | B170: 6 months | C170: acre | D170: =SUM(F156:F163) -> 263.9154839 | E170: =+'Input Price List'!B$2 -> 0.08 | F170: =SUM(D170*E170)/2 -> 10.55661936
A171: Total Budgeted Expenses | F171: =SUM(F164+F169+F170) -> 303.3621033

Sheet Bermudagrass Pasture
A1: Bermudagrass, Pasture | K1: Pasture
A2: Estimated Expenses per Acre | K2: * | L2: The budget is based on custom rates for machinery processes. Labor, operating, maintenance, and ownership costs are included in these rates.
F3: Amount | K3: * | L3: The budget is based on no-till establishment.
A4: Item | B4: Description | C4: Unit | D4: Quantity | E4: Price | F4: ($/acre) | K4: * | L4: Nitrogen is applied in split applications.
A5: Expenses | K5: * | L5: Lime prorated at one ton over three years.
A6: Prorated Establishment Costs | B6: Bermudagrass | C6: acre | D6: =SUM(1/H$29) -> 0.1 | E6: =+F$45 -> 10.55661936 | F6: =D6*E6 -> 1.055661936 | K6: * | L6: For a more accurate fertilizer and lime recommendation, take a soil sample. | S6: (Instructions on how to take a soil sample.)
A7: Fertilizer | B7: N | C7: lb | D7: =+'Budget Generator'!$C$16 -> 60 | E7: ='Input Price List'!B$26 -> 0.5986413043 | F7: =SUM(D7*E7) -> 35.91847826 | K7: * | L7: The post-emergence weed control is based on an average of three common practices. Burndown is a common practice. For weed control and/or burndown
B8: P2O5 | C8: lb | D8: =+'Budget Generator'!$C$17 -> 30 | E8: ='Input Price List'!B$27 -> 0.6135751418 | F8: 18.40725425 | L8: recommendations, contact the county Extension office. | Q8: (County office contact information.)
B9: K2O | C9: lb | D9: =+'Budget Generator'!$C$18 -> 30 | E9: ='Input Price List'!B$28 -> 0.4088 | F9: 12.264 | K9: * | L9: Storage loss is based on an average of multiple studies.
B10: Custom Application | C10: acre | D10: 2 | E10: ='Input Price List'!B$30 -> 12.71 | F10: =SUM(D10*E10) -> 25.42 | K10: * | L10: Establishment pro-rated expenses for pasture are set for ten years.
A11: Lime & Application | B11: Custom Application | C11: ton | D11: =+'Budget Generator'!$C$19 -> 0.33 | E11: ='Input Price List'!B$32 -> 43.63 | F11: =SUM(D11*E11) -> 14.3979
A12: Weed Control
A13: Post-Emerge | B13: Herbicide Application | C13: acre | D13: 1 | E13: =+'Input Table'!AF$5 -> 12.295 | F13: =SUM(D13*E13) -> 12.295
B14: Custom Application | C14: acre | D14: 1 | E14: ='Input Price List'!B$40 -> 11.81 | F14: =SUM(D14*E14) -> 11.81
A15: Pest Control | B15: Pest Control Application | C15: acre | D15: 1 | E15: =+'Input Table'!AS$5 -> 6.51 | F15: =SUM(D15*E15) -> 6.51
B16: Custom Application | C16: acre | D16: 1 | E16: ='Input Price List'!B$40 -> 11.81 | F16: =SUM(D16*E16) -> 11.81
A17: Total Variable Expenses | F17: =SUM(F6:F16) -> 149.8882944
A18: Custom Machinery Cost
A19: Bush Hogging | C19: acre | D19: 1 | E19: =+'List Page'!B$33 -> 19.5 | F19: =SUM(D19*E19) -> 19.5
A20: Total Custom Machinery Cost | F20: =SUM(F19:F19) -> 19.5
A21: Interest on Operating Capital | B21: 6 months | C21: acre | D21: =SUM(F17) -> 149.8882944 | E21: =+'Input Price List'!B$2 -> 0.08 | F21: =SUM(D21*E21)/2 -> 5.995531778
A22: Cash Rent | C22: acre | D22: 1 | F22: =SUM(D22*E22) -> 0
A23: Total Budgeted Expenses | F23: =SUM(F17+F20+F21+F22) -> 175.3838262
A26: Bermudagrass, Establishment | H26: Establishment Prorated Over Years
A27: Estimated Expenses per Acre
F28: Amount
A29: Item | B29: Description | C29: Unit | D29: Quantity | E29: Price | F29: ($/acre) | H29: 10
A30: Expenses
A31: Burndown | B31: Burndown | C31: acre | D31: 1 | E31: =+'Input Price List'!D$37 -> 15.66 | F31: =D31*E31 -> 15.66
A32: Seed | B32: Bermudagrass | C32: lb | D32: =+'Input Table'!I$19 -> 6.5 | E32: =+'Input Price List'!B$9 -> 8.48 | F32: =D32*E32 -> 55.12
A33: Sprigging | B33: Bermudagrass | C33: acre | E33: =+'Input Price List'!B$10 -> 0 | F33: 0
A34: Fertilizer | B34: N | C34: lb | D34: =+'Input Table'!J$19 -> 60 | E34: ='Input Price List'!B$26 -> 0.5986413043 | F34: 35.91847826
B35: P2O5 | C35: lb | D35: =+'Input Table'!K$19 -> 40 | E35: ='Input Price List'!B$27 -> 0.6135751418 | F35: 24.54300567
B36: K2O | C36: lb | D36: =+'Input Table'!L$19 -> 80 | E36: ='Input Price List'!B$28 -> 0.4088 | F36: 32.704
B37: Custom Application | C37: acre | D37: 1 | E37: ='Input Price List'!B$30 -> 12.71 | F37: 12.71
A38: Lime & Application | B38: Custom Application | C38: ton | D38: =+'Input Table'!M$19 -> 2 | E38: ='Input Price List'!B$32 -> 43.63 | F38: 87.26
A39: Total Variable Expenses | F39: =SUM(F31:F38) -> 263.9154839
A40: Custom Machinery Cost
A41: Spraying | C41: acre | D41: 1 | E41: =+'List Page'!B$31 -> 11.81 | F41: =SUM(D41*E41) -> 11.81
A42: No-till Drill | C42: acre | D42: 1 | E42: =+'List Page'!B$32 -> 17.08 | F42: 17.08
A43: Sprigging | C43: acre | D43: 1 | E43: =+'List Page'!C$36 -> 0 | F43: 0
A44: Total Custom Machinery Cost | F44: =SUM(F41:F43) -> 28.89
A45: Interest on Operating Capital | B45: 6 months | C45: acre | D45: =SUM(F31:F38) -> 263.9154839 | E45: =+'Input Price List'!B$2 -> 0.08 | F45: =SUM(D45*E45)/2 -> 10.55661936
A46: Total Budgeted Expenses | F46: =SUM(F39+F44) -> 292.8054839
A115: Bermudagrass, Pasture
A116: Estimated Expenses per Acre
F117: Amount
A118: Item | B118: Description | C118: Unit | D118: Quantity | E118: Price | F118: ($/acre)
A119: Expenses
A120: Prorated Establishment Costs | B120: Bermudagrass | C120: acre | D120: =SUM(1/H$29) -> 0.1 | E120: =+F$45 -> 10.55661936 | F120: =D120*E120 -> 1.055661936
A121: Fertilizer | B121: N | C121: lb | D121: =+'Budget Generator'!$C$16 -> 60 | E121: ='Input Price List'!B$26 -> 0.5986413043 | F121: =SUM(D121*E121) -> 35.91847826
B122: P2O5 | C122: lb | D122: =+'Budget Generator'!$C$17 -> 30 | E122: ='Input Price List'!B$27 -> 0.6135751418 | F122: 18.40725425
B123: K2O | C123: lb | D123: =+'Budget Generator'!$C$18 -> 30 | E123: ='Input Price List'!B$28 -> 0.4088 | F123: 12.264
B124: Custom Application | C124: acre | D124: 1 | E124: ='Input Price List'!B$30 -> 12.71 | F124: =SUM(D124*E124) -> 12.71
A125: Lime & Application | B125: Custom Application | C125: ton | D125: =+'Budget Generator'!$C$19 -> 0.33 | E125: ='Input Price List'!B$32 -> 43.63 | F125: =SUM(D125*E125) -> 14.3979
A126: Weed Control
A127: Post-Emerge | B127: Herbicide Application | C127: acre | D127: 1 | E127: =+'Input Table'!AF$5 -> 12.295 | F127: =SUM(D127*E127) -> 12.295
B128: Custom Application | C128: acre | D128: 1 | E128: ='Input Price List'!B$40 -> 11.81 | F128: =SUM(D128*E128) -> 11.81
A129: Pest Control | B129: Pest Control Application | C129: acre | D129: 1 | E129: =+'Input Table'!AS$5 -> 6.51 | F129: =SUM(D129*E129) -> 6.51
B130: Custom Application | C130: acre | D130: 1 | E130: ='Input Price List'!B$40 -> 11.81 | F130: =SUM(D130*E130) -> 11.81
A131: Total Variable Expenses | F131: =SUM(F120:F130) -> 137.1782944
A132: Custom Machinery Cost
A133: Bush Hogging | C133: acre | D133: 1 | E133: =+'List Page'!B$33 -> 19.5 | F133: =SUM(D133*E133) -> 19.5
A134: Total Custom Machinery Cost | F134: =SUM(F133:F133) -> 19.5
A135: Interest on Operating Capital | B135: 6 months | C135: acre | D135: =SUM(F131) -> 137.1782944 | E135: =+'Input Price List'!B$2 -> 0.08 | F135: =SUM(D135*E135)/2 -> 5.487131778
A136: Cash Rent | C136: acre | D136: 1 | F136: =SUM(D136*E136) -> 0
A137: Total Budgeted Expenses | F137: =SUM(F131+F134+F135+F136) -> 162.1654262
A138: Bermudagrass, Establishment
A139: Estimated Expenses per Acre
F140: Amount
A141: Item | B141: Description | C141: Unit | D141: Quantity | E141: Price | F141: ($/acre)
A142: Expenses
A143: Burndown | B143: Burndown | C143: acre | D143: 1 | E143: =+'Input Price List'!D$37 -> 15.66 | F143: =D143*E143 -> 15.66
A144: Seed | B144: Bermudagrass | C144: lb | D144: =+'Input Table'!I$19 -> 6.5 | E144: =+'Input Price List'!B$9 -> 8.48 | F144: =D144*E144 -> 55.12
A145: Sprigging | B145: Bermudagrass | C145: acre | E145: =+'Input Price List'!B$10 -> 0 | F145: 0
A146: Fertilizer | B146: N | C146: lb | D146: =+'Input Table'!J$19 -> 60 | E146: ='Input Price List'!B$26 -> 0.5986413043 | F146: 35.91847826
B147: P2O5 | C147: lb | D147: =+'Input Table'!K$19 -> 40 | E147: ='Input Price List'!B$27 -> 0.6135751418 | F147: 24.54300567
B148: K2O | C148: lb | D148: =+'Input Table'!L$19 -> 80 | E148: ='Input Price List'!B$28 -> 0.4088 | F148: 32.704
B149: Custom Application | C149: acre | D149: 1 | E149: ='Input Price List'!B$30 -> 12.71 | F149: 12.71
A150: Lime & Application | B150: Custom Application | C150: ton | D150: =+'Input Table'!M$19 -> 2 | E150: ='Input Price List'!B$32 -> 43.63 | F150: 87.26
A151: Total Variable Expenses | F151: =SUM(F143:F150) -> 263.9154839
A152: Custom Machinery Cost
A153: Spraying | C153: acre | D153: 1 | E153: =+'List Page'!B$31 -> 11.81 | F153: =SUM(D153*E153) -> 11.81
A154: No-till Drill | C154: acre | D154: 1 | E154: =+'List Page'!B$32 -> 17.08 | F154: 17.08
A155: Sprigging | C155: acre | D155: 1 | E155: =+'List Page'!C$36 -> 0 | F155: 0
A156: Total Custom Machinery Cost | F156: =SUM(F153:F155) -> 28.89
A157: Interest on Operating Capital | B157: 6 months | C157: acre | D157: =SUM(F143:F150) -> 263.9154839 | E157: =+'Input Price List'!B$2 -> 0.08 | F157: =SUM(D157*E157)/2 -> 10.55661936
A158: Total Budgeted Expenses | F158: =SUM(F151+F156) -> 292.8054839

Sheet Cool Season Grass Hay
A1: Cool Season Grass, Hay | P1: =CONCATENATE("Cool Season Grass, Hay","- ",+B6) -> Cool Season Grass, Hay- Fescue
A2: Estimated Expenses per Acre | P2: Sensitivity Analysis | X2: Sensitivity Analysis
F3: Amount | G3: Amount | H3: Amount | P3: Return Above Variable Expenses
A4: Item | B4: Description | C4: Unit | D4: Quantity | E4: Price | F4: ($/acre) | G4: ($/ton) | H4: ($/bale) | I4: =IF(+'Budget Generator'!C$3="Hay",+'Budget Generator'!C$9," ") -> Round | S4: Price ($/ton) | Y4: Variable Costs | AA4: Total Costs
A5: Income | I5: =IF(+'Budget Generator'!C$9="Round",+'Budget Generator'!C$10,"Square") -> 4x5 | J5: Bale per Acre | Q5: =SUM(R5-25) -> 100 | R5: =SUM(S5-25) -> 125 | S5: =+E6 -> 150 | T5: =SUM(S5+25) -> 175 | U5: =SUM(T5+25) -> 200 | Y5: (per bale) | AA5: (per bale)
A6: Hay | B6: =+ForageSpecies -> Fescue | C6: ton | D6: =+'Input Table'!B$10 -> 3 | E6: =IF(I$4="Round",'Input Price List'!G$1,'Input Price List'!H$1) -> 150 | F6: =D6*E6 -> 450 | G6: =SUM(F6/D6) -> 150 | H6: =SUM(F6/J$6) -> 53.25 | I6: =+'Budget Generator'!E$10 -> 710 | J6: =SUM($D$6*2000)/$I$6 -> 8.450704225 | P6: =SUM(P7-0.5) -> 2 | Q6: =SUM(Q$5*P6)-$F$19 -> 26.84986456 | R6: =SUM(R$5*$P6)-$F$19 -> 76.84986456 | S6: 126.8498646 | T6: 176.8498646 | U6: 226.8498646 | W6: Yield (ton) | X6: =X7-(X7*0.25) -> 1.6875 | Y6: =($F$19/((X6*2000)/$I$6)) -> 36.42565812 | AA6: =($F$34/((X6*2000)/$I$6)) -> 95.1595823
A7: Expenses | P7: =SUM(P8-0.5) -> 2.5 | Q7: =SUM(Q$5*P7)-$F$19 -> 76.84986456 | R7: 139.3498646 | S7: 201.8498646 | T7: 264.3498646 | U7: 326.8498646 | X7: =X8-(X8*0.25) -> 2.25 | Y7: =($F$19/((X7*2000)/$I$6)) -> 27.31924359 | AA7: =($F$34/((X7*2000)/$I$6)) -> 71.36968673
A8: Prorated Establishment Costs | C8: acre | D8: =SUM(1/I41) -> 0.1666666667 | E8: =+F$56 -> 255.8250175 | F8: =D8*E8 -> 42.63750292 | G8: =SUM(F8/D6) -> 14.21250097 | H8: =SUM(F8/J$6) -> 5.045437846 | O8: Yield | P8: =+D6 -> 3 | Q8: =SUM(Q$5*P8)-$F$19 -> 126.8498646 | R8: 201.8498646 | S8: 276.8498646 | T8: 351.8498646 | U8: 426.8498646 | X8: =+D6 -> 3 | Y8: =($F$19/((X8*2000)/$I$6)) -> 20.48943269 | AA8: =($F$34/((X8*2000)/$I$6)) -> 53.52726505
A9: Fertilizer | B9: N | C9: lb | D9: =+'Budget Generator'!C$16 -> 60 | E9: ='Input Price List'!B$26 -> 0.5986413043 | F9: =SUM(D9*E9) -> 35.91847826 | G9: =SUM(F9/D6) -> 11.97282609 | H9: 4.250353261 | O9: (ton) | P9: =SUM(P8+0.5) -> 3.5 | Q9: =SUM(Q$5*P9)-$F$19 -> 176.8498646 | R9: 264.3498646 | S9: 351.8498646 | T9: 439.3498646 | U9: 526.8498646 | X9: =X8+(X8*0.25) -> 3.75 | Y9: =($F$19/((X9*2000)/$I$6)) -> 16.39154615 | AA9: =($F$34/((X9*2000)/$I$6)) -> 42.82181204
B10: P2O5 | C10: lb | D10: =+'Budget Generator'!C$17 -> 30 | E10: ='Input Price List'!B$27 -> 0.6135751418 | F10: 18.40725425 | G10: =SUM(F10/D6) -> 6.135751418 | H10: 2.178191753 | P10: =SUM(P9+0.5) -> 4 | Q10: =SUM(Q$5*P10)-$F$19 -> 226.8498646 | R10: 326.8498646 | S10: 426.8498646 | T10: 526.8498646 | U10: 626.8498646 | X10: =X9+(X9*0.25) -> 4.6875 | Y10: =($F$19/((X10*2000)/$I$6)) -> 13.11323692 | AA10: =($F$34/((X10*2000)/$I$6)) -> 34.25744963
B11: K2O | C11: lb | D11: =+'Budget Generator'!C$18 -> 30 | E11: ='Input Price List'!B$28 -> 0.4088 | F11: 12.264 | G11: =SUM(F11/D6) -> 4.088 | H11: 1.45124
B12: Custom Application | C12: acre | D12: 2 | E12: ='Input Price List'!B$30 -> 12.71 | F12: 25.42 | G12: =SUM(F12/D6) -> 8.473333333 | H12: 3.008033333 | P12: Return Above Fixed Expenses | X12: Return Above Fixed Expenses
A13: Lime & Application | B13: Custom Application | C13: ton | D13: =+'Budget Generator'!C$19 -> 0.33 | E13: ='Input Price List'!B$32 -> 43.63 | F13: 14.3979 | G13: =SUM(F13/D6) -> 4.7993 | H13: 1.7037515 | S13: Price ($/ton) | AA13: Price ($/bale)
A14: Weed Control | Q14: =SUM(R14-25) -> 100 | R14: =SUM(S14-25) -> 125 | S14: =+E6 -> 150 | T14: =SUM(S14+25) -> 175 | U14: =SUM(T14+25) -> 200 | Y14: =IF($I$4="Round",SUM(Z14-5),SUM(Z14-1)) -> 43.25 | Z14: =IF($I$4="Round",SUM(AA14-5),SUM(AA14-1)) -> 48.25 | AA14: =+H6 -> 53.25 | AB14: =IF($I$4="Round",SUM(AA14+5),SUM(AA14+1)) -> 58.25 | AC14: =IF($I$4="Round",SUM(AB14+5),SUM(AB14+1)) -> 63.25
A15: Post-Emerge | B15: Herbicide Application | C15: acre | D15: 1 | E15: =+'Input Table'!AF$5 -> 12.295 | F15: =SUM(D15*E15) -> 12.295 | G15: =SUM(F15/D6) -> 4.098333333 | H15: =SUM(F15/J$6) -> 1.454908333 | P15: =SUM(P16-0.5) -> 2 | Q15: =SUM(Q$5*P15)-$F$34 -> -252.3430849 | R15: =SUM(R$5*$P15)-$F$34 -> -202.3430849 | S15: -152.3430849 | T15: -102.3430849 | U15: -52.34308489 | W15: Yield (bale) | X15: =SUM(X16-2) -> 4.450704225 | Y15: =SUM((Y$14*$X15)-$F$34)/$X15 -> -58.38404756 | Z15: -53.38404756 | AA15: -48.38404756 | AB15: -43.38404756 | AC15: -38.38404756
B16: Custom Application | C16: acre | D16: 1 | E16: ='Input Price List'!B$40 -> 11.81 | F16: =SUM(D16*E16) -> 11.81 | G16: =SUM(F16/D6) -> 3.936666667 | H16: =SUM(F16/J$6) -> 1.397516667 | P16: =SUM(P17-0.5) -> 2.5 | Q16: =SUM(Q$5*P16)-$F$34 -> -202.3430849 | R16: -139.8430849 | S16: -77.34308489 | T16: -14.84308489 | U16: 47.65691511 | X16: =SUM(X17-2) -> 6.450704225 | Y16: -26.87305465 | Z16: -21.87305465 | AA16: -16.87305465 | AB16: -11.87305465 | AC16: -6.873054645
A17: Pest Control | B17: Pest Control Application | C17: acre | E17: =+'Input Table'!AS$5 -> 6.51 | F17: =SUM(D17*E17) -> 0 | G17: =SUM(F17/D6) -> 0 | H17: =SUM(F17/J$6) -> 0 | O17: Yield | P17: =+D6 -> 3 | Q17: =SUM(Q$5*P17)-$F$34 -> -152.3430849 | R17: -77.34308489 | S17: -2.343084894 | T17: 72.65691511 | U17: 147.6569151 | X17: =+J6 -> 8.450704225 | Y17: -10.27726505 | Z17: -5.277265046 | AA17: -0.2772650458 | AB17: 4.722734954 | AC17: 9.722734954
B18: Custom Application | C18: acre | E18: ='Input Price List'!B$40 -> 11.81 | F18: =SUM(D18*E18) -> 0 | G18: =SUM(F18/D6) -> 0 | H18: =SUM(F18/J$6) -> 0 | O18: (ton) | P18: =SUM(P17+0.5) -> 3.5 | Q18: =SUM(Q$5*P18)-$F$34 -> -102.3430849 | R18: -14.84308489 | S18: 72.65691511 | T18: 160.1569151 | U18: 247.6569151 | X18: =SUM(X17+2) -> 10.45070423 | Y18: -0.03350273245 | Z18: 4.966497268 | AA18: 9.966497268 | AB18: 14.96649727 | AC18: 19.96649727
A19: Total Variable Expenses | F19: =SUM(F8:F18) -> 173.1501354 | G19: =SUM(G8:G18) -> 57.71671181 | H19: =SUM(H8:H18) -> 20.48943269 | P19: =SUM(P18+0.5) -> 4 | Q19: =SUM(Q$5*P19)-$F$34 -> -52.34308489 | R19: 47.65691511 | S19: 147.6569151 | T19: 247.6569151 | U19: 347.6569151 | X19: =SUM(X18+2) -> 12.45070423 | Y19: 6.919277118 | Z19: 11.91927712 | AA19: 16.91927712 | AB19: 21.91927712 | AC19: 26.91927712
A20: Return over Variable Expenses | F20: =F6-F19 -> 276.8498646 | G20: =F20/D6 -> 92.28328819 | H20: =SUM(H6-H19) -> 32.76056731
A21: Custom Machinery Cost | O21: Hay
A22: Disk Mowing | C22: cutting | D22: =+'Budget Generator'!C$11 -> 2 | E22: =+'List Page'!B$26 -> 16.5 | F22: =SUM(D22*E22) -> 33 | G22: =SUM(F22/D6) -> 11 | H22: =SUM(F22/J$6) -> 3.905 | O22: * | P22: The budget is based on custom rates for machinery processes. Labor, operating, maintenance, and ownership costs are included in these rates.
A23: Tedding | C23: cutting | D23: =+'Budget Generator'!C$11 -> 2 | E23: =+'List Page'!B$27 -> 6.67 | F23: =SUM(D23*E23) -> 13.34 | G23: =SUM(F23/D6) -> 4.446666667 | H23: =SUM(F23/J$6) -> 1.578566667 | P23: The baling rate includes binding.
A24: Raking | C24: cutting | D24: =+'Budget Generator'!C$11 -> 2 | E24: =+'List Page'!B$28 -> 8.67 | F24: =SUM(D24*E24) -> 17.34 | G24: =SUM(F24/D6) -> 5.78 | H24: =SUM(F24/J$6) -> 2.0519 | O24: * | P24: The budget is based on no-till establishment.
A25: Baling | C25: cutting | D25: =+'Budget Generator'!C$11 -> 2 | E25: =IF($I$4="Square",+'List Page'!$C$29,+'List Page'!B$39) -> 13.17 | F25: =SUM(D26*E25) -> 111.2957746 | G25: =SUM(F25/D6) -> 37.09859155 | H25: =SUM(F25/J$6) -> 13.17 | O25: * | P25: Sixty pounds of nitrogen will be applied in March, with the remainder applied during the growing season. If clover is included, it is assumed that
A26: Hauling | C26: bale | D26: =+J$6 -> 8.450704225 | E26: =IF($I$4="Round",+'List Page'!$C$30,'List Page'!$D$30) -> 5.42 | F26: =(E26*D26) -> 45.8028169 | G26: =SUM(F26/D6) -> 15.26760563 | H26: =SUM(F26/J$6) -> 5.42 | P26: 60 pounds of nitrogen will come from the clover.
A27: Total Custom Machinery Cost | F27: =SUM(F22:F26) -> 220.7785915 | G27: =SUM(G22:G26) -> 73.59286385 | H27: =SUM(H22:H26) -> 26.12546667 | O27: * | P27: Lime prorated at one ton over three years.
A28: Interest on Operating Capital | B28: 6 months | C28: acre | D28: =SUM(F19) -> 173.1501354 | E28: =+'Input Price List'!B$2 -> 0.08 | F28: =SUM(D28*E28)/2 -> 6.926005418 | G28: =F28/D6 -> 2.308668473 | H28: =SUM(F28/J$6) -> 0.8195773077 | O28: * | P28: For a more accurate fertilizer and lime recommendation, take a soil sample. | W28: (Instructions on how to take a soil sample.)
A29: Cash Rent | C29: acre | D29: 1 | F29: =SUM(D29*E29) -> 0 | G29: =F29/D6 -> 0 | H29: =SUM(F29/J$6) -> 0 | O29: * | P29: The post-emergence weed control is based on an average of three common practices. Burndown is a common practice. For weed control and/or burndown
A30: Storage | P30: recommendations, contact the county Extension office. | U30: (County office contact information.)
A31: Fixed Cost | B31: =+'Budget Generator'!C$13 -> Hay Barn | C31: bale | D31: =$D$6*2000/$I$6 -> 8.450704225 | E31: =IF(B$31="Hay Barn",+'List Page'!C$18,IF(B$31="Stacked/tarped",+'List Page'!C$19,+'List Page'!C$20)) -> 4.432581695 | F31: =SUM(D31*E31) -> 37.45843686 | G31: =F31/D6 -> 12.48614562 | H31: =SUM(F31/J$6) -> 4.432581695 | O31: * | P31: Storage loss is based on an average of multiple studies.
A32: Shrinkage Loss | C32: annual | D32: =IF(B$31="Hay barn",+'List Page'!B$18,IF(B$31="Stacked/tarped",+'List Page'!B$19,+'List Page'!B$20)) -> 0.035 | E32: =SUM(F19+F27+F28+F29) -> 400.8547324 | F32: =D32*E32 -> 14.02991563 | G32: =F32/D6 -> 4.676638545 | H32: =SUM(F32/J$6) -> 1.660206683 | O32: * | P32: Establishment pro-rated expenses for hay are set for six years.
A33: Total Storage Cost | F33: =SUM(F31:F32) -> 51.48835249 | G33: =SUM(G31:G32) -> 17.16278416 | H33: =SUM(H31:H32) -> 6.092788378
A34: Total Budgeted Expenses | F34: =SUM(F19+F27+F28+F33+F29) -> 452.3430849 | G34: =SUM(G19+G27+G28+G33+G29) -> 150.7810283 | H34: =SUM(H19+H27+H28+H33+H29) -> 53.52726505
A35: Return to Land & Management | F35: =F6-F34 -> -2.343084894 | G35: =G6-G34 -> -0.781028298 | H35: =H6-H34 -> -0.2772650458
A38: Cool Season Grass, Establishment | I38: Establishment Prorated Over Years
A39: Estimated Expenses per Acre
F40: Amount
A41: Item | B41: Description | C41: Unit | D41: Quantity | E41: Price | F41: ($/acre) | I41: 6
A42: Expenses
A43: Burndown | B43: Burndown | C43: acre | D43: 1 | E43: =+'Input Price List'!D$37 -> 15.66 | F43: =D43*E43 -> 15.66
A44: Seed | B44: =+ForageSpecies -> Fescue | C44: lb | D44: =IF(B$44="Fescue",'Input Table'!I$5,+'Input Table'!I$6) -> 17.5 | E44: =IF(B$44="Fescue",'Input Price List'!B$13,+'Input Price List'!B$15) -> 1.33 | F44: =E44*D44 -> 23.275
A45: Fertilizer | B45: N | C45: lb | D45: =IF(B$44="Fescue",'Input Table'!J$5,+'Input Table'!J$6) -> 30 | E45: ='Input Price List'!B$26 -> 0.5986413043 | F45: =SUM(D45*E45) -> 17.95923913
B46: P2O5 | C46: lb | D46: =IF(B$44="Fescue",'Input Table'!K$5,+'Input Table'!K$6) -> 60 | E46: ='Input Price List'!B$27 -> 0.6135751418 | F46: =SUM(D46*E46) -> 36.81450851
B47: K2O | C47: lb | D47: =IF(B$44="Fescue",'Input Table'!L$5,+'Input Table'!L$6) -> 60 | E47: ='Input Price List'!B$28 -> 0.4088 | F47: =SUM(D47*E47) -> 24.528
B48: Custom Application | C48: acre | D48: 1 | E48: ='Input Price List'!B$30 -> 12.71 | F48: =SUM(D48*E48) -> 12.71
A49: Lime & Application | B49: Custom Application | C49: ton | D49: =IF(B$44="Fescue",'Input Table'!M$5,+'Input Table'!M$6) -> 2 | E49: ='Input Price List'!B$32 -> 43.63 | F49: =SUM(D49*E49) -> 87.26
A50: Total Variable Expenses | F50: =SUM(F43:F49) -> 218.2067476
A51: Custom Machinery Cost
A52: Spraying | C52: acre | D52: 1 | E52: =+'List Page'!B$31 -> 11.81 | F52: =SUM(D52*E52) -> 11.81
A53: No-till Drill | C53: acre | D53: 1 | E53: =+'List Page'!B$32 -> 17.08 | F53: =SUM(D53*E53) -> 17.08
A54: Total Custom Machinery Cost | F54: =SUM(F52:F53) -> 28.89
A55: Interest on Operating Capital | B55: 6 months | C55: acre | D55: =SUM(F43:F49) -> 218.2067476 | E55: =+'Input Price List'!B$2 -> 0.08 | F55: =SUM(D55*E55)/2 -> 8.728269905
A56: Total Budgeted Expenses | F56: =SUM(F50+F54+F55) -> 255.8250175
A115: Cool Season Grass, Hay
A116: Estimated Expenses per Acre
F117: Amount | G117: Amount | H117: Amount
A118: Item | B118: Description | C118: Unit | D118: Quantity | E118: Price | F118: ($/acre) | G118: ($/ton) | H118: ($/bale)
A119: Income
A120: Hay | B120: =+ForageSpecies -> Fescue | C120: ton | D120: =+'Input Table'!B$10 -> 3 | E120: =IF(I$4="Round",'Input Price List'!G$1,'Input Price List'!H$1) -> 150 | F120: =D120*E120 -> 450 | G120: =SUM(F120/D120) -> 150 | H120: =SUM(F120/J$6) -> 53.25
A121: Expenses
A122: Prorated Establishment Costs | C122: acre | D122: =SUM(1/I41) -> 0.1666666667 | E122: =+F$56 -> 255.8250175 | F122: =D122*E122 -> 42.63750292 | G122: =SUM(F122/D120) -> 14.21250097 | H122: =SUM(F122/J$6) -> 5.045437846
A123: Fertilizer | B123: N | C123: lb | D123: =+'Budget Generator'!C$16 -> 60 | E123: ='Input Price List'!B$26 -> 0.5986413043 | F123: =SUM(D123*E123) -> 35.91847826 | G123: =SUM(F123/D120) -> 11.97282609 | H123: 4.250353261
B124: P2O5 | C124: lb | D124: =+'Budget Generator'!C$17 -> 30 | E124: ='Input Price List'!B$27 -> 0.6135751418 | F124: 18.40725425 | G124: =SUM(F124/D120) -> 6.135751418 | H124: 2.178191753
B125: K2O | C125: lb | D125: =+'Budget Generator'!C$18 -> 30 | E125: ='Input Price List'!B$28 -> 0.4088 | F125: 12.264 | G125: =SUM(F125/D120) -> 4.088 | H125: 1.45124
B126: Custom Application | C126: acre | D126: 2 | E126: ='Input Price List'!B$30 -> 12.71 | F126: 25.42 | G126: =SUM(F126/D120) -> 8.473333333 | H126: 3.008033333
A127: Lime & Application | B127: Custom Application | C127: ton | D127: =+'Budget Generator'!C$19 -> 0.33 | E127: ='Input Price List'!B$32 -> 43.63 | F127: 14.3979 | G127: =SUM(F127/D120) -> 4.7993 | H127: 1.7037515
A128: Weed Control
A129: Post-Emerge | B129: Herbicide Application | C129: acre | D129: 1 | E129: =+'Input Table'!AF$5 -> 12.295 | F129: =SUM(D129*E129) -> 12.295 | G129: =SUM(F129/D120) -> 4.098333333 | H129: =SUM(F129/J$6) -> 1.454908333
B130: Custom Application | C130: acre | D130: 1 | E130: ='Input Price List'!B$40 -> 11.81 | F130: =SUM(D130*E130) -> 11.81 | G130: =SUM(F130/D120) -> 3.936666667 | H130: =SUM(F130/J$6) -> 1.397516667
A131: Pest Control | B131: Pest Control Application | C131: acre | E131: =+'Input Table'!AS$5 -> 6.51 | F131: =SUM(D131*E131) -> 0 | G131: =SUM(F131/D120) -> 0 | H131: =SUM(F131/J$6) -> 0
B132: Custom Application | C132: acre | E132: ='Input Price List'!B$40 -> 11.81 | F132: =SUM(D132*E132) -> 0 | G132: =SUM(F132/D120) -> 0 | H132: =SUM(F132/J$6) -> 0
A133: Total Variable Expenses | F133: =SUM(F122:F132) -> 173.1501354 | G133: =F133/D120 -> 57.71671181 | H133: =SUM(H122:H132) -> 20.48943269
A134: Return over Variable Expenses | F134: =F120-F133 -> 276.8498646 | G134: =F134/D120 -> 92.28328819 | H134: =SUM(H120-H133) -> 32.76056731
A135: Custom Machinery Cost
A136: Disk Mowing | C136: cutting | D136: =+'Budget Generator'!C$11 -> 2 | E136: =+'List Page'!B$26 -> 16.5 | F136: =SUM(D136*E136) -> 33 | G136: =SUM(F136/D120) -> 11 | H136: =SUM(F136/J$6) -> 3.905
A137: Tedding | C137: cutting | D137: =+'Budget Generator'!C$11 -> 2 | E137: =+'List Page'!B$27 -> 6.67 | F137: =SUM(D137*E137) -> 13.34 | G137: =SUM(F137/D120) -> 4.446666667 | H137: =SUM(F137/J$6) -> 1.578566667
A138: Raking | C138: cutting | D138: =+'Budget Generator'!C$11 -> 2 | E138: =+'List Page'!B$28 -> 8.67 | F138: =SUM(D138*E138) -> 17.34 | G138: =SUM(F138/D120) -> 5.78 | H138: =SUM(F138/J$6) -> 2.0519
A139: Baling | C139: cutting | D139: =+'Budget Generator'!C$11 -> 2 | E139: =IF($I$4="Square",+'List Page'!$C$29,+'List Page'!B$39) -> 13.17 | F139: =SUM(D140*E139) -> 111.2957746 | G139: =SUM(F139/D120) -> 37.09859155 | H139: =SUM(F139/J$6) -> 13.17
A140: Hauling | C140: bale | D140: =+J$6 -> 8.450704225 | E140: =IF($I$4="Round",+'List Page'!$C$30,'List Page'!$D$30) -> 5.42 | F140: =(E140*D140) -> 45.8028169 | G140: =SUM(F140/D120) -> 15.26760563 | H140: =SUM(F140/J$6) -> 5.42
A141: Total Custom Machinery Cost | F141: =SUM(F136:F140) -> 220.7785915 | G141: =SUM(G136:G140) -> 73.59286385 | H141: =SUM(H136:H140) -> 26.12546667
A142: Interest on Operating Capital | B142: 6 months | C142: acre | D142: =SUM(F133) -> 173.1501354 | E142: =+'Input Price List'!B$2 -> 0.08 | F142: =SUM(D142*E142)/2 -> 6.926005418 | G142: =F142/D120 -> 2.308668473 | H142: =SUM(F142/J$6) -> 0.8195773077
A143: Cash Rent | C143: acre | D143: 1 | F143: =SUM(D143*E143) -> 0 | G143: =F143/D120 -> 0 | H143: =SUM(F143/J$6) -> 0
A144: Storage
A145: Fixed Cost | B145: =+'Budget Generator'!C$13 -> Hay Barn | C145: bale | D145: =$D$6*2000/$I$6 -> 8.450704225 | E145: =IF(B$31="Hay Barn",+'List Page'!C$18,IF(B$31="Stacked/tarped",+'List Page'!C$19,+'List Page'!C$20)) -> 4.432581695 | F145: =SUM(D145*E145) -> 37.45843686 | G145: =F145/D120 -> 12.48614562 | H145: =SUM(F145/J$6) -> 4.432581695
A146: Shrinkage Loss | C146: annual | D146: =IF(B$31="Hay barn",+'List Page'!B$18,IF(B$31="Stacked/tarped",+'List Page'!B$19,+'List Page'!B$20)) -> 0.035 | E146: =SUM(H133+H141+H142) -> 47.43447667 | F146: =D146*E146*D145 -> 14.02991563 | G146: =F146/D120 -> 4.676638545 | H146: =SUM(F146/J$6) -> 1.660206683
A147: Total Storage Cost | F147: =SUM(F145:F146) -> 51.48835249 | G147: =SUM(G145:G146) -> 17.16278416 | H147: =SUM(H145:H146) -> 6.092788378
A148: Total Budgeted Expenses | F148: =SUM(F133+F141+F142+F147+F143) -> 452.3430849 | G148: =SUM(G133+G141+G142+G147+G143) -> 150.7810283 | H148: =SUM(H133+H141+H142+H147+H143) -> 53.52726505
A149: Return to Land & Management | F149: =F120-F148 -> -2.343084894 | G149: =G120-G148 -> -0.781028298 | H149: =H120-H148 -> -0.2772650458
A151: Cool Season Grass, Establishment | I151: Establishment Prorated Over Years
A152: Estimated Expenses per Acre
F153: Amount
A154: Item | B154: Description | C154: Unit | D154: Quantity | E154: Price | F154: ($/acre) | I154: 6
A155: Expenses
A156: Burndown | B156: Burndown | C156: acre | D156: 1 | E156: =+'Input Price List'!D$37 -> 15.66 | F156: =D156*E156 -> 15.66
A157: Seed | B157: =+ForageSpecies -> Fescue | C157: lb | D157: =IF(B$44="Fescue",'Input Table'!I$5,+'Input Table'!I$6) -> 17.5 | E157: =IF(B$44="Fescue",'Input Price List'!B$13,+'Input Price List'!B$15) -> 1.33 | F157: =E157*D157 -> 23.275
A158: Fertilizer | B158: N | C158: lb | D158: =IF(B$44="Fescue",'Input Table'!J$5,+'Input Table'!J$6) -> 30 | E158: ='Input Price List'!B$26 -> 0.5986413043 | F158: =SUM(D158*E158) -> 17.95923913
B159: P2O5 | C159: lb | D159: =IF(B$44="Fescue",'Input Table'!K$5,+'Input Table'!K$6) -> 60 | E159: ='Input Price List'!B$27 -> 0.6135751418 | F159: =SUM(D159*E159) -> 36.81450851
B160: K2O | C160: lb | D160: =IF(B$44="Fescue",'Input Table'!L$5,+'Input Table'!L$6) -> 60 | E160: ='Input Price List'!B$28 -> 0.4088 | F160: =SUM(D160*E160) -> 24.528
B161: Custom Application | C161: acre | D161: 1 | E161: ='Input Price List'!B$30 -> 12.71 | F161: =SUM(D161*E161) -> 12.71
A162: Lime & Application | B162: Custom Application | C162: ton | D162: =IF(B$44="Fescue",'Input Table'!M$5,+'Input Table'!M$6) -> 2 | E162: ='Input Price List'!B$32 -> 43.63 | F162: =SUM(D162*E162) -> 87.26
A163: Total Variable Expenses | F163: =SUM(F156:F162) -> 218.2067476
A164: Custom Machinery Cost
A165: Spraying | C165: acre | D165: 1 | E165: =+'List Page'!B$31 -> 11.81 | F165: =SUM(D165*E165) -> 11.81
A166: No-till Drill | C166: acre | D166: 1 | E166: =+'List Page'!B$32 -> 17.08 | F166: =SUM(D166*E166) -> 17.08
A167: Total Custom Machinery Cost | F167: =SUM(F165:F166) -> 28.89
A168: Interest on Operating Capital | B168: 6 months | C168: acre | D168: =SUM(F156:F162) -> 218.2067476 | E168: =+'Input Price List'!B$2 -> 0.08 | F168: =SUM(D168*E168)/2 -> 8.728269905
A169: Total Budgeted Expenses | F169: =SUM(F163+F167+F168) -> 255.8250175

Sheet Cool Season Grass Baleage
A1: Cool Season Grass, Baleage | P1: Sensitivity Analysis
A2: Estimated Expenses per Acre | P2: Return Above Variable Expenses
F3: Amount | G3: Amount | H3: Amount | S3: Price ($/ton)
A4: Item | B4: Description | C4: Unit | D4: Quantity | E4: Price | F4: ($/acre) | G4: ($/ton) | H4: ($/bale) | I4: =+'Budget Generator'!C$9 -> Round | Q4: =SUM(R4-25) -> -50 | R4: =SUM(S4-25) -> -25 | S4: =+E6 -> 0 | T4: =SUM(S4+25) -> 25 | U4: =SUM(T4+25) -> 50
A5: Income | I5: =IF(+'Budget Generator'!C$9="Round",+'Budget Generator'!C$10,"Square") -> 4x5 | J5: Bale per Acre | P5: =SUM(P6-0.5) -> 3.8 | Q5: =IF($E$6>0,SUM(Q$4*$P5)-$F$19," ") ->  | R5: =IF($E$6>0,SUM(R$4*$P5)-$F$19," ") -> 
A6: Hay | B6: =+ForageSpecies -> Fescue | C6: ton | D6: =+'Input Table'!B$10*1.6 -> 4.8 | F6: =D6*E6 -> 0 | G6: =SUM(F6/D6) -> 0 | H6: =SUM(F6/J$6) -> 0 | I6: =+'Budget Generator'!E$10 -> 710 | J6: =SUM($D$6*2000)/$I$6 -> 13.52112676 | P6: =SUM(P7-0.5) -> 4.3 | Q6: =IF($E$6>0,SUM(Q$4*$P6)-$F$19," ") -> 
A7: Expenses | O7: Yield | P7: =+D6 -> 4.8
A8: Prorated Establishment Costs | C8: acre | D8: =SUM(1/I41) -> 0.1666666667 | E8: =+F$56 -> 255.8250175 | F8: =D8*E8 -> 42.63750292 | G8: =SUM(F8/D6) -> 8.882813109 | H8: =SUM(F8/J$6) -> 3.153398654 | O8: (ton) | P8: =SUM(P7+0.5) -> 5.3 | S8: =IF($E$6>0,SUM(S$4*$P8)-$F$19," ") -> 
A9: Fertilizer | B9: N | C9: lb | D9: =+'Budget Generator'!C$16 -> 60 | E9: ='Input Price List'!B$26 -> 0.5986413043 | F9: =SUM(D9*E9) -> 35.91847826 | G9: =SUM(F9/D6) -> 7.483016304 | H9: 2.656470788 | P9: =SUM(P8+0.5) -> 5.8 | U9: =IF($E$6>0,SUM(U$4*$P9)-$F$19," ") -> 
B10: P2O5 | C10: lb | D10: =+'Budget Generator'!C$17 -> 30 | E10: ='Input Price List'!B$27 -> 0.6135751418 | F10: 18.40725425 | G10: =SUM(F10/D6) -> 3.834844636 | H10: 1.361369846
B11: K2O | C11: lb | D11: =+'Budget Generator'!C$18 -> 30 | E11: ='Input Price List'!B$28 -> 0.4088 | F11: 12.264 | G11: =SUM(F11/D6) -> 2.555 | H11: 0.907025 | P11: Return Above Fixed Expenses
B12: Custom Application | C12: acre | D12: 2 | E12: ='Input Price List'!B$30 -> 12.71 | F12: 25.42 | G12: =SUM(F12/D6) -> 5.295833333 | H12: 1.880020833 | S12: Price ($/ton)
A13: Lime & Application | B13: Custom Application | C13: ton | D13: =+'Budget Generator'!C$19 -> 0.33 | E13: ='Input Price List'!B$32 -> 43.63 | F13: 14.3979 | G13: =SUM(F13/D6) -> 2.9995625 | H13: 1.064844687 | Q13: =SUM(R13-25) -> -50 | R13: =SUM(S13-25) -> -25 | S13: =+E6 -> 0 | T13: =SUM(S13+25) -> 25 | U13: =SUM(T13+25) -> 50
A14: Weed Control | P14: =SUM(P15-0.5) -> 3.8 | Q14: =IF($E$6>0,SUM(Q$4*$P14)-$F$33," ") ->  | R14: =IF($E$6>0,SUM(R$4*$P14)-$F$33," ") ->  | S14: =IF($E$6>0,SUM(S$4*$P14)-$F$33," ") ->  | T14: =IF($E$6>0,SUM(T$4*$P14)-$F$33," ") ->  | U14: =IF($E$6>0,SUM(U$4*$P14)-$F$33," ") -> 
A15: Post-Emerge | B15: Herbicide Application | C15: acre | D15: 1 | E15: =+'Input Table'!AF$5 -> 12.295 | F15: =SUM(D15*E15) -> 12.295 | G15: =SUM(F15/D6) -> 2.561458333 | H15: =SUM(F15/J$6) -> 0.9093177083 | P15: =SUM(P16-0.5) -> 4.3 | Q15: =IF($E$6>0,SUM(Q$4*P15)-$F$33," ") ->  | R15: =IF($E$6>0,SUM(R$4*$P15)-$F$33," ") -> 
B16: Custom Application | C16: acre | D16: 1 | E16: ='Input Price List'!B$40 -> 11.81 | F16: =SUM(D16*E16) -> 11.81 | G16: =SUM(F16/D6) -> 2.460416667 | H16: =SUM(F16/J$6) -> 0.8734479167 | O16: Yield | P16: =+D6 -> 4.8 | Q16: =IF($E$6>0,SUM(Q$4*P16)-$F$33," ") -> 
A17: Pest Control | B17: Pest Control Application | C17: acre | E17: =+'Input Table'!AS$5 -> 6.51 | F17: =SUM(D17*E17) -> 0 | G17: =SUM(F17/D6) -> 0 | H17: =SUM(F17/J$6) -> 0 | O17: (ton) | P17: =SUM(P16+0.5) -> 5.3 | Q17: =IF($E$6>0,SUM(Q$4*P17)-$F$33," ") -> 
B18: Custom Application | C18: acre | E18: ='Input Price List'!B$40 -> 11.81 | F18: =SUM(D18*E18) -> 0 | G18: =SUM(F18/D6) -> 0 | H18: =SUM(F18/J$6) -> 0 | P18: =SUM(P17+0.5) -> 5.8 | Q18: =IF($E$6>0,SUM(Q$4*P18)-$F$33," ") -> 
A19: Total Variable Expenses | F19: =SUM(F8:F18) -> 173.1501354 | G19: =SUM(G8:G18) -> 36.07294488 | H19: =SUM(H8:H18) -> 12.80589543
A20: Return over Variable Expenses | F20: =IF(F6>0,F6-F19," ") ->  | G20: =IF(G6>0,F19/D6,"") ->  | H20: =IF(E6>0,SUM(H6-H19),"") -> 
A21: Custom Machinery Cost | O21: Baleage
A22: Disk Mowing | C22: cutting | D22: =+'Budget Generator'!C$11 -> 2 | E22: =+'List Page'!B$26 -> 16.5 | F22: =SUM(D22*E22) -> 33 | G22: =SUM(F22/D6) -> 6.875 | H22: =SUM(F22/J$6) -> 2.440625 | O22: * | P22: The budget is based on custom rates for machinery processes. Labor, operating, maintenance, and ownership costs are included in these rates.
A23: Tedding | C23: cutting | D23: =+'Budget Generator'!C$11 -> 2 | E23: =+'List Page'!B$27 -> 6.67 | F23: =SUM(D23*E23) -> 13.34 | G23: =SUM(F23/D6) -> 2.779166667 | H23: 0.9866041667 | P23: The baling rate includes binding.
A24: Raking | C24: cutting | D24: =+'Budget Generator'!C$11 -> 2 | E24: =+'List Page'!B$28 -> 8.67 | F24: =SUM(D24*E24) -> 17.34 | G24: =SUM(F24/D6) -> 3.6125 | H24: 1.2824375 | O24: * | P24: The budget is based on no-till establishment.
A25: Baling | C25: cutting | D25: =+'Budget Generator'!C$11 -> 2 | E25: =+'List Page'!B$39+2 -> 15.17 | F25: =SUM(D25*E25) -> 30.34 | G25: =SUM(F25/D6) -> 6.320833333 | H25: 2.243895833 | O25: * | P25: Based on inline tube wrapping.
A26: Hauling | C26: bale | D26: =+J$6 -> 13.52112676 | E26: ='List Page'!$C$30 -> 5.42 | F26: =SUM(D26*E26) -> 73.28450704 | G26: =SUM(F26/D6) -> 15.26760563 | H26: 5.42 | O26: * | P26: Sixty pounds of nitrogen will be applied in March, with the remainder applied during the growing season. If clover is included, it is assumed that
A27: Wrapping | C27: bale | D27: =+J$6 -> 13.52112676 | E27: =+'List Page'!C$35 -> 5.5 | F27: =(E27*D27) -> 74.36619718 | G27: =SUM(F27/D6) -> 15.49295775 | H27: 5.5 | P27: 60 pounds of nitrogen will come from the clover.
A28: Total Custom Machinery Cost | F28: =SUM(F22:F27) -> 241.6707042 | G28: =SUM(G22:G27) -> 50.34806338 | H28: =SUM(H22:H27) -> 17.8735625 | O28: * | P28: Lime prorated at one ton over three years.
A29: Interest on Operating Capital | B29: 6 months | C29: acre | D29: =SUM(F19) -> 173.1501354 | E29: =+'Input Price List'!B$2 -> 0.08 | F29: =SUM(D29*E29)/2 -> 6.926005418 | G29: =F29/D6 -> 1.442917795 | H29: =SUM(F29/J$6) -> 0.5122358173 | O29: * | P29: For a more accurate fertilizer and lime recommendation, take a soil sample. | W29: (Instructions on how to take a soil sample.)
A30: Cash Rent | C30: acre | D30: 1 | F30: =SUM(D30*E30) -> 0 | G30: =F30/D6 -> 0 | H30: =SUM(F30/J$6) -> 0 | O30: * | P30: The post-emergence weed control is based on an average of three common practices. Burndown is a common practice. For weed control and/or burndown
A31: Storage | P31: recommendations, contact the county Extension office. | U31: (County office contact information.)
A32: Shrinkage Loss | C32: annual | D32: =+'List Page'!$B$21 -> 0.15 | E32: =SUM(F19+F28+F29+F30) -> 421.7468451 | F32: =D32*E32 -> 63.26202676 | G32: =F32/D6 -> 13.17958891 | H32: =SUM(F32/J$6) -> 4.678754063 | O32: * | P32: Storage loss is based on an average of multiple studies.
A33: Total Budgeted Expenses | F33: =SUM(F19+F28+F29+F30) -> 421.7468451 | G33: =SUM(G19+G28+G29+G30) -> 87.86392606 | H33: =SUM(H19+H28+H29+H30) -> 31.19169375 | O33: * | P33: Establishment pro-rated expenses for hay are set for six years.
A34: Return to Land & Management | F34: =IF(F6>0,F6-F33," ") ->  | G34: =IF(G6>0,F34/D6,"") ->  | H34: =IF(E6>0,SUM(H6-H33),"") -> 
A38: Cool Season Grass, Establishment | I38: Establishment Prorated Over Years
A39: Estimated Expenses per Acre
F40: Amount
A41: Item | B41: Description | C41: Unit | D41: Quantity | E41: Price | F41: ($/acre) | I41: 6
A42: Expenses
A43: Burndown | B43: Burndown | C43: acre | D43: 1 | E43: =+'Input Price List'!D$37 -> 15.66 | F43: =D43*E43 -> 15.66
A44: Seed | B44: =+ForageSpecies -> Fescue | C44: lb | D44: =IF(B$44="Fescue",'Input Table'!I$5,+'Input Table'!I$6) -> 17.5 | E44: =IF(B$44="Fescue",'Input Price List'!B$13,+'Input Price List'!B$15) -> 1.33 | F44: =E44*D44 -> 23.275
A45: Fertilizer | B45: N | C45: lb | D45: =IF(B$44="Fescue",'Input Table'!J$5,+'Input Table'!J$6) -> 30 | E45: ='Input Price List'!B$26 -> 0.5986413043 | F45: =SUM(D45*E45) -> 17.95923913
B46: P2O5 | C46: lb | D46: =IF(B$44="Fescue",'Input Table'!K$5,+'Input Table'!K$6) -> 60 | E46: ='Input Price List'!B$27 -> 0.6135751418 | F46: =SUM(D46*E46) -> 36.81450851
B47: K2O | C47: lb | D47: =IF(B$44="Fescue",'Input Table'!L$5,+'Input Table'!L$6) -> 60 | E47: ='Input Price List'!B$28 -> 0.4088 | F47: =SUM(D47*E47) -> 24.528
B48: Custom Application | C48: acre | D48: 1 | E48: ='Input Price List'!B$30 -> 12.71 | F48: =SUM(D48*E48) -> 12.71
A49: Lime & Application | B49: Custom Application | C49: ton | D49: =IF(B$44="Fescue",'Input Table'!M$5,+'Input Table'!M$6) -> 2 | E49: ='Input Price List'!B$32 -> 43.63 | F49: =SUM(D49*E49) -> 87.26
A50: Total Variable Expenses | F50: =SUM(F43:F49) -> 218.2067476
A51: Custom Machinery Cost
A52: Spraying | C52: acre | D52: 1 | E52: =+'List Page'!B$31 -> 11.81 | F52: =SUM(D52*E52) -> 11.81
A53: No-till Drill | C53: acre | D53: 1 | E53: =+'List Page'!B$32 -> 17.08 | F53: =SUM(D53*E53) -> 17.08
A54: Total Custom Machinery Cost | F54: =SUM(F52:F53) -> 28.89
A55: Interest on Operating Capital | B55: 6 months | C55: acre | D55: =SUM(F43:F49) -> 218.2067476 | E55: =+'Input Price List'!B$2 -> 0.08 | F55: =SUM(D55*E55)/2 -> 8.728269905
A56: Total Budgeted Expenses | F56: =SUM(F50+F54+F55) -> 255.8250175
A115: Cool Season Grass, Baleage
A116: Estimated Expenses per Acre
F117: Amount | G117: Amount | H117: Amount
A118: Item | B118: Description | C118: Unit | D118: Quantity | E118: Price | F118: ($/acre) | G118: ($/ton) | H118: ($/bale)
A119: Income
A120: Hay | B120: =+ForageSpecies -> Fescue | C120: ton | D120: =+'Input Table'!B$10*1.6 -> 4.8 | F120: =D120*E120 -> 0 | G120: =SUM(F120/D120) -> 0 | H120: =SUM(F120/J$6) -> 0
A121: Expenses
A122: Prorated Establishment Costs | C122: acre | D122: =SUM(1/I155) ->  | E122: =+F$56 -> 255.8250175 | F122: =D122*E122 ->  | G122: =SUM(F122/D120) ->  | H122: =SUM(F122/J$6) -> 
A123: Fertilizer | B123: N | C123: lb | D123: =+'Budget Generator'!C$16 -> 60 | E123: ='Input Price List'!B$26 -> 0.5986413043 | F123: =SUM(D123*E123) -> 35.91847826 | G123: =SUM(F123/D120) -> 7.483016304 | H123: 2.656470788
B124: P2O5 | C124: lb | D124: =+'Budget Generator'!C$17 -> 30 | E124: ='Input Price List'!B$27 -> 0.6135751418 | F124: 18.40725425 | G124: =SUM(F124/D120) -> 3.834844636 | H124: 1.361369846
B125: K2O | C125: lb | D125: =+'Budget Generator'!C$18 -> 30 | E125: ='Input Price List'!B$28 -> 0.4088 | F125: 12.264 | G125: =SUM(F125/D120) -> 2.555 | H125: 0.907025
B126: Custom Application | C126: acre | D126: 2 | E126: ='Input Price List'!B$30 -> 12.71 | F126: 25.42 | G126: =SUM(F126/D120) -> 5.295833333 | H126: 1.880020833
A127: Lime & Application | B127: Custom Application | C127: ton | D127: =+'Budget Generator'!C$19 -> 0.33 | E127: ='Input Price List'!B$32 -> 43.63 | F127: 14.3979 | G127: =SUM(F127/D120) -> 2.9995625 | H127: 1.064844687
A128: Weed Control
A129: Post-Emerge | B129: Herbicide Application | C129: acre | D129: 1 | E129: =+'Input Table'!AF$5 -> 12.295 | F129: =SUM(D129*E129) -> 12.295 | G129: =SUM(F129/D120) -> 2.561458333 | H129: =SUM(F129/J$6) -> 0.9093177083
B130: Custom Application | C130: acre | D130: 1 | E130: ='Input Price List'!B$40 -> 11.81 | F130: =SUM(D130*E130) -> 11.81 | G130: =SUM(F130/D120) -> 2.460416667 | H130: =SUM(F130/J$6) -> 0.8734479167
A131: Pest Control | B131: Pest Control Application | C131: acre | E131: =+'Input Table'!AS$5 -> 6.51 | F131: =SUM(D131*E131) -> 0 | G131: =SUM(F131/D120) -> 0 | H131: =SUM(F131/J$6) -> 0
B132: Custom Application | C132: acre | E132: ='Input Price List'!B$40 -> 11.81 | F132: =SUM(D132*E132) -> 0 | G132: =SUM(F132/D120) -> 0 | H132: =SUM(F132/J$6) -> 0
A133: Total Variable Expenses | F133: =SUM(F122:F132) ->  | G133: =F133/D120 ->  | H133: =SUM(H122:H132) -> 
A134: Return over Variable Expenses | F134: =IF(F120>0,F120-F133," ") ->  | G134: =IF(G120>0,F133/D120,"") ->  | H134: =IF(E120>0,SUM(H120-H133),"") -> 
A135: Custom Machinery Cost
A136: Disk Mowing | C136: cutting | D136: =+'Budget Generator'!C$11 -> 2 | E136: =+'List Page'!B$26 -> 16.5 | F136: =SUM(D136*E136) -> 33 | G136: =SUM(F136/D120) -> 6.875 | H136: =SUM(F136/J$6) -> 2.440625
A137: Tedding | C137: cutting | D137: =+'Budget Generator'!C$11 -> 2 | E137: =+'List Page'!B$27 -> 6.67 | F137: =SUM(D137*E137) -> 13.34 | G137: =SUM(F137/D120) -> 2.779166667 | H137: 0.9866041667
A138: Raking | C138: cutting | D138: =+'Budget Generator'!C$11 -> 2 | E138: =+'List Page'!B$28 -> 8.67 | F138: =SUM(D138*E138) -> 17.34 | G138: =SUM(F138/D120) -> 3.6125 | H138: 1.2824375
A139: Baling | C139: cutting | D139: =+'Budget Generator'!C$11 -> 2 | E139: =+'List Page'!B$39+2 -> 15.17 | F139: =SUM(D139*E139) -> 30.34 | G139: =SUM(F139/D120) -> 6.320833333 | H139: 2.243895833
A140: Hauling | C140: bale | D140: =+J$6 -> 13.52112676 | E140: ='List Page'!$C$30 -> 5.42 | F140: =SUM(D140*E140) -> 73.28450704 | G140: =SUM(F140/D120) -> 15.26760563 | H140: 5.42
A141: Wrapping | C141: bale | D141: =+J$6 -> 13.52112676 | E141: =+'List Page'!C$35 -> 5.5 | F141: =(E141*D141) -> 74.36619718 | G141: =SUM(F141/D120) -> 15.49295775 | H141: 5.5
A142: Total Custom Machinery Cost | F142: =SUM(F136:F141) -> 241.6707042 | G142: =SUM(G136:G141) -> 50.34806338 | H142: =SUM(H136:H141) -> 17.8735625
A143: Interest on Operating Capital | B143: 6 months | C143: acre | D143: =SUM(F133) ->  | E143: =+'Input Price List'!B$2 -> 0.08 | F143: =SUM(D143*E143)/2 ->  | G143: =F143/D120 ->  | H143: =SUM(F143/J$6) -> 
A144: Cash Rent | C144: acre | D144: 1 | F144: =SUM(D144*E144) -> 0 | G144: =F144/D120 -> 0 | H144: =SUM(F144/J$6) -> 0
A145: Storage
A146: Shrinkage Loss | C146: annual | D146: =+'List Page'!$B$21 -> 0.15 | E146: =SUM(H133+H142+H143) ->  | F146: =D146*E146 ->  | G146: =F146/D120 ->  | H146: =SUM(F146/J$6) -> 
A147: Total Budgeted Expenses | F147: =SUM(F133+F142+F143+F144) ->  | G147: =SUM(G133+G142+G143+G144) ->  | H147: =SUM(H133+H142+H143+H144) -> 
A148: Return to Land & Management | F148: =IF(F120>0,F120-F147," ") ->  | G148: =IF(G120>0,F148/D120,"") ->  | H148: =IF(E120>0,SUM(H120-H147),"") -> 
A151: Cool Season Grass, Establishment | I151: Establishment Prorated Over Years
A152: Estimated Expenses per Acre
F153: Amount
A154: Item | B154: Description | C154: Unit | D154: Quantity | E154: Price | F154: ($/acre) | I154: 6
A155: Expenses
A156: Burndown | B156: Burndown | C156: acre | D156: 1 | E156: =+'Input Price List'!D$37 -> 15.66 | F156: =D156*E156 -> 15.66
A157: Seed | B157: =+ForageSpecies -> Fescue | C157: lb | D157: =IF(B$44="Fescue",'Input Table'!I$5,+'Input Table'!I$6) -> 17.5 | E157: =IF(B$44="Fescue",'Input Price List'!B$13,+'Input Price List'!B$15) -> 1.33 | F157: =E157*D157 -> 23.275
A158: Fertilizer | B158: N | C158: lb | D158: =IF(B$44="Fescue",'Input Table'!J$5,+'Input Table'!J$6) -> 30 | E158: ='Input Price List'!B$26 -> 0.5986413043 | F158: =SUM(D158*E158) -> 17.95923913
B159: P2O5 | C159: lb | D159: =IF(B$44="Fescue",'Input Table'!K$5,+'Input Table'!K$6) -> 60 | E159: ='Input Price List'!B$27 -> 0.6135751418 | F159: =SUM(D159*E159) -> 36.81450851
B160: K2O | C160: lb | D160: =IF(B$44="Fescue",'Input Table'!L$5,+'Input Table'!L$6) -> 60 | E160: ='Input Price List'!B$28 -> 0.4088 | F160: =SUM(D160*E160) -> 24.528
B161: Custom Application | C161: acre | D161: 1 | E161: ='Input Price List'!B$30 -> 12.71 | F161: =SUM(D161*E161) -> 12.71
A162: Lime & Application | B162: Custom Application | C162: ton | D162: =IF(B$44="Fescue",'Input Table'!M$5,+'Input Table'!M$6) -> 2 | E162: ='Input Price List'!B$32 -> 43.63 | F162: =SUM(D162*E162) -> 87.26
A163: Total Variable Expenses | F163: =SUM(F156:F162) -> 218.2067476
A164: Custom Machinery Cost
A165: Spraying | C165: acre | D165: 1 | E165: =+'List Page'!B$31 -> 11.81 | F165: =SUM(D165*E165) -> 11.81
A166: No-till Drill | C166: acre | D166: 1 | E166: =+'List Page'!B$32 -> 17.08 | F166: =SUM(D166*E166) -> 17.08
A167: Total Custom Machinery Cost | F167: =SUM(F165:F166) -> 28.89
A168: Interest on Operating Capital | B168: 6 months | C168: acre | D168: =SUM(F156:F162) -> 218.2067476 | E168: =+'Input Price List'!B$2 -> 0.08 | F168: =SUM(D168*E168)/2 -> 8.728269905
A169: Total Budgeted Expenses | F169: =SUM(F163+F167+F168) -> 255.8250175

Sheet Cool Season Grass Pasture
A1: Cool Season Grass, Pasture | K1: Pasture
A2: Estimated Expenses per Acre | K2: * | L2: The budget is based on custom rates for machinery processes. Labor, operating, maintenance, and ownership costs are included in these rates.
F3: Amount | K3: * | L3: The budget is based on no-till establishment.
A4: Item | B4: Description | C4: Unit | D4: Quantity | E4: Price | F4: ($/acre) | K4: * | L4: Sixty pounds of nitrogen will be applied in March, with the remainder applied during the growing season. If clover is included, it is assumed that
A5: Expenses | L5: 60 pounds of nitrogen will come from the clover.
A6: Prorated Establishment Costs | B6: =+ForageSpecies -> Fescue | C6: acre | D6: =SUM(1/H$29) -> 0.1 | E6: =+F44 -> 255.8250175 | F6: =D6*E6 -> 25.58250175 | K6: * | L6: Lime prorated at one ton over three years.
A7: Fertilizer | B7: N | C7: lb | D7: =+'Budget Generator'!$C$16 -> 60 | E7: ='Input Price List'!B$26 -> 0.5986413043 | F7: =SUM(D7*E7) -> 35.91847826 | K7: * | L7: For a more accurate fertilizer and lime recommendation, take a soil sample. | S7: (Instructions on how to take a soil sample.)
B8: P2O5 | C8: lb | D8: =+'Budget Generator'!$C$17 -> 30 | E8: ='Input Price List'!B$27 -> 0.6135751418 | F8: 18.40725425 | K8: * | L8: The post-emergence weed control is based on an average of three common practices. Burndown is a common practice. For weed control and/or burndown
B9: K2O | C9: lb | D9: =+'Budget Generator'!$C$18 -> 30 | E9: ='Input Price List'!B$28 -> 0.4088 | F9: 12.264 | L9: recommendations, contact the county Extension office. | Q9: (County office contact information.)
B10: Custom Application | C10: acre | D10: 1 | E10: ='Input Price List'!B$30 -> 12.71 | F10: 12.71 | K10: * | L10: Establishment pro-rated expenses for hay are set for ten years.
A11: Lime & Application | B11: Custom Application | C11: ton | D11: =+'Budget Generator'!$C$19 -> 0.33 | E11: ='Input Price List'!B$32 -> 43.63 | F11: 14.3979
A12: Weed Control
A13: Post-Emerge | B13: Herbicide Application | C13: acre | D13: 1 | E13: =+'Input Table'!AF$5 -> 12.295 | F13: =SUM(D13*E13) -> 12.295
B14: Custom Application | C14: acre | D14: 1 | E14: ='Input Price List'!B$40 -> 11.81 | F14: =SUM(D14*E14) -> 11.81
A15: Pest Control | B15: Pest Control Application | C15: acre | E15: =+'Input Table'!AS$5 -> 6.51 | F15: =SUM(D15*E15) -> 0
B16: Custom Application | C16: acre | E16: ='Input Price List'!B$40 -> 11.81 | F16: =SUM(D16*E16) -> 0
A17: Total Variable Expenses | F17: =SUM(F6:F16) -> 143.3851343
A18: Custom Machinery Cost
A19: Bush Hogging | C19: acre | D19: 1 | E19: =+'List Page'!B$33 -> 19.5 | F19: =SUM(D19*E19) -> 19.5
A20: Total Custom Machinery Cost | F20: =SUM(F19:F19) -> 19.5
A21: Interest on Operating Capital | B21: 6 months | C21: acre | D21: =SUM(F17) -> 143.3851343 | E21: =+'Input Price List'!B$2 -> 0.08 | F21: =SUM(D21*E21)/2 -> 5.735405371
A22: Cash Rent | C22: acre | D22: 1 | F22: =SUM(D22*E22) -> 0
A23: Total Budgeted Expenses | F23: =SUM(F17+F20+F21+F22) -> 168.6205396
A26: Cool Season Grass, Establishment | H26: Establishment Prorated Over Years
A27: Estimated Expenses per Acre
F28: Amount
A29: Item | B29: Description | C29: Unit | D29: Quantity | E29: Price | F29: ($/acre) | H29: 10
A30: Expenses
A31: Burndown | B31: Burndown | C31: acre | D31: 1 | E31: =+'Input Price List'!D$37 -> 15.66 | F31: =D31*E31 -> 15.66
A32: Seed | B32: =+ForageSpecies -> Fescue | C32: lb | D32: =IF(B$32="Fescue",'Input Table'!I$5,+'Input Table'!I$6) -> 17.5 | E32: =IF(B$32="Fescue",'Input Price List'!B$13,+'Input Price List'!B$15) -> 1.33 | F32: =E32*D32 -> 23.275
A33: Fertilizer | B33: N | C33: lb | D33: =IF(B$32="Fescue",'Input Table'!J$5,+'Input Table'!J$6) -> 30 | E33: ='Input Price List'!B$26 -> 0.5986413043 | F33: =SUM(D33*E33) -> 17.95923913
B34: P2O5 | C34: lb | D34: =IF(B32="Fescue",'Input Table'!K$5,+'Input Table'!K$6) -> 60 | E34: ='Input Price List'!B$27 -> 0.6135751418 | F34: =SUM(D34*E34) -> 36.81450851
B35: K2O | C35: lb | D35: =IF(B$32="Fescue",'Input Table'!L$5,+'Input Table'!L$6) -> 60 | E35: ='Input Price List'!B$28 -> 0.4088 | F35: =SUM(D35*E35) -> 24.528
B36: Custom Application | C36: acre | D36: 1 | E36: ='Input Price List'!B$30 -> 12.71 | F36: =SUM(D36*E36) -> 12.71
A37: Lime & Application | B37: Custom Application | C37: ton | D37: =IF(B$32="Fescue",'Input Table'!M$5,+'Input Table'!M$6) -> 2 | E37: ='Input Price List'!B$32 -> 43.63 | F37: =SUM(D37*E37) -> 87.26
A38: Total Variable Expenses | F38: =SUM(F31:F37) -> 218.2067476
A39: Custom Machinery Cost
A40: Spraying | C40: acre | D40: 1 | E40: =+'List Page'!B$31 -> 11.81 | F40: =SUM(D40*E40) -> 11.81
A41: No-till Drill | C41: acre | D41: 1 | E41: =+'List Page'!B$32 -> 17.08 | F41: =SUM(D41*E41) -> 17.08
A42: Total Custom Machinery Cost | F42: =SUM(F40:F41) -> 28.89
A43: Interest on Operating Capital | B43: 6 months | C43: acre | D43: =SUM(F31:F37) -> 218.2067476 | E43: =+'Input Price List'!B$2 -> 0.08 | F43: =SUM(D43*E43)/2 -> 8.728269905
A44: Total Budgeted Expenses | F44: =SUM(F38+F42+F43) -> 255.8250175
A115: Cool Season Grass, Pasture
A116: Estimated Expenses per Acre
F117: Amount
A118: Item | B118: Description | C118: Unit | D118: Quantity | E118: Price | F118: ($/acre)
A119: Expenses
A120: Prorated Establishment Costs | B120: =+ForageSpecies -> Fescue | C120: acre | D120: =SUM(1/H$29) -> 0.1 | E120: =+F158 -> 0 | F120: =D120*E120 -> 0
A121: Fertilizer | B121: N | C121: lb | D121: =+'Budget Generator'!$C$16 -> 60 | E121: ='Input Price List'!B$26 -> 0.5986413043 | F121: =SUM(D121*E121) -> 35.91847826
B122: P2O5 | C122: lb | D122: =+'Budget Generator'!$C$17 -> 30 | E122: ='Input Price List'!B$27 -> 0.6135751418 | F122: 18.40725425
B123: K2O | C123: lb | D123: =+'Budget Generator'!$C$18 -> 30 | E123: ='Input Price List'!B$28 -> 0.4088 | F123: 12.264
B124: Custom Application | C124: acre | D124: 1 | E124: ='Input Price List'!B$30 -> 12.71 | F124: 12.71
A125: Lime & Application | B125: Custom Application | C125: ton | D125: =+'Budget Generator'!$C$19 -> 0.33 | E125: ='Input Price List'!B$32 -> 43.63 | F125: 14.3979
A126: Weed Control
A127: Post-Emerge | B127: Herbicide Application | C127: acre | D127: 1 | E127: =+'Input Table'!AF$5 -> 12.295 | F127: =SUM(D127*E127) -> 12.295
B128: Custom Application | C128: acre | D128: 1 | E128: ='Input Price List'!B$40 -> 11.81 | F128: =SUM(D128*E128) -> 11.81
A129: Pest Control | B129: Pest Control Application | C129: acre | E129: =+'Input Table'!AS$5 -> 6.51 | F129: =SUM(D129*E129) -> 0
B130: Custom Application | C130: acre | E130: ='Input Price List'!B$40 -> 11.81 | F130: =SUM(D130*E130) -> 0
A131: Total Variable Expenses | F131: =SUM(F120:F130) -> 117.8026325
A132: Custom Machinery Cost
A133: Bush Hogging | C133: acre | D133: 1 | E133: =+'List Page'!B$33 -> 19.5 | F133: =SUM(D133*E133) -> 19.5
A134: Total Custom Machinery Cost | F134: =SUM(F133:F133) -> 19.5
A135: Interest on Operating Capital | B135: 6 months | C135: acre | D135: =SUM(F131) -> 117.8026325 | E135: =+'Input Price List'!B$2 -> 0.08 | F135: =SUM(D135*E135)/2 -> 4.712105301
A136: Cash Rent | C136: acre | D136: 1 | F136: =SUM(D136*E136) -> 0
A137: Total Budgeted Expenses | F137: =SUM(F131+F134+F135+F136) -> 142.0147378
A139: Cool Season Grass, Establishment
A140: Estimated Expenses per Acre
F141: Amount
A142: Item | B142: Description | C142: Unit | D142: Quantity | E142: Price | F142: ($/acre)
A143: Expenses
A144: Burndown | B144: Burndown | C144: acre | D144: 1 | E144: =+'Input Price List'!D$37 -> 15.66 | F144: =D144*E144 -> 15.66
A145: Seed | B145: =+ForageSpecies -> Fescue | C145: lb | D145: =IF(B$32="Fescue",'Input Table'!I$5,+'Input Table'!I$6) -> 17.5 | E145: =IF(B$32="Fescue",'Input Price List'!B$13,+'Input Price List'!B$15) -> 1.33 | F145: =E145*D145 -> 23.275
A146: Fertilizer | B146: N | C146: lb | D146: =IF(B$32="Fescue",'Input Table'!J$5,+'Input Table'!J$6) -> 30 | E146: ='Input Price List'!B$26 -> 0.5986413043 | F146: =SUM(D146*E146) -> 17.95923913
B147: P2O5 | C147: lb | D147: =IF(B145="Fescue",'Input Table'!K$5,+'Input Table'!K$6) -> 60 | E147: ='Input Price List'!B$27 -> 0.6135751418 | F147: =SUM(D147*E147) -> 36.81450851
B148: K2O | C148: lb | D148: =IF(B$32="Fescue",'Input Table'!L$5,+'Input Table'!L$6) -> 60 | E148: ='Input Price List'!B$28 -> 0.4088 | F148: =SUM(D148*E148) -> 24.528
B149: Custom Application | C149: acre | D149: 1 | E149: ='Input Price List'!B$30 -> 12.71 | F149: =SUM(D149*E149) -> 12.71
A150: Lime & Application | B150: Custom Application | C150: ton | D150: =IF(B$32="Fescue",'Input Table'!M$5,+'Input Table'!M$6) -> 2 | E150: ='Input Price List'!B$32 -> 43.63 | F150: =SUM(D150*E150) -> 87.26
A151: Total Variable Expenses | F151: =SUM(F144:F150) -> 218.2067476
A152: Custom Machinery Cost
A153: Spraying | C153: acre | D153: 1 | E153: =+'List Page'!B$31 -> 11.81 | F153: =SUM(D153*E153) -> 11.81
A154: No-till Drill | C154: acre | D154: 1 | E154: =+'List Page'!B$32 -> 17.08 | F154: =SUM(D154*E154) -> 17.08
A155: Total Custom Machinery Cost | F155: =SUM(F153:F154) -> 28.89
A156: Interest on Operating Capital | B156: 6 months | C156: acre | D156: =SUM(F144:F150) -> 218.2067476 | E156: =+'Input Price List'!B$2 -> 0.08 | F156: =SUM(D156*E156)/2 -> 8.728269905
A157: Total Budgeted Expenses | F157: =SUM(F151+F155+F156) -> 255.8250175

Sheet Cool Season Grass Clove Hay
A1: Cool Season Grass Clover, Hay | P1: =CONCATENATE("Cool Season Grass Clover, Hay","- ",+ForageSpecies) -> Cool Season Grass Clover, Hay- Fescue
A2: Estimated Expenses per Acre | P2: Sensitivity Analysis | X2: Sensitivity Analysis
F3: Amount | G3: Amount | H3: Amount | P3: Return Above Variable Expenses
A4: Item | B4: Description | C4: Unit | D4: Quantity | E4: Price | F4: ($/acre) | G4: ($/ton) | H4: ($/bale) | I4: =IF(+'Budget Generator'!C$3="Hay",+'Budget Generator'!C$9," ") -> Round | S4: Price ($/ton) | Y4: Variable Costs | AA4: Total Costs
A5: Income | I5: =IF(+'Budget Generator'!C$9="Round",+'Budget Generator'!C$10,"Square") -> 4x5 | J5: Bale per Acre | Q5: =SUM(R5-25) -> 100 | R5: =SUM(S5-25) -> 125 | S5: =+E6 -> 150 | T5: =SUM(S5+25) -> 175 | U5: =SUM(T5+25) -> 200 | Y5: (per bale) | AA5: (per bale)
A6: Hay | B6: =CONCATENATE(+ForageSpecies,"/","Clover") -> Fescue/Clover | C6: ton | D6: 2 | E6: =IF(I$4="Round",'Input Price List'!G$1,'Input Price List'!H$1) -> 150 | F6: =D6*E6 -> 300 | G6: =SUM(F6/D6) -> 150 | H6: =SUM(F6/J$6) -> 53.25 | I6: =+'Budget Generator'!E$10 -> 710 | J6: =SUM(D6*2000)/I6 -> 5.633802817 | P6: =SUM(P7-0.5) -> 1 | Q6: =SUM(Q$5*P6)-$F$19 -> -66.8332021 | R6: =SUM(R$5*$P6)-$F$19 -> -41.8332021 | S6: -16.8332021 | T6: 8.166797895 | U6: 33.1667979 | W6: Yield (ton) | X6: =X7-(X7*0.25) -> 1.125 | Y6: =($F$19/((X6*2000)/$I$6)) -> 52.64514378 | AA6: =($F$34/((X6*2000)/$I$6)) -> 119.550866
A7: Expenses | P7: =SUM(P8-0.5) -> 1.5 | Q7: =SUM(Q$5*P7)-$F$19 -> -16.8332021 | R7: 20.6667979 | S7: 58.1667979 | T7: 95.6667979 | U7: 133.1667979 | X7: =X8-(X8*0.25) -> 1.5 | Y7: =($F$19/((X7*2000)/$I$6)) -> 39.48385783 | AA7: =($F$34/((X7*2000)/$I$6)) -> 89.6631495
A8: Prorated Establishment Costs | C8: acre | D8: =SUM(1/I41) -> 0.1666666667 | E8: =+F$59 -> 294.1834175 | F8: =D8*E8 -> 49.03056959 | G8: =SUM(F8/D6) -> 24.5152848 | H8: =SUM(F8/J$6) -> 8.702926102 | O8: Yield | P8: =+D6 -> 2 | Q8: =SUM(Q$5*P8)-$F$19 -> 33.1667979 | R8: 83.1667979 | S8: 133.1667979 | T8: 183.1667979 | U8: 233.1667979 | X8: =+D6 -> 2 | Y8: =($F$19/((X8*2000)/$I$6)) -> 29.61289337 | AA8: =($F$34/((X8*2000)/$I$6)) -> 67.24736212
A9: Fertilizer | B9: N | C9: lb | D9: =+'Budget Generator'!C$16 -> 60 | E9: ='Input Price List'!B$26 -> 0.5986413043 | F9: =SUM(D9*E9) -> 35.91847826 | G9: =SUM(F9/D6) -> 17.95923913 | H9: 6.375529891 | P9: =SUM(P8+0.5) -> 2.5 | Q9: =SUM(Q$5*P9)-$F$19 -> 83.1667979 | R9: 145.6667979 | S9: 208.1667979 | T9: 270.6667979 | U9: 333.1667979 | X9: =X8+(X8*0.25) -> 2.5 | Y9: =($F$19/((X9*2000)/$I$6)) -> 23.6903147 | AA9: =($F$34/((X9*2000)/$I$6)) -> 53.7978897
B10: P2O5 | C10: lb | D10: =+'Budget Generator'!C$17 -> 30 | E10: ='Input Price List'!B$27 -> 0.6135751418 | F10: 18.40725425 | G10: =SUM(F10/D6) -> 9.203627127 | H10: 3.26728763 | P10: =SUM(P9+0.5) -> 3 | Q10: =SUM(Q$5*P10)-$F$19 -> 133.1667979 | R10: 208.1667979 | S10: 283.1667979 | T10: 358.1667979 | U10: 433.1667979 | X10: =X9+(X9*0.25) -> 3.125 | Y10: =($F$19/((X10*2000)/$I$6)) -> 18.95225176 | AA10: =($F$34/((X10*2000)/$I$6)) -> 43.03831176
B11: K2O | C11: lb | D11: =+'Budget Generator'!C$18 -> 30 | E11: ='Input Price List'!B$28 -> 0.4088 | F11: 12.264 | G11: =SUM(F11/D6) -> 6.132 | H11: 2.17686
B12: Custom Application | C12: acre | D12: 1 | E12: ='Input Price List'!B$30 -> 12.71 | F12: 12.71 | G12: =SUM(F12/D6) -> 6.355 | H12: 2.256025 | P12: Return Above Fixed Expenses | X12: Return Above Fixed Expenses
A13: Lime & Application | B13: Custom Application | C13: ton | D13: =+'Budget Generator'!C$19 -> 0.33 | E13: ='Input Price List'!B$32 -> 43.63 | F13: 14.3979 | G13: =SUM(F13/D6) -> 7.19895 | H13: 2.55562725 | S13: Price ($/ton) | AA13: Price ($/bale)
A14: Weed Control | Q14: =SUM(R14-25) -> 100 | R14: =SUM(S14-25) -> 125 | S14: =+E6 -> 150 | T14: =SUM(S14+25) -> 175 | U14: =SUM(T14+25) -> 200 | Y14: =IF($I$4="Round",SUM(Z14-5),SUM(Z14-1)) -> 43.25 | Z14: =IF($I$4="Round",SUM(AA14-5),SUM(AA14-1)) -> 48.25 | AA14: =+H6 -> 53.25 | AB14: =IF($I$4="Round",SUM(AA14+5),SUM(AA14+1)) -> 58.25 | AC14: =IF($I$4="Round",SUM(AB14+5),SUM(AB14+1)) -> 63.25
A15: Post-Emerge | B15: Herbicide Application | C15: acre | D15: 1 | E15: =+'Input Table'!AF$5 -> 12.295 | F15: =SUM(D15*E15) -> 12.295 | G15: =SUM(F15/D6) -> 6.1475 | H15: =SUM(F15/J$6) -> 2.1823625 | P15: =SUM(P16-0.5) -> 1 | Q15: =SUM(Q$5*P15)-$F$34 -> -278.8583782 | R15: =SUM(R$5*$P15)-$F$34 -> -253.8583782 | S15: -228.8583782 | T15: -203.8583782 | U15: -178.8583782 | X15: =SUM(X16-2) -> 1.633802817 | Y15: =SUM((Y$14*$X15)-$F$34)/$X15 -> -188.6374556 | Z15: -183.6374556 | AA15: -178.6374556 | AB15: -173.6374556 | AC15: -168.6374556
B16: Custom Application | C16: acre | D16: 1 | E16: ='Input Price List'!B$40 -> 11.81 | F16: =SUM(D16*E16) -> 11.81 | G16: =SUM(F16/D6) -> 5.905 | H16: =SUM(F16/J$6) -> 2.096275 | P16: =SUM(P17-0.5) -> 1.5 | Q16: =SUM(Q$5*P16)-$F$34 -> -228.8583782 | R16: -191.3583782 | S16: -153.8583782 | T16: -116.3583782 | U16: -78.85837815 | X16: =SUM(X17-2) -> 3.633802817 | Y16: -61.00947616 | Z16: -56.00947616 | AA16: -51.00947616 | AB16: -46.00947616 | AC16: -41.00947616
A17: Pest Control | B17: Pest Control Application | C17: acre | E17: =+'Input Table'!AS$5 -> 6.51 | F17: =SUM(D17*E17) -> 0 | G17: =SUM(F17/D6) -> 0 | H17: =SUM(F17/J$6) -> 0 | O17: Yield | P17: =+D6 -> 2 | Q17: =SUM(Q$5*P17)-$F$34 -> -178.8583782 | R17: -128.8583782 | S17: -78.85837815 | T17: -28.85837815 | U17: 21.14162185 | W17: Yield | X17: =+J6 -> 5.633802817 | Y17: -23.99736212 | Z17: -18.99736212 | AA17: -13.99736212 | AB17: -8.997362122 | AC17: -3.997362122
B18: Custom Application | C18: acre | E18: ='Input Price List'!B$40 -> 11.81 | F18: =SUM(D18*E18) -> 0 | G18: =SUM(F18/D6) -> 0 | H18: =SUM(F18/J$6) -> 0 | P18: =SUM(P17+0.5) -> 2.5 | Q18: =SUM(Q$5*P18)-$F$34 -> -128.8583782 | R18: -66.35837815 | S18: -3.858378151 | T18: 58.64162185 | U18: 121.1416218 | W18: (bale) | X18: =SUM(X17+2) -> 7.633802817 | Y18: -6.379049536 | Z18: -1.379049536 | AA18: 3.620950464 | AB18: 8.620950464 | AC18: 13.62095046
A19: Total Variable Expenses | F19: =SUM(F8:F18) -> 166.8332021 | G19: =SUM(G8:G18) -> 83.41660105 | H19: =SUM(H8:H18) -> 29.61289337 | P19: =SUM(P18+0.5) -> 3 | Q19: =SUM(Q$5*P19)-$F$34 -> -78.85837815 | R19: -3.858378151 | S19: 71.14162185 | T19: 146.1416218 | U19: 221.1416218 | X19: =SUM(X18+2) -> 9.633802817 | Y19: 3.924057239 | Z19: 8.924057239 | AA19: 13.92405724 | AB19: 18.92405724 | AC19: 23.92405724
A20: Return over Variable Expenses | F20: =F6-F19 -> 133.1667979 | G20: =F20/D6 -> 66.58339895 | H20: =SUM(H6-H19) -> 23.63710663
A21: Custom Machinery Cost | O21: Hay
A22: Disk Mowing | C22: cutting | D22: =+'Budget Generator'!C$11 -> 2 | E22: =+'List Page'!B$26 -> 16.5 | F22: =SUM(D22*E22) -> 33 | G22: =SUM(F22/D6) -> 16.5 | H22: =SUM(F22/J$6) -> 5.8575 | O22: * | P22: The budget is based on custom rates for machinery processes. Labor, operating, maintenance, and ownership costs are included in these rates.
A23: Tedding | C23: cutting | D23: =+'Budget Generator'!C$11 -> 2 | E23: =+'List Page'!B$27 -> 6.67 | F23: =SUM(D23*E23) -> 13.34 | G23: =SUM(F23/D6) -> 6.67 | H23: =SUM(F23/J$6) -> 2.36785 | P23: The baling rate includes binding.
A24: Raking | C24: cutting | D24: =+'Budget Generator'!C$11 -> 2 | E24: =+'List Page'!B$28 -> 8.67 | F24: 17.34 | G24: =SUM(F24/D6) -> 8.67 | H24: =SUM(F24/J$6) -> 3.07785 | O24: * | P24: The budget is based on no-till establishment.
A25: Baling | C25: cutting | D25: =+'Budget Generator'!C$11 -> 2 | E25: =IF($I$4="Square",+'List Page'!$C$29,+'List Page'!$B$39) -> 13.17 | F25: =SUM(D26*E25) -> 74.1971831 | G25: =SUM(F25/D6) -> 37.09859155 | H25: =SUM(F25/J$6) -> 13.17 | O25: * | P25: Sixty pounds of nitrogen will be applied in March, with the remainder applied during the growing season. If clover is included, it is assumed that
A26: Hauling | C26: bale | D26: =+J$6 -> 5.633802817 | E26: =IF($I$4="Round",+'List Page'!$C$30,'List Page'!$D$30) -> 5.42 | F26: =(E26*D26) -> 30.53521127 | G26: =SUM(F26/D6) -> 15.26760563 | H26: =SUM(F26/J$6) -> 5.42 | P26: 60 pounds of nitrogen will come from the clover.
A27: Total Custom Machinery Cost | F27: =SUM(F22:F26) -> 168.4123944 | G27: =SUM(G22:G26) -> 84.20619718 | H27: =SUM(H22:H26) -> 29.8932 | O27: * | P27: Lime prorated at one ton over three years.
A28: Interest on Operating Capital | B28: 6 months | C28: acre | D28: =SUM(F19) -> 166.8332021 | E28: =+'Input Price List'!B$2 -> 0.08 | F28: =SUM(D28*E28)/2 -> 6.673328084 | G28: =F28/D6 -> 3.336664042 | H28: =SUM(F28/J$6) -> 1.184515735 | O28: * | P28: For a more accurate fertilizer and lime recommendation, take a soil sample. | W28: (Instructions on how to take a soil sample.)
A29: Cash Rent | C29: acre | D29: 1 | F29: =SUM(D29*E29) -> 0 | G29: =F29/D6 -> 0 | H29: =SUM(F29/J$6) -> 0 | O29: * | P29: The post-emergence weed control is based on an average of three common practices. Burndown is a common practice. For weed control and/or burndown
A30: Storage | P30: recommendations, contact the county Extension office. | U30: (County office contact information.)
A31: Fixed Cost | B31: =+'Budget Generator'!C$13 -> Hay Barn | C31: bale | D31: =$D$6*2000/$I$6 -> 5.633802817 | E31: =IF(B$31="Hay barn",+'List Page'!C$18,IF(B$31="Stacked/tarped",+'List Page'!C$19,+'List Page'!C$20)) -> 4.432581695 | F31: =SUM(D31*E31) -> 24.97229124 | G31: =F31/D6 -> 12.48614562 | H31: =SUM(F31/J$6) -> 4.432581695 | O31: * | P31: Storage loss is based on an average of multiple studies.
A32: Shrinkage Loss | C32: annual | D32: =IF(B$31="Hay barn",+'List Page'!B$18,IF(B$31="Stacked/tarped",+'List Page'!B$19,+'List Page'!B$20)) -> 0.035 | E32: =SUM(F19+F27+F28+F29) -> 341.9189246 | F32: =D32*E32 -> 11.96716236 | G32: =F32/D6 -> 5.98358118 | H32: =SUM(F32/J$6) -> 2.124171319 | O32: * | P32: Establishment pro-rated expenses for hay are set for six years.
A33: Total Storage Cost | F33: =SUM(F31:F32) -> 36.9394536 | G33: =SUM(G31:G32) -> 18.4697268 | H33: =SUM(H31:H32) -> 6.556753013
A34: Total Budgeted Expenses | F34: =SUM(F19+F27+F28+F33+F29) -> 378.8583782 | G34: =SUM(G19+G27+G28+G33+G29) -> 189.4291891 | H34: =SUM(H19+H27+H28+H33+H29) -> 67.24736212
A35: Return to Land & Management | F35: =F6-F34 -> -78.85837815 | G35: =G6-G34 -> -39.42918908 | H35: =H6-H34 -> -13.99736212
A38: Cool Season Grass/Clover Hay, Establishment | I38: Establishment Prorated Over Years
A39: Estimated Expenses per Acre
F40: Amount
A41: Item | B41: Description | C41: Unit | D41: Quantity | E41: Price | F41: ($/acre) | I41: 6
A42: Expenses
A43: Burndown | B43: Burndown | C43: acre | D43: 1 | E43: =+'Input Price List'!D$37 -> 15.66 | F43: =D43*E43 -> 15.66
A44: Seed | B44: =+ForageSpecies -> Fescue | C44: lb | D44: =IF(B$44="Fescue",'Input Table'!I$5,+'Input Table'!I$6) -> 17.5 | E44: =IF(B$44="Fescue",'Input Price List'!B$13,+'Input Price List'!B$15) -> 1.33 | F44: =E44*D44 -> 23.275
B45: Red Clover | C45: lb | D45: =+'Input Table'!$I$8 -> 4 | E45: =+'Input Price List'!B$17 -> 3.33 | F45: =E45*D45 -> 13.32
B46: White Clover | C46: lb | D46: =+'Input Table'!$I$7 -> 2 | E46: =+'Input Price List'!B$23 -> 4.57 | F46: =E46*D46 -> 9.14
A47: Fertilizer | B47: N | C47: lb | D47: =IF(B$44="Fescue",'Input Table'!J$5,+'Input Table'!J$6) -> 30 | E47: ='Input Price List'!B$26 -> 0.5986413043 | F47: =SUM(D47*E47) -> 17.95923913
B48: P2O5 | C48: lb | D48: =IF(B$44="Fescue",'Input Table'!K$5,+'Input Table'!K$6) -> 60 | E48: ='Input Price List'!B$27 -> 0.6135751418 | F48: 36.81450851
B49: K2O | C49: lb | D49: =IF(B$44="Fescue",'Input Table'!L$5,+'Input Table'!L$6) -> 60 | E49: ='Input Price List'!B$28 -> 0.4088 | F49: 24.528
B50: Custom Application | C50: acre | D50: 1 | E50: ='Input Price List'!B$30 -> 12.71 | F50: 12.71
A51: Lime & Application | B51: Custom Application | C51: ton | D51: =IF(B$44="Fescue",'Input Table'!M$5,+'Input Table'!M$6) -> 2 | E51: ='Input Price List'!B$32 -> 43.63 | F51: =SUM(D51*E51) -> 87.26
A52: Total Variable Expenses | F52: =SUM(F43:F51) -> 240.6667476
A53: Custom Machinery Cost
A54: Spraying | C54: acre | D54: 1 | E54: =+'List Page'!B$31 -> 11.81 | F54: =SUM(D54*E54) -> 11.81
A55: No-till Drill | C55: acre | D55: 1 | E55: =+'List Page'!B$32 -> 17.08 | F55: 17.08
A56: Broadcast Seeding | C56: acre | D56: 1 | E56: =+'List Page'!B$34 -> 15 | F56: 15
A57: Total Custom Machinery Cost | F57: =SUM(F54:F56) -> 43.89
A58: Interest on Operating Capital | B58: 6 months | C58: acre | D58: =SUM(F43:F51) -> 240.6667476 | E58: =+'Input Price List'!B$2 -> 0.08 | F58: =SUM(D58*E58)/2 -> 9.626669905
A59: Total Budgeted Expenses | F59: =SUM(F52+F57+F58) -> 294.1834175
A117: Cool Season Grass Clover, Hay
A118: Estimated Expenses per Acre
F119: Amount | G119: Amount | H119: Amount
A120: Item | B120: Description | C120: Unit | D120: Quantity | E120: Price | F120: ($/acre) | G120: ($/ton) | H120: ($/bale)
A121: Income
A122: Hay | B122: =CONCATENATE(+ForageSpecies,"/","Clover") -> Fescue/Clover | C122: ton | D122: 2 | E122: =IF(I$4="Round",'Input Price List'!G$1,'Input Price List'!H$1) -> 150 | F122: =D122*E122 -> 300 | G122: =SUM(F122/D122) -> 150 | H122: =SUM(F122/J$6) -> 53.25
A123: Expenses
A124: Prorated Establishment Costs | C124: acre | D124: =SUM(1/I41) -> 0.1666666667 | E124: =+F$59 -> 294.1834175 | F124: =D124*E124 -> 49.03056959 | G124: =SUM(F124/D122) -> 24.5152848 | H124: =SUM(F124/J$6) -> 8.702926102
A125: Fertilizer | B125: N | C125: lb | D125: =+'Budget Generator'!C$16 -> 60 | E125: ='Input Price List'!B$26 -> 0.5986413043 | F125: =SUM(D125*E125) -> 35.91847826 | G125: =SUM(F125/D122) -> 17.95923913 | H125: 6.375529891
B126: P2O5 | C126: lb | D126: =+'Budget Generator'!C$17 -> 30 | E126: ='Input Price List'!B$27 -> 0.6135751418 | F126: 18.40725425 | G126: =SUM(F126/D122) -> 9.203627127 | H126: 3.26728763
B127: K2O | C127: lb | D127: =+'Budget Generator'!C$18 -> 30 | E127: ='Input Price List'!B$28 -> 0.4088 | F127: 12.264 | G127: =SUM(F127/D122) -> 6.132 | H127: 2.17686
B128: Custom Application | C128: acre | D128: 1 | E128: ='Input Price List'!B$30 -> 12.71 | F128: 12.71 | G128: =SUM(F128/D122) -> 6.355 | H128: 2.256025
A129: Lime & Application | B129: Custom Application | C129: ton | D129: =+'Budget Generator'!C$19 -> 0.33 | E129: ='Input Price List'!B$32 -> 43.63 | F129: 14.3979 | G129: =SUM(F129/D122) -> 7.19895 | H129: 2.55562725
A130: Weed Control
A131: Post-Emerge | B131: Herbicide Application | C131: acre | D131: 1 | E131: =+'Input Table'!AF$5 -> 12.295 | F131: =SUM(D131*E131) -> 12.295 | G131: =SUM(F131/D122) -> 6.1475 | H131: =SUM(F131/J$6) -> 2.1823625
B132: Custom Application | C132: acre | D132: 1 | E132: ='Input Price List'!B$40 -> 11.81 | F132: =SUM(D132*E132) -> 11.81 | G132: =SUM(F132/D122) -> 5.905 | H132: =SUM(F132/J$6) -> 2.096275
A133: Pest Control | B133: Pest Control Application | C133: acre | E133: =+'Input Table'!AS$5 -> 6.51 | F133: =SUM(D133*E133) -> 0 | G133: =SUM(F133/D122) -> 0 | H133: =SUM(F133/J$6) -> 0
B134: Custom Application | C134: acre | E134: ='Input Price List'!B$40 -> 11.81 | F134: =SUM(D134*E134) -> 0 | G134: =SUM(F134/D122) -> 0 | H134: =SUM(F134/J$6) -> 0
A135: Total Variable Expenses | F135: =SUM(F124:F134) -> 166.8332021 | G135: =F135/D122 -> 83.41660105 | H135: =SUM(H124:H134) -> 29.61289337
A136: Return over Variable Expenses | F136: =F122-F135 -> 133.1667979 | G136: =F136/D122 -> 66.58339895 | H136: =SUM(H122-H135) -> 23.63710663
A137: Custom Machinery Cost
A138: Disk Mowing | C138: cutting | D138: =+'Budget Generator'!C$11 -> 2 | E138: =+'List Page'!B$26 -> 16.5 | F138: =SUM(D138*E138) -> 33 | G138: =SUM(F138/D122) -> 16.5 | H138: =SUM(F138/J$6) -> 5.8575
A139: Tedding | C139: cutting | D139: =+'Budget Generator'!C$11 -> 2 | E139: =+'List Page'!B$27 -> 6.67 | F139: =SUM(D139*E139) -> 13.34 | G139: =SUM(F139/D122) -> 6.67 | H139: =SUM(F139/J$6) -> 2.36785
A140: Raking | C140: cutting | D140: =+'Budget Generator'!C$11 -> 2 | E140: =+'List Page'!B$28 -> 8.67 | F140: 17.34 | G140: =SUM(F140/D122) -> 8.67 | H140: =SUM(F140/J$6) -> 3.07785
A141: Baling | C141: cutting | D141: =+'Budget Generator'!C$11 -> 2 | E141: =IF($I$4="Square",+'List Page'!$C$29,+'List Page'!$B$39) -> 13.17 | F141: =SUM(D142*E141) -> 74.1971831 | G141: =SUM(F141/D122) -> 37.09859155 | H141: =SUM(F141/J$6) -> 13.17
A142: Hauling | C142: bale | D142: =+J$6 -> 5.633802817 | E142: =IF($I$4="Round",+'List Page'!$C$30,'List Page'!$D$30) -> 5.42 | F142: =(E142*D142) -> 30.53521127 | G142: =SUM(F142/D122) -> 15.26760563 | H142: =SUM(F142/J$6) -> 5.42
A143: Total Custom Machinery Cost | F143: =SUM(F138:F142) -> 168.4123944 | G143: =SUM(G138:G142) -> 84.20619718 | H143: =SUM(H138:H142) -> 29.8932
A144: Interest on Operating Capital | B144: 6 months | C144: acre | D144: =SUM(F135) -> 166.8332021 | E144: =+'Input Price List'!B$2 -> 0.08 | F144: =SUM(D144*E144)/2 -> 6.673328084 | G144: =F144/D122 -> 3.336664042 | H144: =SUM(F144/J$6) -> 1.184515735
A145: Cash Rent | C145: acre | D145: 1 | F145: =SUM(D145*E145) -> 0 | G145: =F145/D122 -> 0 | H145: =SUM(F145/J$6) -> 0
A146: Storage
A147: Fixed Cost | B147: =+'Budget Generator'!C$13 -> Hay Barn | C147: bale | D147: =$D$6*2000/$I$6 -> 5.633802817 | E147: =IF(B$31="Hay barn",+'List Page'!C$18,IF(B$31="Stacked/tarped",+'List Page'!C$19,+'List Page'!C$20)) -> 4.432581695 | F147: =SUM(D147*E147) -> 24.97229124 | G147: =F147/D122 -> 12.48614562 | H147: =SUM(F147/J$6) -> 4.432581695
A148: Shrinkage Loss | C148: annual | D148: =IF(B$31="Hay barn",+'List Page'!B$18,IF(B$31="Stacked/tarped",+'List Page'!B$19,+'List Page'!B$20)) -> 0.035 | E148: =SUM(H135+H143+H144) -> 60.69060911 | F148: =D148*E148*D147 -> 11.96716236 | G148: =F148/D122 -> 5.98358118 | H148: =SUM(F148/J$6) -> 2.124171319
A149: Total Storage Cost | F149: =SUM(F147:F148) -> 36.9394536 | G149: =SUM(G147:G148) -> 18.4697268 | H149: =SUM(H147:H148) -> 6.556753013
A150: Total Budgeted Expenses | F150: =SUM(F135+F143+F144+F149+F145) -> 378.8583782 | G150: =SUM(G135+G143+G144+G149+G145) -> 189.4291891 | H150: 67.24736212
A151: Return to Land & Management | F151: =F122-F150 -> -78.85837815 | G151: =G122-G150 -> -39.42918908 | H151: =H122-H150 -> -13.99736212
A153: Cool Season Grass/Clover Hay, Establishment
A154: Estimated Expenses per Acre
F155: Amount
A156: Item | B156: Description | C156: Unit | D156: Quantity | E156: Price | F156: ($/acre)
A157: Expenses
A158: Burndown | B158: Burndown | C158: acre | D158: 1 | E158: =+'Input Price List'!D$37 -> 15.66 | F158: =D158*E158 -> 15.66
A159: Seed | B159: =+ForageSpecies -> Fescue | C159: lb | D159: =IF(B$44="Fescue",'Input Table'!I$5,+'Input Table'!I$6) -> 17.5 | E159: =IF(B$44="Fescue",'Input Price List'!B$13,+'Input Price List'!B$15) -> 1.33 | F159: =E159*D159 -> 23.275
B160: Red Clover | C160: lb | D160: =+'Input Table'!$I$8 -> 4 | E160: =+'Input Price List'!B$17 -> 3.33 | F160: =E160*D160 -> 13.32
B161: White Clover | C161: lb | D161: =+'Input Table'!$I$7 -> 2 | E161: =+'Input Price List'!B$23 -> 4.57 | F161: =E161*D161 -> 9.14
A162: Fertilizer | B162: N | C162: lb | D162: =IF(B$44="Fescue",'Input Table'!J$5,+'Input Table'!J$6) -> 30 | E162: ='Input Price List'!B$26 -> 0.5986413043 | F162: =SUM(D162*E162) -> 17.95923913
B163: P2O5 | C163: lb | D163: =IF(B$44="Fescue",'Input Table'!K$5,+'Input Table'!K$6) -> 60 | E163: ='Input Price List'!B$27 -> 0.6135751418 | F163: 36.81450851
B164: K2O | C164: lb | D164: =IF(B$44="Fescue",'Input Table'!L$5,+'Input Table'!L$6) -> 60 | E164: ='Input Price List'!B$28 -> 0.4088 | F164: 24.528
B165: Custom Application | C165: acre | D165: 1 | E165: ='Input Price List'!B$30 -> 12.71 | F165: 12.71
A166: Lime & Application | B166: Custom Application | C166: ton | D166: =IF(B$44="Fescue",'Input Table'!M$5,+'Input Table'!M$6) -> 2 | E166: ='Input Price List'!B$32 -> 43.63 | F166: =SUM(D166*E166) -> 87.26
A167: Total Variable Expenses | F167: =SUM(F158:F166) -> 240.6667476
A168: Custom Machinery Cost
A169: Spraying | C169: acre | D169: 1 | E169: =+'List Page'!B$31 -> 11.81 | F169: =SUM(D169*E169) -> 11.81
A170: No-till Drill | C170: acre | D170: 1 | E170: =+'List Page'!B$32 -> 17.08 | F170: 17.08
A171: Broadcast Seeding | C171: acre | D171: 1 | E171: =+'List Page'!B$34 -> 15 | F171: 15
A172: Total Custom Machinery Cost | F172: =SUM(F169:F171) -> 43.89
A173: Interest on Operating Capital | B173: 6 months | C173: acre | D173: =SUM(F158:F166) -> 240.6667476 | E173: =+'Input Price List'!B$2 -> 0.08 | F173: =SUM(D173*E173)/2 -> 9.626669905
A174: Total Budgeted Expenses | F174: =SUM(F167+F172+F173) -> 294.1834175

Sheet Cool Season Grass Clove Baleage
A1: Cool Season Grass Clover, Baleage | P1: Sensitivity Analysis
A2: Estimated Expenses per Acre | P2: Return Above Variable Expenses
F3: Amount | G3: Amount | H3: Amount | S3: Price ($/ton)
A4: Item | B4: Description | C4: Unit | D4: Quantity | E4: Price | F4: ($/acre) | G4: ($/ton) | H4: ($/bale) | I4: =+'Budget Generator'!C$9 -> Round | Q4: =SUM(R4-25) -> -50 | R4: =SUM(S4-25) -> -25 | S4: =+E6 -> 0 | T4: =SUM(S4+25) -> 25 | U4: =SUM(T4+25) -> 50
A5: Income | I5: =IF(+'Budget Generator'!C$9="Round",+'Budget Generator'!C$10,"Square") -> 4x5 | J5: Bale per Acre | P5: =SUM(P6-0.5) -> 3.8 | Q5: =IF($E$6>0,SUM(Q$4*$P5)-$F$19," ") ->  | R5: =IF($E$6>0,SUM(R$4*$P5)-$F$19," ") -> 
A6: Hay | B6: =CONCATENATE(+ForageSpecies,"/","Clover") -> Fescue/Clover | C6: ton | D6: =+'Input Table'!B$10*1.6 -> 4.8 | F6: =D6*E6 -> 0 | G6: =SUM(F6/D6) -> 0 | H6: =SUM(F6/J$6) -> 0 | I6: =+'Budget Generator'!E$10 -> 710 | J6: =SUM(D6*2000)/I6 -> 13.52112676 | P6: =SUM(P7-0.5) -> 4.3 | Q6: =IF($E$6>0,SUM(Q$4*$P6)-$F$19," ") -> 
A7: Expenses | O7: Yield | P7: =+D6 -> 4.8
A8: Prorated Establishment Costs | C8: acre | D8: =SUM(1/I40) -> 0.1666666667 | E8: =+F$58 -> 294.1834175 | F8: =D8*E8 -> 49.03056959 | G8: =SUM(F8/D6) -> 10.214702 | H8: =SUM(F8/J$6) -> 3.626219209 | P8: =SUM(P7+0.5) -> 5.3 | S8: =IF($E$6>0,SUM(S$4*$P8)-$F$19," ") -> 
A9: Fertilizer | B9: N | C9: lb | D9: =+'Budget Generator'!C$16 -> 60 | E9: ='Input Price List'!B$26 -> 0.5986413043 | F9: =SUM(D9*E9) -> 35.91847826 | G9: =SUM(F9/D6) -> 7.483016304 | H9: 2.656470788 | P9: =SUM(P8+0.5) -> 5.8 | U9: =IF($E$6>0,SUM(U$4*$P9)-$F$19," ") -> 
B10: P2O5 | C10: lb | D10: =+'Budget Generator'!C$17 -> 30 | E10: ='Input Price List'!B$27 -> 0.6135751418 | F10: 18.40725425 | G10: =SUM(F10/D6) -> 3.834844636 | H10: 1.361369846
B11: K2O | C11: lb | D11: =+'Budget Generator'!C$18 -> 30 | E11: ='Input Price List'!B$28 -> 0.4088 | F11: 12.264 | G11: =SUM(F11/D6) -> 2.555 | H11: 0.907025 | P11: Return Above Fixed Expenses
B12: Custom Application | C12: acre | D12: 1 | E12: ='Input Price List'!B$30 -> 12.71 | F12: 12.71 | G12: =SUM(F12/D6) -> 2.647916667 | H12: 0.9400104167 | S12: Price ($/ton)
A13: Lime & Application | B13: Custom Application | C13: ton | D13: =+'Budget Generator'!C$19 -> 0.33 | E13: ='Input Price List'!B$32 -> 43.63 | F13: 14.3979 | G13: =SUM(F13/D6) -> 2.9995625 | H13: 1.064844687 | Q13: =SUM(R13-25) -> -50 | R13: =SUM(S13-25) -> -25 | S13: =+E6 -> 0 | T13: =SUM(S13+25) -> 25 | U13: =SUM(T13+25) -> 50
A14: Weed Control | P14: =SUM(P15-0.5) -> 3.8 | Q14: =IF($E$6>0,SUM(Q$4*$P14)-$F$33," ") -> 
A15: Post-Emerge | B15: Herbicide Application | C15: acre | D15: 1 | E15: =+'Input Table'!AF$5 -> 12.295 | F15: =SUM(D15*E15) -> 12.295 | G15: =SUM(F15/D6) -> 2.561458333 | H15: =SUM(F15/J$6) -> 0.9093177083 | P15: =SUM(P16-0.5) -> 4.3
B16: Custom Application | C16: acre | D16: 1 | E16: ='Input Price List'!B$40 -> 11.81 | F16: =SUM(D16*E16) -> 11.81 | G16: =SUM(F16/D6) -> 2.460416667 | H16: =SUM(F16/J$6) -> 0.8734479167 | O16: Yield | P16: =+D6 -> 4.8
A17: Pest Control | B17: Pest Control Application | C17: acre | E17: =+'Input Table'!AS$5 -> 6.51 | F17: =SUM(D17*E17) -> 0 | G17: =SUM(F17/D6) -> 0 | H17: =SUM(F17/J$6) -> 0 | P17: =SUM(P16+0.5) -> 5.3
B18: Custom Application | C18: acre | E18: ='Input Price List'!B$40 -> 11.81 | F18: =SUM(D18*E18) -> 0 | G18: =SUM(F18/D6) -> 0 | H18: =SUM(F18/J$6) -> 0 | P18: =SUM(P17+0.5) -> 5.8
A19: Total Variable Expenses | F19: =SUM(F8:F18) -> 166.8332021 | G19: =SUM(G8:G18) -> 34.75691711 | H19: =SUM(H8:H18) -> 12.33870557
A20: Return over Variable Expenses | F20: =IF(F6>0,F6-F19," ") ->  | G20: =IF(G6>0,F19/D6,"") ->  | H20: =IF(E6>0,SUM(H6-H19),"") -> 
A21: Custom Machinery Cost | O21: Baleage
A22: Disk Mowing | C22: cutting | D22: =+'Budget Generator'!C$11 -> 2 | E22: =+'List Page'!B$26 -> 16.5 | F22: =SUM(D22*E22) -> 33 | G22: =SUM(F22/D6) -> 6.875 | H22: =SUM(F22/J$6) -> 2.440625 | O22: * | P22: The budget is based on custom rates for machinery processes. Labor, operating, maintenance, and ownership costs are included in these rates.
A23: Tedding | C23: cutting | D23: =+'Budget Generator'!C$11 -> 2 | E23: =+'List Page'!B$27 -> 6.67 | F23: =SUM(D23*E23) -> 13.34 | G23: =SUM(F23/D6) -> 2.779166667 | H23: 0.9866041667 | P23: The baling rate includes binding.
A24: Raking | C24: cutting | D24: =+'Budget Generator'!C$11 -> 2 | E24: =+'List Page'!B$28 -> 8.67 | F24: 17.34 | G24: =SUM(F24/D6) -> 3.6125 | H24: 1.2824375 | O24: * | P24: The budget is based on no-till establishment.
A25: Baling | C25: cutting | D25: =+'Budget Generator'!C$11 -> 2 | E25: =+'List Page'!B$39+2 -> 15.17 | F25: 30.34 | G25: =SUM(F25/D6) -> 6.320833333 | H25: 2.243895833 | O25: * | P25: Based on inline tube wrapping.
A26: Hauling | C26: bale | D26: =+J$6 -> 13.52112676 | E26: =+'List Page'!$C$30 -> 5.42 | F26: =SUM(D26*E26) -> 73.28450704 | G26: =SUM(F26/D6) -> 15.26760563 | H26: 5.42 | O26: * | P26: Sixty pounds of nitrogen will be applied in March, with the remainder applied during the growing season. If clover is included, it is assumed that
A27: Wrapping | C27: bale | D27: =+J$6 -> 13.52112676 | E27: =+'List Page'!C$35 -> 5.5 | F27: =(E27*D27) -> 74.36619718 | G27: =SUM(F27/D6) -> 15.49295775 | H27: 5.5 | P27: 60 pounds of nitrogen will come from the clover.
A28: Total Custom Machinery Cost | F28: =SUM(F22:F27) -> 241.6707042 | G28: =SUM(G22:G27) -> 50.34806338 | H28: =SUM(H22:H27) -> 17.8735625 | O28: * | P28: Lime prorated at one ton over three years.
A29: Interest on Operating Capital | B29: 6 months | C29: acre | D29: =SUM(F19) -> 166.8332021 | E29: =+'Input Price List'!B$2 -> 0.08 | F29: =SUM(D29*E29)/2 -> 6.673328084 | G29: =F29/D6 -> 1.390276684 | H29: =SUM(F29/J$6) -> 0.4935482229 | O29: * | P29: For a more accurate fertilizer and lime recommendation, take a soil sample. | W29: (Instructions on how to take a soil sample.)
A30: Cash Rent | C30: acre | D30: 1 | F30: =SUM(D30*E30) -> 0 | G30: =F30/D6 -> 0 | H30: =SUM(F30/J$6) -> 0 | O30: * | P30: The post-emergence weed control is based on an average of three common practices. Burndown is a common practice. For weed control and/or burndown
A31: Storage | P31: recommendations, contact the county Extension office. | U31: (County office contact information.)
A32: Shrinkage Loss | C32: annual | D32: =+'List Page'!$B$21 -> 0.15 | E32: =SUM(F19+F28+F29+F30) -> 415.1772344 | F32: =D32*E32 -> 62.27658516 | G32: =F32/D6 -> 12.97428858 | H32: =SUM(F32/J$6) -> 4.605872444 | O32: * | P32: Storage loss is based on an average of multiple studies.
A33: Total Budgeted Expenses | F33: =SUM(F19+F28+F29+F30) -> 415.1772344 | G33: =SUM(G19+G28+G29+G30) -> 86.49525717 | H33: =SUM(H19+H28+H29+H30) -> 30.7058163 | O33: * | P33: Establishment pro-rated expenses for hay are set for six years.
A34: Return to Land & Management | F34: =IF(F6>0,F6-F33," ") ->  | G34: =IF(G6>0,F34/D6,"") ->  | H34: =IF(E6>0,SUM(H6-H33),"") -> 
A37: Cool Season Grass/Clover Hay, Establishment | I37: Establishment Prorated Over Years
A38: Estimated Expenses per Acre
F39: Amount
A40: Item | B40: Description | C40: Unit | D40: Quantity | E40: Price | F40: ($/acre) | I40: 6
A41: Expenses
A42: Burndown | B42: Burndown | C42: acre | D42: 1 | E42: =+'Input Price List'!D$37 -> 15.66 | F42: =D42*E42 -> 15.66
A43: Seed | B43: =+ForageSpecies -> Fescue | C43: lb | D43: =IF(B$43="Fescue",'Input Table'!I$5,+'Input Table'!I$6) -> 17.5 | E43: =IF(B$43="Fescue",'Input Price List'!B$13,+'Input Price List'!B$15) -> 1.33 | F43: =E43*D43 -> 23.275
B44: Red Clover | C44: lb | D44: =+'Input Table'!$I$8 -> 4 | E44: =+'Input Price List'!B$17 -> 3.33 | F44: =E44*D44 -> 13.32
B45: White Clover | C45: lb | D45: =+'Input Table'!$I$7 -> 2 | E45: =+'Input Price List'!B$23 -> 4.57 | F45: =E45*D45 -> 9.14
A46: Fertilizer | B46: N | C46: lb | D46: =IF(B$43="Fescue",'Input Table'!J$5,+'Input Table'!J$6) -> 30 | E46: ='Input Price List'!B$26 -> 0.5986413043 | F46: =SUM(D46*E46) -> 17.95923913
B47: P2O5 | C47: lb | D47: =IF(B$43="Fescue",'Input Table'!K$5,+'Input Table'!K$6) -> 60 | E47: ='Input Price List'!B$27 -> 0.6135751418 | F47: 36.81450851
B48: K2O | C48: lb | D48: =IF(B$43="Fescue",'Input Table'!L$5,+'Input Table'!L$6) -> 60 | E48: ='Input Price List'!B$28 -> 0.4088 | F48: 24.528
B49: Custom Application | C49: acre | D49: 1 | E49: ='Input Price List'!B$30 -> 12.71 | F49: 12.71
A50: Lime & Application | B50: Custom Application | C50: ton | D50: =IF(B$43="Fescue",'Input Table'!M$5,+'Input Table'!M$6) -> 2 | E50: ='Input Price List'!B$32 -> 43.63 | F50: =SUM(D50*E50) -> 87.26
A51: Total Variable Expenses | F51: =SUM(F42:F50) -> 240.6667476
A52: Custom Machinery Cost
A53: Spraying | C53: acre | D53: 1 | E53: =+'List Page'!B$31 -> 11.81 | F53: =SUM(D53*E53) -> 11.81
A54: No-till Drill | C54: acre | D54: 1 | E54: =+'List Page'!B$32 -> 17.08 | F54: 17.08
A55: Broadcast Seeding | C55: acre | D55: 1 | E55: =+'List Page'!B$34 -> 15 | F55: 15
A56: Total Custom Machinery Cost | F56: =SUM(F53:F55) -> 43.89
A57: Interest on Operating Capital | B57: 6 months | C57: acre | D57: =SUM(F42:F50) -> 240.6667476 | E57: =+'Input Price List'!B$2 -> 0.08 | F57: =SUM(D57*E57)/2 -> 9.626669905
A58: Total Budgeted Expenses | F58: =SUM(F51+F56+F57) -> 294.1834175
A115: Cool Season Grass Clover, Baleage
A116: Estimated Expenses per Acre
F117: Amount | G117: Amount | H117: Amount
A118: Item | B118: Description | C118: Unit | D118: Quantity | E118: Price | F118: ($/acre) | G118: ($/ton) | H118: ($/bale)
A119: Income
A120: Hay | B120: =CONCATENATE(+ForageSpecies,"/","Clover") -> Fescue/Clover | C120: ton | D120: =+'Input Table'!B$10*1.6 -> 4.8 | F120: =D120*E120 -> 0 | G120: =SUM(F120/D120) -> 0 | H120: =SUM(F120/J$6) -> 0
A121: Expenses
A122: Prorated Establishment Costs | C122: acre | D122: =SUM(1/I155) ->  | E122: =+F$58 -> 294.1834175 | F122: =D122*E122 ->  | G122: =SUM(F122/D120) ->  | H122: =SUM(F122/J$6) -> 
A123: Fertilizer | B123: N | C123: lb | D123: =+'Budget Generator'!C$16 -> 60 | E123: ='Input Price List'!B$26 -> 0.5986413043 | F123: =SUM(D123*E123) -> 35.91847826 | G123: =SUM(F123/D120) -> 7.483016304 | H123: 2.656470788
B124: P2O5 | C124: lb | D124: =+'Budget Generator'!C$17 -> 30 | E124: ='Input Price List'!B$27 -> 0.6135751418 | F124: 18.40725425 | G124: =SUM(F124/D120) -> 3.834844636 | H124: 1.361369846
B125: K2O | C125: lb | D125: =+'Budget Generator'!C$18 -> 30 | E125: ='Input Price List'!B$28 -> 0.4088 | F125: 12.264 | G125: =SUM(F125/D120) -> 2.555 | H125: 0.907025
B126: Custom Application | C126: acre | D126: 1 | E126: ='Input Price List'!B$30 -> 12.71 | F126: 12.71 | G126: =SUM(F126/D120) -> 2.647916667 | H126: 0.9400104167
A127: Lime & Application | B127: Custom Application | C127: ton | D127: =+'Budget Generator'!C$19 -> 0.33 | E127: ='Input Price List'!B$32 -> 43.63 | F127: 14.3979 | G127: =SUM(F127/D120) -> 2.9995625 | H127: 1.064844687
A128: Weed Control
A129: Post-Emerge | B129: Herbicide Application | C129: acre | D129: 1 | E129: =+'Input Table'!AF$5 -> 12.295 | F129: =SUM(D129*E129) -> 12.295 | G129: =SUM(F129/D120) -> 2.561458333 | H129: =SUM(F129/J$6) -> 0.9093177083
B130: Custom Application | C130: acre | D130: 1 | E130: ='Input Price List'!B$40 -> 11.81 | F130: =SUM(D130*E130) -> 11.81 | G130: =SUM(F130/D120) -> 2.460416667 | H130: =SUM(F130/J$6) -> 0.8734479167
A131: Pest Control | B131: Pest Control Application | C131: acre | E131: =+'Input Table'!AS$5 -> 6.51 | F131: =SUM(D131*E131) -> 0 | G131: =SUM(F131/D120) -> 0 | H131: =SUM(F131/J$6) -> 0
B132: Custom Application | C132: acre | E132: ='Input Price List'!B$40 -> 11.81 | F132: =SUM(D132*E132) -> 0 | G132: =SUM(F132/D120) -> 0 | H132: =SUM(F132/J$6) -> 0
A133: Total Variable Expenses | F133: =SUM(F122:F132) ->  | G133: =F133/D120 ->  | H133: =SUM(H122:H132) -> 
A134: Return over Variable Expenses | F134: =IF(F120>0,F120-F133," ") ->  | G134: =IF(G120>0,F133/D120,"") ->  | H134: =IF(E120>0,SUM(H120-H133),"") -> 
A135: Custom Machinery Cost
A136: Disk Mowing | C136: cutting | D136: =+'Budget Generator'!C$11 -> 2 | E136: =+'List Page'!B$26 -> 16.5 | F136: =SUM(D136*E136) -> 33 | G136: =SUM(F136/D120) -> 6.875 | H136: =SUM(F136/J$6) -> 2.440625
A137: Tedding | C137: cutting | D137: =+'Budget Generator'!C$11 -> 2 | E137: =+'List Page'!B$27 -> 6.67 | F137: =SUM(D137*E137) -> 13.34 | G137: =SUM(F137/D120) -> 2.779166667 | H137: 0.9866041667
A138: Raking | C138: cutting | D138: =+'Budget Generator'!C$11 -> 2 | E138: =+'List Page'!B$28 -> 8.67 | F138: 17.34 | G138: =SUM(F138/D120) -> 3.6125 | H138: 1.2824375
A139: Baling | C139: cutting | D139: =+'Budget Generator'!C$11 -> 2 | E139: =+'List Page'!B$39+2 -> 15.17 | F139: 30.34 | G139: =SUM(F139/D120) -> 6.320833333 | H139: 2.243895833
A140: Hauling | C140: bale | D140: =+J$6 -> 13.52112676 | E140: =+'List Page'!$C$30 -> 5.42 | F140: 73.28450704 | G140: =SUM(F140/D120) -> 15.26760563 | H140: 5.42
A141: Wrapping | C141: bale | D141: =+J$6 -> 13.52112676 | E141: =+'List Page'!C$35 -> 5.5 | F141: =(E141*D141) -> 74.36619718 | G141: =SUM(F141/D120) -> 15.49295775 | H141: 5.5
A142: Total Custom Machinery Cost | F142: =SUM(F136:F141) -> 241.6707042 | G142: =SUM(G136:G141) -> 50.34806338 | H142: =SUM(H136:H141) -> 17.8735625
A143: Interest on Operating Capital | B143: 6 months | C143: acre | D143: =SUM(F133) ->  | E143: =+'Input Price List'!B$2 -> 0.08 | F143: =SUM(D143*E143)/2 ->  | G143: =F143/D120 ->  | H143: =SUM(F143/J$6) -> 
A144: Cash Rent | C144: acre | D144: 1 | F144: =SUM(D144*E144) -> 0 | G144: =F144/D120 -> 0 | H144: =SUM(F144/J$6) -> 0
A145: Storage
A146: Shrinkage Loss | C146: annual | D146: =+'List Page'!$B$21 -> 0.15 | E146: =SUM(H133+H142+H143) ->  | F146: =D146*E146 ->  | G146: =F146/D120 ->  | H146: =SUM(F146/J$6) -> 
A147: Total Budgeted Expenses | F147: =SUM(F133+F142+F143+F144) ->  | G147: =SUM(G133+G142+G143+G144) ->  | H147: =SUM(H133+H142+H143+H144) -> 
A148: Return to Land & Management | F148: =IF(F120>0,F120-F147," ") ->  | G148: =IF(G120>0,F148/D120,"") ->  | H148: =IF(E120>0,SUM(H120-H147),"") -> 
A151: Cool Season Grass/Clover Hay, Establishment
A152: Estimated Expenses per Acre
F153: Amount
A154: Item | B154: Description | C154: Unit | D154: Quantity | E154: Price | F154: ($/acre)
A155: Expenses
A156: Burndown | B156: Burndown | C156: acre | D156: 1 | E156: =+'Input Price List'!D$37 -> 15.66 | F156: =D156*E156 -> 15.66
A157: Seed | B157: =+ForageSpecies -> Fescue | C157: lb | D157: =IF(B$43="Fescue",'Input Table'!I$5,+'Input Table'!I$6) -> 17.5 | E157: =IF(B$43="Fescue",'Input Price List'!B$13,+'Input Price List'!B$15) -> 1.33 | F157: =E157*D157 -> 23.275
B158: Red Clover | C158: lb | D158: =+'Input Table'!$I$8 -> 4 | E158: =+'Input Price List'!B$17 -> 3.33 | F158: =E158*D158 -> 13.32
B159: White Clover | C159: lb | D159: =+'Input Table'!$I$7 -> 2 | E159: =+'Input Price List'!B$23 -> 4.57 | F159: =E159*D159 -> 9.14
A160: Fertilizer | B160: N | C160: lb | D160: =IF(B$43="Fescue",'Input Table'!J$5,+'Input Table'!J$6) -> 30 | E160: ='Input Price List'!B$26 -> 0.5986413043 | F160: =SUM(D160*E160) -> 17.95923913
B161: P2O5 | C161: lb | D161: =IF(B$43="Fescue",'Input Table'!K$5,+'Input Table'!K$6) -> 60 | E161: ='Input Price List'!B$27 -> 0.6135751418 | F161: 36.81450851
B162: K2O | C162: lb | D162: =IF(B$43="Fescue",'Input Table'!L$5,+'Input Table'!L$6) -> 60 | E162: ='Input Price List'!B$28 -> 0.4088 | F162: 24.528
B163: Custom Application | C163: acre | D163: 1 | E163: ='Input Price List'!B$30 -> 12.71 | F163: 12.71
A164: Lime & Application | B164: Custom Application | C164: ton | D164: =IF(B$43="Fescue",'Input Table'!M$5,+'Input Table'!M$6) -> 2 | E164: ='Input Price List'!B$32 -> 43.63 | F164: =SUM(D164*E164) -> 87.26
A165: Total Variable Expenses | F165: =SUM(F156:F164) -> 240.6667476
A166: Custom Machinery Cost
A167: Spraying | C167: acre | D167: 1 | E167: =+'List Page'!B$31 -> 11.81 | F167: =SUM(D167*E167) -> 11.81
A168: No-till Drill | C168: acre | D168: 1 | E168: =+'List Page'!B$32 -> 17.08 | F168: 17.08
A169: Broadcast Seeding | C169: acre | D169: 1 | E169: =+'List Page'!B$34 -> 15 | F169: 15
A170: Total Custom Machinery Cost | F170: =SUM(F167:F169) -> 43.89
A171: Interest on Operating Capital | B171: 6 months | C171: acre | D171: =SUM(F156:F164) -> 240.6667476 | E171: =+'Input Price List'!B$2 -> 0.08 | F171: =SUM(D171*E171)/2 -> 9.626669905
A172: Total Budgeted Expenses | F172: =SUM(F165+F170+F171) -> 294.1834175

Sheet Cool Season Grass Clove Pasture
A1: Cool Season Grass/Clover, Pasture | K1: Pasture
A2: Estimated Expenses per Acre | K2: * | L2: The budget is based on custom rates for machinery processes. Labor, operating, maintenance, and ownership costs are included in these rates.
F3: Amount | K3: * | L3: The budget is based on no-till establishment.
A4: Item | B4: Description | C4: Unit | D4: Quantity | E4: Price | F4: ($/acre) | K4: * | L4: Sixty pounds of nitrogen will be applied in March, with the remainder applied during the growing season. If clover is included, it is assumed that
A5: Expenses | L5: 60 pounds of nitrogen will come from the clover.
A6: Prorated Establishment Costs | B6: =CONCATENATE(+ForageSpecies,"/","Clover") -> Fescue/Clover | C6: acre | D6: =SUM(1/H$29) -> 0.1 | E6: =+F47 -> 294.1834175 | F6: =D6*E6 -> 29.41834175 | K6: * | L6: Lime prorated at one ton over three years.
A7: Fertilizer | B7: N | C7: lb | D7: =+'Budget Generator'!C$16 -> 60 | E7: ='Input Price List'!B$26 -> 0.5986413043 | F7: =SUM(D7*E7) -> 35.91847826 | K7: * | L7: For a more accurate fertilizer and lime recommendation, take a soil sample. | S7: (Instructions on how to take a soil sample.)
B8: P2O5 | C8: lb | D8: =+'Budget Generator'!C$17 -> 30 | E8: ='Input Price List'!B$27 -> 0.6135751418 | F8: 18.40725425 | K8: * | L8: The post-emergence weed control is based on an average of three common practices. Burndown is a common practice. For weed control and/or burndown
B9: K2O | C9: lb | D9: =+'Budget Generator'!C$18 -> 30 | E9: ='Input Price List'!B$28 -> 0.4088 | F9: 12.264 | L9: recommendations, contact the county Extension office. | Q9: (County office contact information.)
B10: Custom Application | C10: acre | D10: 1 | E10: ='Input Price List'!B$30 -> 12.71 | F10: 12.71 | K10: * | L10: Establishment pro-rated expenses for hay are set for ten years.
A11: Lime & Application | B11: Custom Application | C11: ton | D11: =+'Budget Generator'!C$19 -> 0.33 | E11: ='Input Price List'!B$32 -> 43.63 | F11: 14.3979
A12: Weed Control
A13: Post-Emerge | B13: Herbicide Application | C13: acre | D13: 1 | E13: =+'Input Table'!AF$5 -> 12.295 | F13: =SUM(D13*E13) -> 12.295
B14: Custom Application | C14: acre | D14: 1 | E14: ='Input Price List'!B$40 -> 11.81 | F14: =SUM(D14*E14) -> 11.81
A15: Pest Control | B15: Pest Control Application | C15: acre | E15: =+'Input Table'!AS$5 -> 6.51 | F15: =SUM(D15*E15) -> 0
B16: Custom Application | C16: acre | E16: ='Input Price List'!B$40 -> 11.81 | F16: 0
A17: Total Variable Expenses | F17: =SUM(F6:F16) -> 147.2209743
A18: Custom Machinery Cost
A19: Bush Hogging | C19: acre | D19: 1 | E19: =+'List Page'!B$33 -> 19.5 | F19: =SUM(D19*E19) -> 19.5
A20: Total Custom Machinery Cost | F20: =SUM(F19:F19) -> 19.5
A21: Interest on Operating Capital | B21: 6 months | C21: acre | D21: =SUM(F17) -> 147.2209743 | E21: =+'Input Price List'!B$2 -> 0.08 | F21: =SUM(D21*E21)/2 -> 5.888838971
A22: Cash Rent | C22: acre | D22: 1 | F22: =SUM(D22*E22) -> 0
A23: Total Budgeted Expenses | F23: =SUM(F17+F20+F21+F22) -> 172.6098132
A26: Cool Season Grass/Clover Pasture, Establishment | H26: Establishment Prorated Over Years
A27: Estimated Expenses per Acre
F28: Amount
A29: Item | B29: Description | C29: Unit | D29: Quantity | E29: Price | F29: ($/acre) | H29: 10
A30: Expenses
A31: Burndown | B31: Burndown | C31: acre | D31: 1 | E31: =+'Input Price List'!D$37 -> 15.66 | F31: =D31*E31 -> 15.66
A32: Seed | B32: =+ForageSpecies -> Fescue | C32: lb | D32: =IF(B$32="Fescue",'Input Table'!I$5,+'Input Table'!I$6) -> 17.5 | E32: =IF(B$32="Fescue",'Input Price List'!B$13,+'Input Price List'!B$15) -> 1.33 | F32: =E32*D32 -> 23.275
B33: Red Clover | C33: lb | D33: =+'Input Table'!$I$8 -> 4 | E33: =+'Input Price List'!B$17 -> 3.33 | F33: =E33*D33 -> 13.32
B34: White Clover | C34: lb | D34: =+'Input Table'!$I$7 -> 2 | E34: =+'Input Price List'!B$23 -> 4.57 | F34: =E34*D34 -> 9.14
A35: Fertilizer | B35: N | C35: lb | D35: =IF(B$32="Fescue",'Input Table'!J$5,+'Input Table'!J$6) -> 30 | E35: ='Input Price List'!B$26 -> 0.5986413043 | F35: =SUM(D35*E35) -> 17.95923913
B36: P2O5 | C36: lb | D36: =IF(B$44="Fescue",'Input Table'!K$5,+'Input Table'!K$6) -> 60 | E36: ='Input Price List'!B$27 -> 0.6135751418 | F36: 36.81450851
B37: K2O | C37: lb | D37: =IF(B$32="Fescue",'Input Table'!L$5,+'Input Table'!L$6) -> 60 | E37: ='Input Price List'!B$28 -> 0.4088 | F37: 24.528
B38: Custom Application | C38: acre | D38: 1 | E38: ='Input Price List'!B$30 -> 12.71 | F38: 12.71
A39: Lime & Application | B39: Custom Application | C39: ton | D39: =IF(B$32="Fescue",'Input Table'!M$5,+'Input Table'!M$6) -> 2 | E39: ='Input Price List'!B$32 -> 43.63 | F39: =SUM(D39*E39) -> 87.26
A40: Total Variable Expenses | F40: =SUM(F31:F39) -> 240.6667476
A41: Custom Machinery Cost
A42: Spraying | C42: acre | D42: 1 | E42: =+'List Page'!B$31 -> 11.81 | F42: =SUM(D42*E42) -> 11.81
A43: No-till Drill | C43: acre | D43: 1 | E43: =+'List Page'!B$32 -> 17.08 | F43: 17.08
A44: Broadcast Seeding | C44: acre | D44: 1 | E44: =+'List Page'!B$34 -> 15 | F44: 15
A45: Total Custom Machinery Cost | F45: =SUM(F42:F44) -> 43.89
A46: Interest on Operating Capital | B46: 6 months | C46: acre | D46: =SUM(F31:F39) -> 240.6667476 | E46: =+'Input Price List'!B$2 -> 0.08 | F46: =SUM(D46*E46)/2 -> 9.626669905
A47: Total Budgeted Expenses | F47: =SUM(F40+F45+F46) -> 294.1834175
A115: Cool Season Grass/Clover, Pasture
A116: Estimated Expenses per Acre
F117: Amount
A118: Item | B118: Description | C118: Unit | D118: Quantity | E118: Price | F118: ($/acre)
A119: Expenses
A120: Prorated Establishment Costs | B120: =CONCATENATE(+ForageSpecies,"/","Clover") -> Fescue/Clover | C120: acre | D120: =SUM(1/H$29) -> 0.1 | E120: =+F161 -> 0 | F120: =D120*E120 -> 0
A121: Fertilizer | B121: N | C121: lb | D121: =+'Budget Generator'!C$16 -> 60 | E121: ='Input Price List'!B$26 -> 0.5986413043 | F121: =SUM(D121*E121) -> 35.91847826
B122: P2O5 | C122: lb | D122: =+'Budget Generator'!C$17 -> 30 | E122: ='Input Price List'!B$27 -> 0.6135751418 | F122: 18.40725425
B123: K2O | C123: lb | D123: =+'Budget Generator'!C$18 -> 30 | E123: ='Input Price List'!B$28 -> 0.4088 | F123: 12.264
B124: Custom Application | C124: acre | D124: 1 | E124: ='Input Price List'!B$30 -> 12.71 | F124: 12.71
A125: Lime & Application | B125: Custom Application | C125: ton | D125: =+'Budget Generator'!C$19 -> 0.33 | E125: ='Input Price List'!B$32 -> 43.63 | F125: 14.3979
A126: Weed Control
A127: Post-Emerge | B127: Herbicide Application | C127: acre | D127: 1 | E127: =+'Input Table'!AF$5 -> 12.295 | F127: =SUM(D127*E127) -> 12.295
B128: Custom Application | C128: acre | D128: 1 | E128: ='Input Price List'!B$40 -> 11.81 | F128: =SUM(D128*E128) -> 11.81
A129: Pest Control | B129: Pest Control Application | C129: acre | E129: =+'Input Table'!AS$5 -> 6.51 | F129: =SUM(D129*E129) -> 0
B130: Custom Application | C130: acre | E130: ='Input Price List'!B$40 -> 11.81 | F130: 0
A131: Total Variable Expenses | F131: =SUM(F120:F130) -> 117.8026325
A132: Custom Machinery Cost
A133: Bush Hogging | C133: acre | D133: 1 | E133: =+'List Page'!B$33 -> 19.5 | F133: =SUM(D133*E133) -> 19.5
A134: Total Custom Machinery Cost | F134: =SUM(F133:F133) -> 19.5
A135: Interest on Operating Capital | B135: 6 months | C135: acre | D135: =SUM(F131) -> 117.8026325 | E135: =+'Input Price List'!B$2 -> 0.08 | F135: =SUM(D135*E135)/2 -> 4.712105301
A136: Cash Rent | C136: acre | D136: 1 | F136: =SUM(D136*E136) -> 0
A137: Total Budgeted Expenses | F137: =SUM(F131+F134+F135+F136) -> 142.0147378
A139: Cool Season Grass/Clover Pasture, Establishment
A140: Estimated Expenses per Acre
F141: Amount
A142: Item | B142: Description | C142: Unit | D142: Quantity | E142: Price | F142: ($/acre)
A143: Expenses
A144: Burndown | B144: Burndown | C144: acre | D144: 1 | E144: =+'Input Price List'!D$37 -> 15.66 | F144: =D144*E144 -> 15.66
A145: Seed | B145: =+ForageSpecies -> Fescue | C145: lb | D145: =IF(B$32="Fescue",'Input Table'!I$5,+'Input Table'!I$6) -> 17.5 | E145: =IF(B$32="Fescue",'Input Price List'!B$13,+'Input Price List'!B$15) -> 1.33 | F145: =E145*D145 -> 23.275
B146: Red Clover | C146: lb | D146: =+'Input Table'!$I$8 -> 4 | E146: =+'Input Price List'!B$17 -> 3.33 | F146: =E146*D146 -> 13.32
B147: White Clover | C147: lb | D147: =+'Input Table'!$I$7 -> 2 | E147: =+'Input Price List'!B$23 -> 4.57 | F147: =E147*D147 -> 9.14
A148: Fertilizer | B148: N | C148: lb | D148: =IF(B$32="Fescue",'Input Table'!J$5,+'Input Table'!J$6) -> 30 | E148: ='Input Price List'!B$26 -> 0.5986413043 | F148: =SUM(D148*E148) -> 17.95923913
B149: P2O5 | C149: lb | D149: =IF(B$44="Fescue",'Input Table'!K$5,+'Input Table'!K$6) -> 60 | E149: ='Input Price List'!B$27 -> 0.6135751418 | F149: 36.81450851
B150: K2O | C150: lb | D150: =IF(B$32="Fescue",'Input Table'!L$5,+'Input Table'!L$6) -> 60 | E150: ='Input Price List'!B$28 -> 0.4088 | F150: 24.528
B151: Custom Application | C151: acre | D151: 1 | E151: ='Input Price List'!B$30 -> 12.71 | F151: 12.71
A152: Lime & Application | B152: Custom Application | C152: ton | D152: =IF(B$32="Fescue",'Input Table'!M$5,+'Input Table'!M$6) -> 2 | E152: ='Input Price List'!B$32 -> 43.63 | F152: =SUM(D152*E152) -> 87.26
A153: Total Variable Expenses | F153: =SUM(F144:F152) -> 240.6667476
A154: Custom Machinery Cost
A155: Spraying | C155: acre | D155: 1 | E155: =+'List Page'!B$31 -> 11.81 | F155: =SUM(D155*E155) -> 11.81
A156: No-till Drill | C156: acre | D156: 1 | E156: =+'List Page'!B$32 -> 17.08 | F156: 17.08
A157: Broadcast Seeding | C157: acre | D157: 1 | E157: =+'List Page'!B$34 -> 15 | F157: 15
A158: Total Custom Machinery Cost | F158: =SUM(F155:F157) -> 43.89
A159: Interest on Operating Capital | B159: 6 months | C159: acre | D159: =SUM(F144:F152) -> 240.6667476 | E159: =+'Input Price List'!B$2 -> 0.08 | F159: =SUM(D159*E159)/2 -> 9.626669905
A160: Total Budgeted Expenses | F160: =SUM(F153+F158+F159) -> 294.1834175

Sheet Summer Annual Hay
A1: Summer Annual, Hay | P1: =CONCATENATE("Summer Annual, Hay"," -",+ForageSpecies) -> Summer Annual, Hay -Fescue
A2: Estimated Expenses per Acre | P2: Sensitivity Analysis | X2: Sensitivity Analysis
F3: Amount | G3: Amount | H3: Amount | P3: Return Above Variable Expenses
A4: Item | B4: Description | C4: Unit | D4: Quantity | E4: Price | F4: ($/acre) | G4: ($/ton) | H4: ($/bale) | I4: =IF(+'Budget Generator'!C$3="Hay",+'Budget Generator'!C$9," ") -> Round | S4: Price ($/ton) | Y4: Variable Costs | AA4: Total
A5: Income | I5: =IF(+'Budget Generator'!C$9="Round",+'Budget Generator'!C$10,"Square") -> 4x5 | J5: Bale per Acre | Q5: =SUM(R5-25) -> 100 | R5: =SUM(S5-25) -> 125 | S5: =+E6 -> 150 | T5: =SUM(S5+25) -> 175 | U5: =SUM(T5+25) -> 200 | Y5: (per bale) | AA5: (per bale)
A6: Hay | B6: =+ForageSpecies -> Fescue | C6: ton | D6: =+'Input Table'!B$10 -> 3 | E6: =IF(I$4="Round",'Input Price List'!G$10,'Input Price List'!H$5) -> 150 | F6: =D6*E6 -> 450 | G6: =SUM(F6/D6) -> 150 | H6: =SUM(F6/J$6) -> 53.25 | I6: =+'Budget Generator'!E$10 -> 710 | J6: =SUM(D6*2000)/I6 -> 8.450704225 | P6: =SUM(P7-0.5) -> 2 | Q6: =SUM(Q$5*P6)-$F$20 -> 54.65736749 | R6: =SUM(R$5*$P6)-$F$20 -> 104.6573675 | S6: 154.6573675 | T6: 204.6573675 | U6: 254.6573675 | W6: Yield (ton) | X6: =X7-(X7*0.25) -> 1.6875 | Y6: =($F$20/((X6*2000)/$I$6)) -> 30.57578343 | AA6: =($F$37/((X6*2000)/$I$6)) -> 95.15309319
A7: Expenses | P7: =SUM(P8-0.5) -> 2.5 | Q7: =SUM(Q$5*P7)-$F$20 -> 104.6573675 | R7: 167.1573675 | S7: 229.6573675 | T7: 292.1573675 | U7: 354.6573675 | X7: =X8-(X8*0.25) -> 2.25 | Y7: =($F$20/((X7*2000)/$I$6)) -> 22.93183757 | AA7: =($F$37/((X7*2000)/$I$6)) -> 71.36481989
A8: Burndown | B8: Burndown | C8: acre | D8: 1 | E8: =+'Input Price List'!D$37 -> 15.66 | F8: =D8*E8 -> 15.66 | G8: =SUM(F8/D6) -> 5.22 | H8: =SUM(F8/J$6) -> 1.8531 | O8: Yield | P8: =+D6 -> 3 | Q8: =SUM(Q$5*P8)-$F$20 -> 154.6573675 | R8: 229.6573675 | S8: 304.6573675 | T8: 379.6573675 | U8: 454.6573675 | X8: =+D6 -> 3 | Y8: =($F$20/((X8*2000)/$I$6)) -> 17.19887818 | AA8: =($F$37/((X8*2000)/$I$6)) -> 53.52361492
A9: Seed | B9: =+ForageSpecies -> Fescue | C9: lb | D9: =+'Input Table'!B$4 -> 17.5 | E9: =+'Input Table'!B$12 -> 1.33 | F9: =E9*D9 -> 23.275 | G9: =SUM(F9/D6) -> 7.758333333 | H9: 2.754208333 | P9: =SUM(P8+0.5) -> 3.5 | Q9: =SUM(Q$5*P9)-$F$20 -> 204.6573675 | R9: 292.1573675 | S9: 379.6573675 | T9: 467.1573675 | U9: 554.6573675 | X9: =X8+(X8*0.25) -> 3.75 | Y9: =($F$20/((X9*2000)/$I$6)) -> 13.75910254 | AA9: =($F$37/((X9*2000)/$I$6)) -> 42.81889193
A10: Fertilizer | B10: N | C10: lb | D10: =+'Budget Generator'!C$16 -> 60 | E10: ='Input Price List'!B$26 -> 0.5986413043 | F10: =SUM(D10*E10) -> 35.91847826 | G10: =SUM(F10/D6) -> 11.97282609 | H10: =SUM(F10/J$6) -> 4.250353261 | P10: =SUM(P9+0.5) -> 4 | Q10: =SUM(Q$5*P10)-$F$20 -> 254.6573675 | R10: 354.6573675 | S10: 454.6573675 | T10: 554.6573675 | U10: 654.6573675 | X10: =X9+(X9*0.25) -> 4.6875 | Y10: =($F$20/((X10*2000)/$I$6)) -> 11.00728204 | AA10: =($F$37/((X10*2000)/$I$6)) -> 34.25511355
B11: P2O5 | C11: lb | D11: =+'Budget Generator'!C$17 -> 30 | E11: ='Input Price List'!B$27 -> 0.6135751418 | F11: 18.40725425 | G11: =SUM(F11/D6) -> 6.135751418 | H11: 2.178191753
B12: K2O | C12: lb | D12: =+'Budget Generator'!C$18 -> 30 | E12: ='Input Price List'!B$28 -> 0.4088 | F12: 12.264 | G12: =SUM(F12/D6) -> 4.088 | H12: 1.45124 | P12: Return Above Fixed Expenses | X12: Return Above Fixed Expenses
B13: Custom Application | C13: acre | D13: 2 | E13: ='Input Price List'!B$30 -> 12.71 | F13: 25.42 | G13: =SUM(F13/D6) -> 8.473333333 | H13: 3.008033333 | S13: Price ($/ton) | AA13: Price ($/bale)
A14: Lime & Application | B14: Custom Application | C14: ton | D14: =+'Budget Generator'!C$19 -> 0.33 | E14: ='Input Price List'!B$32 -> 43.63 | F14: 14.3979 | G14: =SUM(F14/D6) -> 4.7993 | H14: 1.7037515 | Q14: =SUM(R14-25) -> 100 | R14: =SUM(S14-25) -> 125 | S14: =+E6 -> 150 | T14: =SUM(S14+25) -> 175 | U14: =SUM(T14+25) -> 200 | Y14: =IF($I$4="Round",SUM(Z14-5),SUM(Z14-1)) -> 43.25 | Z14: =IF($I$4="Round",SUM(AA14-5),SUM(AA14-1)) -> 48.25 | AA14: =+H6 -> 53.25 | AB14: =IF($I$4="Round",SUM(AA14+5),SUM(AA14+1)) -> 58.25 | AC14: =IF($I$4="Round",SUM(AB14+5),SUM(AB14+1)) -> 63.25
A15: Weed Control | P15: =SUM(P16-0.5) -> 2 | Q15: =SUM(Q$5*P15)-$F$37 -> -252.3122387 | R15: =SUM(R$5*$P15)-$F$37 -> -202.3122387 | S15: -152.3122387 | T15: -102.3122387 | U15: -52.31223875 | X15: =SUM(X16-2) -> 4.450704225 | Y15: =SUM((Y$14*$X15)-$F$37)/$X15 -> -58.37711693 | Z15: -53.37711693 | AA15: -48.37711693 | AB15: -43.37711693 | AC15: -38.37711693
A16: Post-Emerge | B16: Herbicide Application | C16: acre | E16: =+'Input Table'!AF$5 -> 12.295 | F16: =SUM(D16*E16) -> 0 | G16: =SUM(F16/D6) -> 0 | H16: =SUM(F16/J$6) -> 0 | P16: =SUM(P17-0.5) -> 2.5 | Q16: =SUM(Q$5*P16)-$F$37 -> -202.3122387 | R16: -139.8122387 | S16: -77.31223875 | T16: -14.81223875 | U16: 47.68776125 | X16: =SUM(X17-2) -> 6.450704225 | Y16: -26.86827282 | Z16: -21.86827282 | AA16: -16.86827282 | AB16: -11.86827282 | AC16: -6.868272819
B17: Custom Application | C17: acre | E17: ='Input Price List'!B$40 -> 11.81 | F17: =SUM(D17*E17) -> 0 | G17: =SUM(F17/D6) -> 0 | H17: =SUM(F17/J$6) -> 0 | O17: Yield | P17: =+D6 -> 3 | Q17: =SUM(Q$5*P17)-$F$37 -> -152.3122387 | R17: -77.31223875 | S17: -2.312238747 | T17: 72.68776125 | U17: 147.6877613 | W17: Yield | X17: =+J6 -> 8.450704225 | Y17: -10.27361492 | Z17: -5.273614918 | AA17: -0.2736149184 | AB17: 4.726385082 | AC17: 9.726385082
A18: Pest Control | B18: Pest Control Application | C18: acre | E18: =+'Input Table'!AS$5 -> 6.51 | F18: =SUM(D18*E18) -> 0 | G18: =SUM(F18/D6) -> 0 | H18: =SUM(F18/J$6) -> 0 | P18: =SUM(P17+0.5) -> 3.5 | Q18: =SUM(Q$5*P18)-$F$37 -> -102.3122387 | R18: -14.81223875 | S18: 72.68776125 | T18: 160.1877613 | U18: 247.6877613 | W18: (bale) | X18: =SUM(X17+2) -> 10.45070423 | Y18: -0.03055114695 | Z18: 4.969448853 | AA18: 9.969448853 | AB18: 14.96944885 | AC18: 19.96944885
B19: Custom Application | C19: acre | E19: ='Input Price List'!B$40 -> 11.81 | F19: =SUM(D19*E19) -> 0 | G19: =SUM(F19/D6) -> 0 | H19: =SUM(F19/J$6) -> 0 | P19: =SUM(P18+0.5) -> 4 | Q19: =SUM(Q$5*P19)-$F$37 -> -52.31223875 | R19: 47.68776125 | S19: 147.6877613 | T19: 247.6877613 | U19: 347.6877613 | X19: =SUM(X18+2) -> 12.45070423 | Y19: 6.92175458 | Z19: 11.92175458 | AA19: 16.92175458 | AB19: 21.92175458 | AC19: 26.92175458
A20: Total Variable Expenses | F20: =SUM(F8:F19) -> 145.3426325 | G20: =F20/D6 -> 48.44754417 | H20: =SUM(H8:H19) -> 17.19887818
A21: Return over Variable Expenses | F21: =F6-F20 -> 304.6573675 | G21: =F21/D6 -> 101.5524558 | H21: =SUM(H6-H20) -> 36.05112182
A22: Custom Machinery Cost | O22: Hay
A23: Spraying | C23: acre | D23: 1 | E23: =+'List Page'!B$31 -> 11.81 | F23: =SUM(D23*E23) -> 11.81 | G23: =SUM(F23/D6) -> 3.936666667 | H23: =SUM(F23/J$6) -> 1.397516667 | O23: * | P23: The budget is based on custom rates for machinery processes. Labor, operating, maintenance, and ownership costs are included in these rates.
A24: No-till Drill | C24: acre | D24: 1 | E24: =+'List Page'!B$32 -> 17.08 | F24: 17.08 | G24: =SUM(F24/D6) -> 5.693333333 | H24: 2.021133333 | P24: The baling rate includes binding.
A25: Disk Mowing | C25: cutting | D25: =+'Budget Generator'!C$11 -> 2 | E25: =+'List Page'!B$26 -> 16.5 | F25: =SUM(D25*E25) -> 33 | G25: =SUM(F25/D6) -> 11 | H25: =SUM(F25/J$6) -> 3.905 | O25: * | P25: The budget is based on no-till establishment.
A26: Tedding | C26: cutting | D26: =+'Budget Generator'!C$11 -> 2 | E26: =+'List Page'!B$27 -> 6.67 | F26: =SUM(D26*E26) -> 13.34 | G26: =SUM(F26/D6) -> 4.446666667 | H26: 1.578566667 | O26: * | P26: Nitrogen is applied in split applications.
A27: Raking | C27: cutting | D27: =+'Budget Generator'!C$11 -> 2 | E27: =+'List Page'!B$28 -> 8.67 | F27: 17.34 | G27: =SUM(F27/D6) -> 5.78 | H27: 2.0519 | O27: * | P27: Lime prorated at one ton over two years.
A28: Baling | C28: cutting | D28: =+'Budget Generator'!C$11 -> 2 | E28: =IF($I$4="Square",+'List Page'!$C$29,+'List Page'!$B$39) -> 13.17 | F28: =SUM(D29*E28) -> 111.2957746 | G28: =SUM(F28/D6) -> 37.09859155 | H28: 13.17 | O28: * | P28: For a more accurate fertilizer and lime recommendation, take a soil sample. | W28: (Instructions on how to take a soil sample.)
A29: Hauling | C29: bale | D29: =+J$6 -> 8.450704225 | E29: =IF($I$4="Round",+'List Page'!$C$30,'List Page'!$D$30) -> 5.42 | F29: =(E29*D29) -> 45.8028169 | G29: =SUM(F29/D6) -> 15.26760563 | H29: =SUM(F29/J$6) -> 5.42 | O29: * | P29: The post-emergence weed control is based on an average of three common practices. Burndown is a common practice. For weed control and/or burndown
A30: Total Custom Machinery Cost | F30: =SUM(F23:F29) -> 249.6685915 | G30: =SUM(G23:G29) -> 83.22286385 | H30: =SUM(H23:H29) -> 29.54411667 | P30: recommendations, contact the county Extension office. | U30: (County office contact information.)
A31: Interest on Operating Capital | B31: 6 months | C31: acre | D31: =SUM(F20) -> 145.3426325 | E31: =+'Input Price List'!B$2 -> 0.08 | F31: =SUM(D31*E31)/2 -> 5.813705301 | G31: =F31/D6 -> 1.937901767 | H31: 0.6879551272 | O31: * | P31: Storage loss is based on an average of multiple studies.
A32: Cash Rent | C32: acre | D32: 1 | F32: =SUM(D32*E32) -> 0 | G32: =SUM(F32/D6) -> 0 | H32: =SUM(F32/J$6) -> 0
A33: Storage
A34: Fixed Cost | B34: =+'Budget Generator'!C$13 -> Hay Barn | C34: bale | D34: =$D$6*2000/$I$6 -> 8.450704225 | E34: =IF(B$34="Hay barn",+'List Page'!C$18,IF(B$34="Stacked/tarped",+'List Page'!C$19,+'List Page'!C$20)) -> 4.432581695 | F34: =SUM(D34*E34) -> 37.45843686 | G34: =F34/D6 -> 12.48614562 | H34: 4.432581695
A35: Shrinkage Loss | C35: annual | D35: =IF(B$34="Hay barn",+'List Page'!B$18,IF(B$34="Stacked/tarped",+'List Page'!B$19,+'List Page'!B$20)) -> 0.035 | E35: =SUM(F20+F30+F31+F32) -> 400.8249294 | F35: =D35*E35 -> 14.02887253 | G35: =F35/D6 -> 4.676290843 | H35: 1.660083249
A36: Total Storage Cost | F36: =SUM(F34:F35) -> 51.48730938 | G36: =SUM(G34:G35) -> 17.16243646 | H36: =SUM(H34:H35) -> 6.092664944
A37: Total Budgeted Expenses | F37: =SUM(F20+F30+F31+F36+F32) -> 452.3122387 | G37: =SUM(G20+G30+G31+G36+G32) -> 150.7707462 | H37: =SUM(H20+H30+H31+H36+H32) -> 53.52361492
A38: Return to Land & Management | F38: =F6-F37 -> -2.312238747 | G38: =G6-G37 -> -0.770746249 | H38: =H6-H37 -> -0.2736149184
A115: Summer Annual, Hay
A116: Estimated Expenses per Acre
F117: Amount | G117: Amount | H117: Amount
A118: Item | B118: Description | C118: Unit | D118: Quantity | E118: Price | F118: ($/acre) | G118: ($/ton) | H118: ($/bale)
A119: Income
A120: Hay | B120: =+ForageSpecies -> Fescue | C120: ton | D120: =+'Input Table'!B$10 -> 3 | E120: =IF(I$4="Round",'Input Price List'!G$10,'Input Price List'!H$5) -> 150 | F120: =D120*E120 -> 450 | G120: =SUM(F120/D120) -> 150 | H120: =SUM(F120/J$6) -> 53.25
A121: Expenses
A122: Burndown | B122: Burndown | C122: acre | D122: 1 | E122: =+'Input Price List'!D$37 -> 15.66 | F122: =D122*E122 -> 15.66 | G122: =SUM(F122/D120) -> 5.22 | H122: =SUM(F122/J$6) -> 1.8531
A123: Seed | B123: =+ForageSpecies -> Fescue | C123: lb | D123: =+'Input Table'!B$4 -> 17.5 | E123: =+'Input Table'!B$12 -> 1.33 | F123: =E123*D123 -> 23.275 | G123: =SUM(F123/D120) -> 7.758333333 | H123: 2.754208333
A124: Fertilizer | B124: N | C124: lb | D124: =+'Budget Generator'!C$16 -> 60 | E124: ='Input Price List'!B$26 -> 0.5986413043 | F124: =SUM(D124*E124) -> 35.91847826 | G124: =SUM(F124/D120) -> 11.97282609 | H124: 4.250353261
B125: P2O5 | C125: lb | D125: =+'Budget Generator'!C$17 -> 30 | E125: ='Input Price List'!B$27 -> 0.6135751418 | F125: 18.40725425 | G125: =SUM(F125/D120) -> 6.135751418 | H125: 2.178191753
B126: K2O | C126: lb | D126: =+'Budget Generator'!C$18 -> 30 | E126: ='Input Price List'!B$28 -> 0.4088 | F126: 12.264 | G126: =SUM(F126/D120) -> 4.088 | H126: 1.45124
B127: Custom Application | C127: acre | D127: 2 | E127: ='Input Price List'!B$30 -> 12.71 | F127: 25.42 | G127: =SUM(F127/D120) -> 8.473333333 | H127: 3.008033333
A128: Lime & Application | B128: Custom Application | C128: ton | D128: =+'Budget Generator'!C$19 -> 0.33 | E128: ='Input Price List'!B$32 -> 43.63 | F128: 14.3979 | G128: =SUM(F128/D120) -> 4.7993 | H128: 1.7037515
A129: Weed Control
A130: Post-Emerge | B130: Herbicide Application | C130: acre | E130: =+'Input Table'!AF$5 -> 12.295 | F130: =SUM(D130*E130) -> 0 | G130: =SUM(F130/D120) -> 0 | H130: =SUM(F130/J$6) -> 0
B131: Custom Application | C131: acre | E131: ='Input Price List'!B$40 -> 11.81 | F131: =SUM(D131*E131) -> 0 | G131: =SUM(F131/D120) -> 0 | H131: =SUM(F131/J$6) -> 0
A132: Pest Control | B132: Pest Control Application | C132: acre | E132: =+'Input Table'!AS$5 -> 6.51 | F132: =SUM(D132*E132) -> 0 | G132: =SUM(F132/D120) -> 0 | H132: =SUM(F132/J$6) -> 0
B133: Custom Application | C133: acre | E133: ='Input Price List'!B$40 -> 11.81 | F133: =SUM(D133*E133) -> 0 | G133: =SUM(F133/D120) -> 0 | H133: =SUM(F133/J$6) -> 0
A134: Total Variable Expenses | F134: =SUM(F122:F133) -> 145.3426325 | G134: =F134/D120 -> 48.44754417 | H134: =SUM(H122:H133) -> 17.19887818
A135: Return over Variable Expenses | F135: =F120-F134 -> 304.6573675 | G135: =F135/D120 -> 101.5524558 | H135: =SUM(H120-H134) -> 36.05112182
A136: Custom Machinery Cost
A137: Spraying | C137: acre | D137: 1 | E137: =+'List Page'!B$31 -> 11.81 | F137: =SUM(D137*E137) -> 11.81 | G137: =SUM(F137/D120) -> 3.936666667 | H137: =SUM(F137/J$6) -> 1.397516667
A138: No-till Drill | C138: acre | D138: 1 | E138: =+'List Page'!B$32 -> 17.08 | F138: 17.08 | G138: =SUM(F138/D120) -> 5.693333333 | H138: 2.021133333
A139: Disk Mowing | C139: cutting | D139: =+'Budget Generator'!C$11 -> 2 | E139: =+'List Page'!B$26 -> 16.5 | F139: =SUM(D139*E139) -> 33 | G139: =SUM(F139/D120) -> 11 | H139: 3.905
A140: Tedding | C140: cutting | D140: =+'Budget Generator'!C$11 -> 2 | E140: =+'List Page'!B$27 -> 6.67 | F140: =SUM(D140*E140) -> 13.34 | G140: =SUM(F140/D120) -> 4.446666667 | H140: 1.578566667
A141: Raking | C141: cutting | D141: =+'Budget Generator'!C$11 -> 2 | E141: =+'List Page'!B$28 -> 8.67 | F141: 17.34 | G141: =SUM(F141/D120) -> 5.78 | H141: 2.0519
A142: Baling | C142: cutting | D142: =+'Budget Generator'!C$11 -> 2 | E142: =IF($I$4="Square",+'List Page'!$C$29,+'List Page'!$B$39) -> 13.17 | F142: =SUM(D143*E142) -> 111.2957746 | G142: =SUM(F142/D120) -> 37.09859155 | H142: 13.17
A143: Hauling | C143: bale | D143: =+J$6 -> 8.450704225 | E143: =IF($I$4="Round",+'List Page'!$C$30,'List Page'!$D$30) -> 5.42 | F143: =(E143*D143) -> 45.8028169 | G143: =SUM(F143/D120) -> 15.26760563 | H143: =SUM(F143/J$6) -> 5.42
A144: Total Custom Machinery Cost | F144: =SUM(F137:F143) -> 249.6685915 | G144: =SUM(G137:G143) -> 83.22286385 | H144: =SUM(H137:H143) -> 29.54411667
A145: Interest on Operating Capital | B145: 6 months | C145: acre | D145: =SUM(F134) -> 145.3426325 | E145: =+'Input Price List'!B$2 -> 0.08 | F145: =SUM(D145*E145)/2 -> 5.813705301 | G145: =F145/D120 -> 1.937901767 | H145: =SUM(F145/J$6) -> 0.6879551272
A146: Cash Rent | C146: acre | D146: 1 | F146: =SUM(D146*E146) -> 0 | G146: =SUM(F146/D120) -> 0 | H146: =SUM(F146/J$6) -> 0
A147: Storage
A148: Fixed Cost | B148: =+'Budget Generator'!C$13 -> Hay Barn | C148: bale | D148: =$D$6*2000/$I$6 -> 8.450704225 | E148: =IF(B$34="Hay barn",+'List Page'!C$18,IF(B$34="Stacked/tarped",+'List Page'!C$19,+'List Page'!C$20)) -> 4.432581695 | F148: =SUM(D148*E148) -> 37.45843686 | G148: =F148/D120 -> 12.48614562 | H148: =SUM(F148/J$6) -> 4.432581695
A149: Shrinkage Loss | C149: annual | D149: =IF(B$34="Hay barn",+'List Page'!B$18,IF(B$34="Stacked/tarped",+'List Page'!B$19,+'List Page'!B$20)) -> 0.035 | E149: =SUM(H134+H144+H145) -> 47.43094997 | F149: =D149*E149*D148 -> 14.02887253 | G149: =F149/D120 -> 4.676290843 | H149: 1.660083249
A150: Total Storage Cost | F150: =SUM(F148:F149) -> 51.48730938 | G150: =SUM(G148:G149) -> 17.16243646 | H150: =SUM(H148:H149) -> 6.092664944
A151: Total Budgeted Expenses | F151: =SUM(F134+F144+F145+F150+F146) -> 452.3122387 | G151: =SUM(G134+G144+G145+G150+G146) -> 150.7707462 | H151: =SUM(H134+H144+H145+H150+H146) -> 53.52361492
A152: Return to Land & Management | F152: =F120-F151 -> -2.312238747 | G152: =G120-G151 -> -0.770746249 | H152: =H120-H151 -> -0.2736149184

Sheet Summer Annual Baleage
A1: Summer Annual, Baleage | P1: Sensitivity Analysis
A2: Estimated Expenses per Acre | P2: Return Above Variable Expenses
F3: Amount | G3: Amount | H3: Amount | S3: Price ($/ton)
A4: Item | B4: Description | C4: Unit | D4: Quantity | E4: Price | F4: ($/acre) | G4: ($/ton) | H4: ($/bale) | I4: =+'Budget Generator'!C$9 -> Round | Q4: =SUM(R4-25) -> -50 | R4: =SUM(S4-25) -> -25 | S4: =+E6 -> 0 | T4: =SUM(S4+25) -> 25 | U4: =SUM(T4+25) -> 50
A5: Income | I5: =IF(+'Budget Generator'!C$9="Round",+'Budget Generator'!C$10,"Square") -> 4x5 | J5: Bale per Acre | P5: =SUM(P6-0.5) -> 3.8 | Q5: =IF($E$6>0,SUM(Q$4*$P5)-$F$20," ") -> 
A6: Hay | B6: =+ForageSpecies -> Fescue | C6: ton | D6: =+'Input Table'!B$10*1.6 -> 4.8 | F6: =D6*E6 -> 0 | G6: =SUM(F6/D6) -> 0 | H6: =SUM(F6/J$6) -> 0 | I6: =+'Budget Generator'!E$10 -> 710 | J6: =SUM(D6*2000)/I6 -> 13.52112676 | P6: =SUM(P7-0.5) -> 4.3
A7: Expenses | O7: Yield | P7: =+D6 -> 4.8
A8: Burndown | B8: Burndown | C8: acre | D8: 1 | E8: =+'Input Price List'!D$37 -> 15.66 | F8: =D8*E8 -> 15.66 | G8: =SUM(F8/D6) -> 3.2625 | H8: =SUM(F8/J$6) -> 1.1581875 | P8: =SUM(P7+0.5) -> 5.3
A9: Seed | B9: =+ForageSpecies -> Fescue | C9: lb | D9: =+'Input Table'!B$4 -> 17.5 | E9: =+'Input Table'!B$12 -> 1.33 | F9: =E9*D9 -> 23.275 | G9: =SUM(F9/D6) -> 4.848958333 | H9: 1.721380208 | P9: =SUM(P8+0.5) -> 5.8
A10: Fertilizer | B10: N | C10: lb | D10: =+'Budget Generator'!C$16 -> 60 | E10: ='Input Price List'!B$26 -> 0.5986413043 | F10: =SUM(D10*E10) -> 35.91847826 | G10: =SUM(F10/D6) -> 7.483016304 | H10: 2.656470788
B11: P2O5 | C11: lb | D11: =+'Budget Generator'!C$17 -> 30 | E11: ='Input Price List'!B$27 -> 0.6135751418 | F11: 18.40725425 | G11: =SUM(F11/D6) -> 3.834844636 | H11: 1.361369846 | P11: Return Above Fixed Expenses
B12: K2O | C12: lb | D12: =+'Budget Generator'!C$18 -> 30 | E12: ='Input Price List'!B$28 -> 0.4088 | F12: 12.264 | G12: =SUM(F12/D6) -> 2.555 | H12: 0.907025 | S12: Price ($/ton)
B13: Custom Application | C13: acre | D13: 2 | E13: ='Input Price List'!B$30 -> 12.71 | F13: 25.42 | G13: =SUM(F13/D6) -> 5.295833333 | H13: 1.880020833 | Q13: =SUM(R13-25) -> -50 | R13: =SUM(S13-25) -> -25 | S13: =+E6 -> 0 | T13: =SUM(S13+25) -> 25 | U13: =SUM(T13+25) -> 50
A14: Lime & Application | B14: Custom Application | C14: ton | D14: =+'Budget Generator'!C$19 -> 0.33 | E14: ='Input Price List'!B$32 -> 43.63 | F14: 14.3979 | G14: =SUM(F14/D6) -> 2.9995625 | H14: 1.064844687 | P14: =SUM(P15-0.5) -> 3.8 | Q14: =IF($E$6>0,SUM(Q$4*$P14)-$F$36," ") -> 
A15: Weed Control | P15: =SUM(P16-0.5) -> 4.3
A16: Post-Emerge | B16: Herbicide Application | C16: acre | E16: =+'Input Table'!AF$5 -> 12.295 | F16: =SUM(D16*E16) -> 0 | G16: =SUM(F16/D6) -> 0 | H16: =SUM(F16/J$6) -> 0 | O16: Yield | P16: =+D6 -> 4.8
B17: Custom Application | C17: acre | E17: ='Input Price List'!B$40 -> 11.81 | F17: =SUM(D17*E17) -> 0 | G17: =SUM(F17/D6) -> 0 | H17: =SUM(F17/J$6) -> 0 | P17: =SUM(P16+0.5) -> 5.3
A18: Pest Control | B18: Pest Control Application | C18: acre | E18: =+'Input Table'!AS$5 -> 6.51 | F18: =SUM(D18*E18) -> 0 | G18: =SUM(F18/D6) -> 0 | H18: =SUM(F18/J$6) -> 0 | P18: =SUM(P17+0.5) -> 5.8
B19: Custom Application | C19: acre | E19: ='Input Price List'!B$40 -> 11.81 | F19: =SUM(D19*E19) -> 0 | G19: =SUM(F19/D6) -> 0 | H19: =SUM(F19/J$6) -> 0
A20: Total Variable Expenses | F20: =SUM(F8:F19) -> 145.3426325 | G20: =SUM(G8:G19) -> 30.27971511 | H20: =SUM(H8:H19) -> 10.74929886
A21: Return over Variable Expenses | F21: =IF(F6>0,F6-F20," ") ->  | G21: =IF(G6>0,F20/D6,"") ->  | H21: =IF(E6>0,SUM(H6-H20),"") ->  | O21: Baleage
A22: Custom Machinery Cost | O22: * | P22: The budget is based on custom rates for machinery processes. Labor, operating, maintenance, and ownership costs are included in these rates.
A23: Spraying | C23: acre | D23: 1 | E23: =+'List Page'!B$31 -> 11.81 | F23: =SUM(D23*E23) -> 11.81 | G23: =SUM(F23/D6) -> 2.460416667 | H23: =SUM(F23/J$6) -> 0.8734479167 | P23: The baling rate includes binding.
A24: No-till Drill | C24: acre | D24: 1 | E24: =+'List Page'!B$32 -> 17.08 | F24: 17.08 | G24: =SUM(F24/D6) -> 3.558333333 | H24: 1.263208333 | O24: * | P24: The budget is based on no-till establishment.
A25: Disk Mowing | C25: cutting | D25: =+'Budget Generator'!C$11 -> 2 | E25: =+'List Page'!B$26 -> 16.5 | F25: =SUM(D25*E25) -> 33 | G25: =SUM(F25/D6) -> 6.875 | H25: 2.440625 | O25: * | P25: Nitrogen is applied in split applications.
A26: Tedding | C26: cutting | D26: =+'Budget Generator'!C$11 -> 2 | E26: =+'List Page'!B$27 -> 6.67 | F26: =SUM(D26*E26) -> 13.34 | G26: =SUM(F26/D6) -> 2.779166667 | H26: 0.9866041667 | O26: * | P26: Lime prorated at one ton over two years.
A27: Raking | C27: cutting | D27: =+'Budget Generator'!C$11 -> 2 | E27: =+'List Page'!B$28 -> 8.67 | F27: 17.34 | G27: =SUM(F27/D6) -> 3.6125 | H27: 1.2824375 | O27: * | P27: Based on inline tube wrapping.
A28: Baling | C28: cutting | D28: =+'Budget Generator'!C$11 -> 2 | E28: =+'List Page'!B$39+2 -> 15.17 | F28: 30.34 | G28: =SUM(F28/D6) -> 6.320833333 | H28: 2.243895833 | O28: * | P28: For a more accurate fertilizer and lime recommendation, take a soil sample. | W28: (Instructions on how to take a soil sample.)
A29: Hauling | C29: bale | D29: =+J$6 -> 13.52112676 | E29: ='List Page'!$C$30 -> 5.42 | F29: =SUM(D29*E29) -> 73.28450704 | G29: =SUM(F29/D6) -> 15.26760563 | H29: =SUM(F29/J$6) -> 5.42 | O29: * | P29: The post-emergence weed control is based on an average of three common practices. Burndown is a common practice. For weed control and/or burndown
A30: Wrapping | C30: bale | D30: =+J$6 -> 13.52112676 | E30: =+'List Page'!C$35 -> 5.5 | F30: =(E30*D30) -> 74.36619718 | G30: =SUM(F30/D6) -> 15.49295775 | H30: =SUM(F30/J$6) -> 5.5 | P30: recommendations, contact the county Extension office. | U30: (County office contact information.)
A31: Total Custom Machinery Cost | F31: =SUM(F23:F30) -> 270.5607042 | G31: =SUM(G23:G30) -> 56.36681338 | H31: =SUM(H23:H30) -> 20.01021875 | O31: * | P31: Storage loss is based on an average of multiple studies.
A32: Interest on Operating Capital | B32: 6 months | C32: acre | D32: =SUM(F20) -> 145.3426325 | E32: =+'Input Price List'!B$2 -> 0.08 | F32: =SUM(D32*E32)/2 -> 5.813705301 | G32: =F32/D6 -> 1.211188604 | H32: 0.4299719545
A33: Cash Rent | C33: acre | D33: 1 | F33: =SUM(D33*E33) -> 0 | G33: =SUM(F33/D6) -> 0 | H33: =SUM(F33/J$6) -> 0
A34: Storage
A35: Shrinkage Loss | C35: annual | D35: =+'List Page'!B$21 -> 0.15 | E35: =SUM(F20+F31+F32+F33) -> 421.717042 | F35: =D35*E35 -> 63.25755631 | G35: =F35/D6 -> 13.17865756 | H35: 4.678423435
A36: Total Budgeted Expenses | F36: =SUM(F20+F31+F32+F33) -> 421.717042 | G36: =SUM(G20+G31+G32+G33) -> 87.85771709 | H36: =SUM(H20+H31+H32+H33) -> 31.18948957
A37: Return to Land & Management | F37: =IF(F6>0,F6-F36," ") ->  | G37: =IF(G6>0,F37/D6,"") ->  | H37: =IF(E6>0,SUM(H6-H36),"") -> 
A115: Summer Annual, Baleage
A116: Estimated Expenses per Acre
F117: Amount | G117: Amount | H117: Amount
A118: Item | B118: Description | C118: Unit | D118: Quantity | E118: Price | F118: ($/acre) | G118: ($/ton) | H118: ($/bale)
A119: Income
A120: Hay | B120: =+ForageSpecies -> Fescue | C120: ton | D120: =+'Input Table'!B$10*1.6 -> 4.8 | F120: =D120*E120 -> 0 | G120: =SUM(F120/D120) -> 0 | H120: =SUM(F120/J$6) -> 0
A121: Expenses
A122: Burndown | B122: Burndown | C122: acre | D122: 1 | E122: =+'Input Price List'!D$37 -> 15.66 | F122: =D122*E122 -> 15.66 | G122: =SUM(F122/D120) -> 3.2625 | H122: =SUM(F122/J$6) -> 1.1581875
A123: Seed | B123: =+ForageSpecies -> Fescue | C123: lb | D123: =+'Input Table'!B$4 -> 17.5 | E123: =+'Input Table'!B$12 -> 1.33 | F123: =E123*D123 -> 23.275 | G123: =SUM(F123/D120) -> 4.848958333 | H123: 1.721380208
A124: Fertilizer | B124: N | C124: lb | D124: =+'Budget Generator'!C$16 -> 60 | E124: ='Input Price List'!B$26 -> 0.5986413043 | F124: =SUM(D124*E124) -> 35.91847826 | G124: =SUM(F124/D120) -> 7.483016304 | H124: 2.656470788
B125: P2O5 | C125: lb | D125: =+'Budget Generator'!C$17 -> 30 | E125: ='Input Price List'!B$27 -> 0.6135751418 | F125: 18.40725425 | G125: =SUM(F125/D120) -> 3.834844636 | H125: 1.361369846
B126: K2O | C126: lb | D126: =+'Budget Generator'!C$18 -> 30 | E126: ='Input Price List'!B$28 -> 0.4088 | F126: 12.264 | G126: =SUM(F126/D120) -> 2.555 | H126: 0.907025
B127: Custom Application | C127: acre | D127: 2 | E127: ='Input Price List'!B$30 -> 12.71 | F127: 25.42 | G127: =SUM(F127/D120) -> 5.295833333 | H127: 1.880020833
A128: Lime & Application | B128: Custom Application | C128: ton | D128: =+'Budget Generator'!C$19 -> 0.33 | E128: ='Input Price List'!B$32 -> 43.63 | F128: 14.3979 | G128: =SUM(F128/D120) -> 2.9995625 | H128: 1.064844687
A129: Weed Control
A130: Post-Emerge | B130: Herbicide Application | C130: acre | E130: =+'Input Table'!AF$5 -> 12.295 | F130: =SUM(D130*E130) -> 0 | G130: =SUM(F130/D120) -> 0 | H130: =SUM(F130/J$6) -> 0
B131: Custom Application | C131: acre | E131: ='Input Price List'!B$40 -> 11.81 | F131: =SUM(D131*E131) -> 0 | G131: =SUM(F131/D120) -> 0 | H131: =SUM(F131/J$6) -> 0
A132: Pest Control | B132: Pest Control Application | C132: acre | E132: =+'Input Table'!AS$5 -> 6.51 | F132: =SUM(D132*E132) -> 0 | G132: =SUM(F132/D120) -> 0 | H132: =SUM(F132/J$6) -> 0
B133: Custom Application | C133: acre | E133: ='Input Price List'!B$40 -> 11.81 | F133: =SUM(D133*E133) -> 0 | G133: =SUM(F133/D120) -> 0 | H133: =SUM(F133/J$6) -> 0
A134: Total Variable Expenses | F134: =SUM(F122:F133) -> 145.3426325 | G134: =F134/D120 -> 30.27971511 | H134: =SUM(H122:H133) -> 10.74929886
A135: Return over Variable Expenses | F135: =IF(F120>0,F120-F134," ") ->  | G135: =IF(G120>0,F134/D120,"") ->  | H135: =IF(E120>0,SUM(H120-H134),"") -> 
A136: Custom Machinery Cost
A137: Spraying | C137: acre | D137: 1 | E137: =+'List Page'!B$31 -> 11.81 | F137: =SUM(D137*E137) -> 11.81 | G137: =SUM(F137/D120) -> 2.460416667 | H137: =SUM(F137/J$6) -> 0.8734479167
A138: No-till Drill | C138: acre | D138: 1 | E138: =+'List Page'!B$32 -> 17.08 | F138: 17.08 | G138: =SUM(F138/D120) -> 3.558333333 | H138: 1.263208333
A139: Disk Mowing | C139: cutting | D139: =+'Budget Generator'!C$11 -> 2 | E139: =+'List Page'!B$26 -> 16.5 | F139: =SUM(D139*E139) -> 33 | G139: =SUM(F139/D120) -> 6.875 | H139: 2.440625
A140: Tedding | C140: cutting | D140: =+'Budget Generator'!C$11 -> 2 | E140: =+'List Page'!B$27 -> 6.67 | F140: =SUM(D140*E140) -> 13.34 | G140: =SUM(F140/D120) -> 2.779166667 | H140: 0.9866041667
A141: Raking | C141: cutting | D141: =+'Budget Generator'!C$11 -> 2 | E141: =+'List Page'!B$28 -> 8.67 | F141: 17.34 | G141: =SUM(F141/D120) -> 3.6125 | H141: 1.2824375
A142: Baling | C142: cutting | D142: =+'Budget Generator'!C$11 -> 2 | E142: =+'List Page'!B$39+2 -> 15.17 | F142: 30.34 | G142: =SUM(F142/D120) -> 6.320833333 | H142: 2.243895833
A143: Hauling | C143: bale | D143: =+J$6 -> 13.52112676 | E143: ='List Page'!$C$30 -> 5.42 | F143: 73.28450704 | G143: =SUM(F143/D120) -> 15.26760563 | H143: 5.42
A144: Wrapping | C144: bale | D144: =+J$6 -> 13.52112676 | E144: =+'List Page'!C$35 -> 5.5 | F144: =(E144*D144) -> 74.36619718 | G144: =SUM(F144/D120) -> 15.49295775 | H144: =SUM(F144/J$6) -> 5.5
A145: Total Custom Machinery Cost | F145: =SUM(F137:F144) -> 270.5607042 | G145: =SUM(G137:G144) -> 56.36681338 | H145: =SUM(H137:H144) -> 20.01021875
A146: Interest on Operating Capital | B146: 6 months | C146: acre | D146: =SUM(F134) -> 145.3426325 | E146: =+'Input Price List'!B$2 -> 0.08 | F146: =SUM(D146*E146)/2 -> 5.813705301 | G146: =F146/D120 -> 1.211188604 | H146: =SUM(F146/J$6) -> 0.4299719545
A147: Cash Rent | C147: acre | D147: 1 | F147: =SUM(D147*E147) -> 0 | G147: =SUM(F147/D120) -> 0 | H147: 0
A148: Storage
A149: Shrinkage Loss | C149: annual | D149: =+'List Page'!B$21 -> 0.15 | E149: =SUM(H134+H145+H146) -> 31.18948957 | F149: =D149*E149 -> 4.678423435 | G149: =F149/D120 -> 0.974671549 | H149: =SUM(F149/J$6) -> 0.3460083999
A150: Total Budgeted Expenses | F150: =SUM(F134+F145+F146+F147) -> 421.717042 | G150: =SUM(G134+G145+G146+G147) -> 87.85771709 | H150: =SUM(H134+H145+H146+H147) -> 31.18948957
A151: Return to Land & Management | F151: =IF(F120>0,F120-F150," ") ->  | G151: =IF(G120>0,F151/D120,"") ->  | H151: =IF(E120>0,SUM(H120-H150),"") -> 

Sheet Summer Annual Pasture
A1: Summer Annual, Pasture | K1: Pasture
A2: Estimated Expenses per Acre | K2: * | L2: The budget is based on custom rates for machinery processes. Labor, operating, maintenance, and ownership costs are included in these rates.
F3: Amount | K3: * | L3: The budget is based on no-till establishment.
A4: Item | B4: Description | C4: Unit | D4: Quantity | E4: Price | F4: ($/acre) | K4: * | L4: Nitrogen is applied in split applications.
A5: Expenses | K5: * | L5: Lime prorated at one ton over two years.
A6: Burndown | B6: Burndown | C6: acre | D6: 1 | E6: =+'Input Price List'!D$37 -> 15.66 | F6: =D6*E6 -> 15.66 | G6: =SUM(F6/D4) ->  | K6: * | L6: For a more accurate fertilizer and lime recommendation, take a soil sample. | S6: (Instructions on how to take a soil sample.)
A7: Seed | B7: =+ForageSpecies -> Fescue | C7: lb | D7: =+'Input Table'!B$4 -> 17.5 | E7: =+'Input Table'!B$12 -> 1.33 | F7: =E7*D7 -> 23.275 | G7: =SUM(F7/D4) ->  | K7: * | L7: The post-emergence weed control is based on an average of three common practices. Burndown is a common practice. For weed control and/or burndown
A8: Fertilizer | B8: N | C8: lb | D8: =+'Budget Generator'!C$16 -> 60 | E8: ='Input Price List'!B$26 -> 0.5986413043 | F8: =SUM(D8*E8) -> 35.91847826 | L8: recommendations, contact the county Extension office. | R8: (County office contact information.)
B9: P2O5 | C9: lb | D9: =+'Budget Generator'!C$17 -> 30 | E9: ='Input Price List'!B$27 -> 0.6135751418 | F9: 18.40725425
B10: K2O | C10: lb | D10: =+'Budget Generator'!C$18 -> 30 | E10: ='Input Price List'!B$28 -> 0.4088 | F10: 12.264
B11: Custom Application | C11: acre | D11: 2 | E11: ='Input Price List'!B$30 -> 12.71 | F11: 25.42
A12: Lime & Application | B12: Custom Application | C12: ton | D12: =+'Budget Generator'!C$19 -> 0.33 | E12: ='Input Price List'!B$32 -> 43.63 | F12: 14.3979
A13: Weed Control
A14: Post-Emerge | B14: Herbicide Application | C14: acre | E14: =+'Input Table'!AF$5 -> 12.295 | F14: =SUM(D14*E14) -> 0
B15: Custom Application | C15: acre | E15: ='Input Price List'!B$40 -> 11.81 | F15: =SUM(D15*E15) -> 0
A16: Pest Control | B16: Pest Control Application | C16: acre | E16: =+'Input Table'!AS$5 -> 6.51 | F16: =SUM(D16*E16) -> 0
B17: Custom Application | C17: acre | E17: ='Input Price List'!B$40 -> 11.81 | F17: =SUM(D17*E17) -> 0
A18: Total Variable Expenses | F18: =SUM(F6:F17) -> 145.3426325
A19: Custom Machinery Cost
A20: Spraying | C20: acre | D20: 1 | E20: =+'List Page'!B$31 -> 11.81 | F20: =SUM(D20*E20) -> 11.81 | G20: =SUM(F20/D3) -> 
A21: No-till Drill | C21: acre | D21: 1 | E21: =+'List Page'!B$32 -> 17.08 | F21: 17.08 | G21: =SUM(F21/D3) -> 
A22: Bush Hogging | C22: acre | D22: 1 | E22: =+'List Page'!B$33 -> 19.5 | F22: 19.5
A23: Total Custom Machinery Cost | F23: =SUM(F20:F22) -> 48.39
A24: Interest on Operating Capital | B24: 6 months | C24: acre | D24: =SUM(F18) -> 145.3426325 | E24: =+'Input Price List'!B$2 -> 0.08 | F24: =SUM(D24*E24)/2 -> 5.813705301
A25: Cash Rent | C25: acre | D25: 1 | F25: =SUM(D25*E25) -> 0
A26: Total Budgeted Expenses | F26: =SUM(F18+F23+F24+F25) -> 199.5463378
A115: Summer Annual, Pasture
A116: Estimated Expenses per Acre
F117: Amount
A118: Item | B118: Description | C118: Unit | D118: Quantity | E118: Price | F118: ($/acre)
A119: Expenses
A120: Burndown | B120: Burndown | C120: acre | D120: 1 | E120: =+'Input Price List'!D$37 -> 15.66 | F120: =D120*E120 -> 15.66
A121: Seed | B121: =+ForageSpecies -> Fescue | C121: lb | D121: =+'Input Table'!B$4 -> 17.5 | E121: =+'Input Table'!B$12 -> 1.33 | F121: =E121*D121 -> 23.275
A122: Fertilizer | B122: N | C122: lb | D122: =+'Budget Generator'!C$16 -> 60 | E122: ='Input Price List'!B$26 -> 0.5986413043 | F122: =SUM(D122*E122) -> 35.91847826
B123: P2O5 | C123: lb | D123: =+'Budget Generator'!C$17 -> 30 | E123: ='Input Price List'!B$27 -> 0.6135751418 | F123: 18.40725425
B124: K2O | C124: lb | D124: =+'Budget Generator'!C$18 -> 30 | E124: ='Input Price List'!B$28 -> 0.4088 | F124: 12.264
B125: Custom Application | C125: acre | D125: 2 | E125: ='Input Price List'!B$30 -> 12.71 | F125: 25.42
A126: Lime & Application | B126: Custom Application | C126: ton | D126: =+'Budget Generator'!C$19 -> 0.33 | E126: ='Input Price List'!B$32 -> 43.63 | F126: 14.3979
A127: Weed Control
A128: Post-Emerge | B128: Herbicide Application | C128: acre | E128: =+'Input Table'!AF$5 -> 12.295 | F128: =SUM(D128*E128) -> 0
B129: Custom Application | C129: acre | E129: ='Input Price List'!B$40 -> 11.81 | F129: =SUM(D129*E129) -> 0
A130: Pest Control | B130: Pest Control Application | C130: acre | E130: =+'Input Table'!AS$5 -> 6.51 | F130: =SUM(D130*E130) -> 0
B131: Custom Application | C131: acre | E131: ='Input Price List'!B$40 -> 11.81 | F131: =SUM(D131*E131) -> 0
A132: Total Variable Expenses | F132: =SUM(F120:F131) -> 145.3426325
A133: Custom Machinery Cost
A134: Spraying | C134: acre | D134: 1 | E134: =+'List Page'!B$31 -> 11.81 | F134: =SUM(D134*E134) -> 11.81
A135: No-till Drill | C135: acre | D135: 1 | E135: =+'List Page'!B$32 -> 17.08 | F135: 17.08
A136: Bush Hogging | C136: acre | D136: 1 | E136: =+'List Page'!B$33 -> 19.5 | F136: 19.5
A137: Total Custom Machinery Cost | F137: =SUM(F134:F136) -> 48.39
A138: Interest on Operating Capital | B138: 6 months | C138: acre | D138: =SUM(F132) -> 145.3426325 | E138: =+'Input Price List'!B$2 -> 0.08 | F138: =SUM(D138*E138)/2 -> 5.813705301
A139: Cash Rent | C139: acre | D139: 1 | F139: =SUM(D139*E139) -> 0
A140: Total Budgeted Expenses | F140: =SUM(F132+F137+F138) -> 199.5463378

Sheet Winter Annual Hay
A1: Winter Annual, Hay | P1: =CONCATENATE("Winter Annual, Hay"," -",+ForageSpecies) -> Winter Annual, Hay -Fescue
A2: Estimated Expenses per Acre | P2: Sensitivity Analysis | X2: Sensitivity Analysis
F3: Amount | G3: Amount | H3: Amount | P3: Return Above Variable Expenses
A4: Item | B4: Description | C4: Unit | D4: Quantity | E4: Price | F4: ($/acre) | G4: ($/ton) | H4: ($/bale) | I4: =IF(+'Budget Generator'!C$3="Hay",+'Budget Generator'!C$9," ") -> Round | S4: Price ($/ton) | Y4: Variable Costs | AA4: Total Costs
A5: Income | I5: =IF(+'Budget Generator'!C$9="Round",+'Budget Generator'!C$10,"Square") -> 4x5 | J5: Bale per Acre | Q5: =SUM(R5-25) -> 100 | R5: =SUM(S5-25) -> 125 | S5: =+E6 -> 150 | T5: =SUM(S5+25) -> 175 | U5: =SUM(T5+25) -> 200 | Y5: (per bale) | AA5: (per bale)
A6: Hay | B6: =+ForageSpecies -> Fescue | C6: ton | D6: =+'Input Table'!B$10 -> 3 | E6: =IF(I$4="Round",'Input Price List'!G$10,'Input Price List'!H$5) -> 150 | F6: =D6*E6 -> 450 | G6: =SUM(F6/D6) -> 150 | H6: =SUM(F6/J$6) -> 53.25 | I6: =+'Budget Generator'!E$10 -> 710 | J6: =SUM(D6*2000)/I6 -> 8.450704225 | P6: =SUM(P7-0.5) -> 2 | Q6: =SUM(Q$5*P6)-$F$20 -> 54.65736749 | R6: =SUM(R$5*$P6)-$F$20 -> 104.6573675 | S6: 154.6573675 | T6: 204.6573675 | U6: 254.6573675 | W6: Yield (ton) | X6: =X7-(X7*0.25) -> 1.6875 | Y6: =($F$20/((X6*2000)/$I$6)) -> 30.57578343 | AA6: =($F$37/((X6*2000)/$I$6)) -> 95.15309319
A7: Expenses | P7: =SUM(P8-0.5) -> 2.5 | Q7: =SUM(Q$5*P7)-$F$20 -> 104.6573675 | R7: 167.1573675 | S7: 229.6573675 | T7: 292.1573675 | U7: 354.6573675 | X7: =X8-(X8*0.25) -> 2.25 | Y7: =($F$20/((X7*2000)/$I$6)) -> 22.93183757 | AA7: =($F$37/((X7*2000)/$I$6)) -> 71.36481989
A8: Burndown | B8: Burndown | C8: acre | D8: 1 | E8: =+'Input Price List'!D$37 -> 15.66 | F8: =D8*E8 -> 15.66 | G8: =SUM(F8/D6) -> 5.22 | H8: =SUM(F8/J$6) -> 1.8531 | O8: Yield | P8: =+D6 -> 3 | Q8: =SUM(Q$5*P8)-$F$20 -> 154.6573675 | R8: 229.6573675 | S8: 304.6573675 | T8: 379.6573675 | U8: 454.6573675 | X8: =D6 -> 3 | Y8: =($F$20/((X8*2000)/$I$6)) -> 17.19887818 | AA8: =($F$37/((X8*2000)/$I$6)) -> 53.52361492
A9: Seed | B9: =+ForageSpecies -> Fescue | C9: lb | D9: =+'Input Table'!B$4 -> 17.5 | E9: =+'Input Table'!B$12 -> 1.33 | F9: =E9*D9 -> 23.275 | G9: =SUM(F9/D6) -> 7.758333333 | H9: 2.754208333 | P9: =SUM(P8+0.5) -> 3.5 | Q9: =SUM(Q$5*P9)-$F$20 -> 204.6573675 | R9: 292.1573675 | S9: 379.6573675 | T9: 467.1573675 | U9: 554.6573675 | X9: =X8+(X8*0.25) -> 3.75 | Y9: =($F$20/((X9*2000)/$I$6)) -> 13.75910254 | AA9: =($F$37/((X9*2000)/$I$6)) -> 42.81889193
A10: Fertilizer | B10: N | C10: lb | D10: =+'Budget Generator'!C$16 -> 60 | E10: ='Input Price List'!B$26 -> 0.5986413043 | F10: =SUM(D10*E10) -> 35.91847826 | G10: =SUM(F10/D6) -> 11.97282609 | H10: 4.250353261 | P10: =SUM(P9+0.5) -> 4 | Q10: =SUM(Q$5*P10)-$F$20 -> 254.6573675 | R10: 354.6573675 | S10: 454.6573675 | T10: 554.6573675 | U10: 654.6573675 | X10: =X9+(X9*0.25) -> 4.6875 | Y10: =($F$20/((X10*2000)/$I$6)) -> 11.00728204 | AA10: =($F$37/((X10*2000)/$I$6)) -> 34.25511355
B11: P2O5 | C11: lb | D11: =+'Budget Generator'!C$17 -> 30 | E11: ='Input Price List'!B$27 -> 0.6135751418 | F11: 18.40725425 | G11: =SUM(F11/D6) -> 6.135751418 | H11: 2.178191753
B12: K2O | C12: lb | D12: =+'Budget Generator'!C$18 -> 30 | E12: ='Input Price List'!B$28 -> 0.4088 | F12: 12.264 | G12: =SUM(F12/D6) -> 4.088 | H12: 1.45124 | P12: Return Above Fixed Expenses | X12: Return Above Fixed Expenses
B13: Custom Application | C13: acre | D13: 2 | E13: ='Input Price List'!B$30 -> 12.71 | F13: 25.42 | G13: =SUM(F13/D6) -> 8.473333333 | H13: 3.008033333 | S13: Price ($/ton) | AA13: Price ($/bale)
A14: Lime & Application | B14: Custom Application | C14: ton | D14: =+'Budget Generator'!C$19 -> 0.33 | E14: ='Input Price List'!B$32 -> 43.63 | F14: 14.3979 | G14: =SUM(F14/D6) -> 4.7993 | H14: 1.7037515 | Q14: =SUM(R14-25) -> 100 | R14: =SUM(S14-25) -> 125 | S14: =+E6 -> 150 | T14: =SUM(S14+25) -> 175 | U14: =SUM(T14+25) -> 200 | Y14: =IF($I$4="Round",SUM(Z14-5),SUM(Z14-1)) -> 43.25 | Z14: =IF($I$4="Round",SUM(AA14-5),SUM(AA14-1)) -> 48.25 | AA14: =+H6 -> 53.25 | AB14: =IF($I$4="Round",SUM(AA14+5),SUM(AA14+1)) -> 58.25 | AC14: =IF($I$4="Round",SUM(AB14+5),SUM(AB14+1)) -> 63.25
A15: Weed Control | P15: =SUM(P16-0.5) -> 2 | Q15: =SUM(Q$5*P15)-$F$37 -> -252.3122387 | R15: =SUM(R$5*$P15)-$F$37 -> -202.3122387 | S15: -152.3122387 | T15: -102.3122387 | U15: -52.31223875 | X15: =SUM(X16-2) -> 4.450704225 | Y15: =SUM((Y$14*$X15)-$F$37)/$X15 -> -58.37711693 | Z15: -53.37711693 | AA15: -48.37711693 | AB15: -43.37711693 | AC15: -38.37711693
A16: Post-Emerge | B16: Herbicide Application | C16: acre | E16: =+'Input Table'!AF$5 -> 12.295 | F16: =SUM(D16*E16) -> 0 | G16: =SUM(F16/D6) -> 0 | H16: =SUM(F16/J$6) -> 0 | P16: =SUM(P17-0.5) -> 2.5 | Q16: =SUM(Q$5*P16)-$F$37 -> -202.3122387 | R16: -139.8122387 | S16: -77.31223875 | T16: -14.81223875 | U16: 47.68776125 | X16: =SUM(X17-2) -> 6.450704225 | Y16: -26.86827282 | Z16: -21.86827282 | AA16: -16.86827282 | AB16: -11.86827282 | AC16: -6.868272819
B17: Custom Application | C17: acre | E17: ='Input Price List'!B$40 -> 11.81 | F17: =SUM(D17*E17) -> 0 | G17: =SUM(F17/D6) -> 0 | H17: =SUM(F17/J$6) -> 0 | O17: Yield | P17: =+D6 -> 3 | Q17: =SUM(Q$5*P17)-$F$37 -> -152.3122387 | R17: -77.31223875 | S17: -2.312238747 | T17: 72.68776125 | U17: 147.6877613 | W17: Yield | X17: =+J6 -> 8.450704225 | Y17: -10.27361492 | Z17: -5.273614918 | AA17: -0.2736149184 | AB17: 4.726385082 | AC17: 9.726385082
A18: Pest Control | B18: Pest Control Application | C18: acre | E18: =+'Input Table'!AS$5 -> 6.51 | F18: =SUM(D18*E18) -> 0 | G18: =SUM(F18/D6) -> 0 | H18: =SUM(F18/J$6) -> 0 | P18: =SUM(P17+0.5) -> 3.5 | Q18: =SUM(Q$5*P18)-$F$37 -> -102.3122387 | R18: -14.81223875 | S18: 72.68776125 | T18: 160.1877613 | U18: 247.6877613 | W18: (bale) | X18: =SUM(X17+2) -> 10.45070423 | Y18: -0.03055114695 | Z18: 4.969448853 | AA18: 9.969448853 | AB18: 14.96944885 | AC18: 19.96944885
B19: Custom Application | C19: acre | E19: ='Input Price List'!B$40 -> 11.81 | F19: =SUM(D19*E19) -> 0 | G19: =SUM(F19/D6) -> 0 | H19: =SUM(F19/J$6) -> 0 | P19: =SUM(P18+0.5) -> 4 | Q19: =SUM(Q$5*P19)-$F$37 -> -52.31223875 | R19: 47.68776125 | S19: 147.6877613 | T19: 247.6877613 | U19: 347.6877613 | X19: =SUM(X18+2) -> 12.45070423 | Y19: 6.92175458 | Z19: 11.92175458 | AA19: 16.92175458 | AB19: 21.92175458 | AC19: 26.92175458
A20: Total Variable Expenses | F20: =SUM(F8:F19) -> 145.3426325 | G20: =SUM(G8:G19) -> 48.44754417 | H20: =SUM(H8:H19) -> 17.19887818
A21: Return over Variable Expenses | F21: =F6-F20 -> 304.6573675 | G21: =F21/D6 -> 101.5524558 | H21: =SUM(H6-H20) -> 36.05112182
A22: Custom Machinery Cost | O22: Hay
A23: Spraying | C23: acre | D23: 1 | E23: =+'List Page'!B$31 -> 11.81 | F23: =SUM(D23*E23) -> 11.81 | G23: =SUM(F23/D6) -> 3.936666667 | H23: =SUM(F23/J$6) -> 1.397516667 | O23: * | P23: The budget is based on custom rates for machinery processes. Labor, operating, maintenance, and ownership costs are included in these rates.
A24: No-till Drill | C24: acre | D24: 1 | E24: =+'List Page'!B$32 -> 17.08 | F24: 17.08 | G24: =SUM(F24/D6) -> 5.693333333 | H24: 2.021133333 | P24: The baling rate includes binding.
A25: Disk Mowing | C25: cutting | D25: =+'Budget Generator'!C$11 -> 2 | E25: =+'List Page'!B$26 -> 16.5 | F25: =SUM(D25*E25) -> 33 | G25: =SUM(F25/D6) -> 11 | H25: 3.905 | O25: * | P25: The budget is based on no-till establishment.
A26: Tedding | C26: cutting | D26: =+'Budget Generator'!C$11 -> 2 | E26: =+'List Page'!B$27 -> 6.67 | F26: =SUM(D26*E26) -> 13.34 | G26: =SUM(F26/D6) -> 4.446666667 | H26: 1.578566667 | O26: * | P26: Nitrogen is applied in split applications.
A27: Raking | C27: cutting | D27: =+'Budget Generator'!C$11 -> 2 | E27: =+'List Page'!B$28 -> 8.67 | F27: 17.34 | G27: =SUM(F27/D6) -> 5.78 | H27: 2.0519 | O27: * | P27: Lime prorated at one ton over two years.
A28: Baling | C28: cutting | D28: =+'Budget Generator'!C$11 -> 2 | E28: =IF($I$4="Square",+'List Page'!$C$29,+'List Page'!$B$39) -> 13.17 | F28: =SUM(D29*E28) -> 111.2957746 | G28: =SUM(F28/D6) -> 37.09859155 | H28: 13.17 | O28: * | P28: For a more accurate fertilizer and lime recommendation, take a soil sample. | W28: (Instructions on how to take a soil sample.)
A29: Hauling | C29: bale | D29: =+J$6 -> 8.450704225 | E29: =IF($I$4="Round",+'List Page'!$C$30,'List Page'!$D$30) -> 5.42 | F29: =(E29*D29) -> 45.8028169 | G29: =SUM(F29/D6) -> 15.26760563 | H29: =SUM(F29/J$6) -> 5.42 | O29: * | P29: The post-emergence weed control is based on an average of three common practices. Burndown is a common practice. For weed control and/or burndown
A30: Total Custom Machinery Cost | F30: =SUM(F23:F29) -> 249.6685915 | G30: =SUM(G23:G29) -> 83.22286385 | H30: =SUM(H23:H29) -> 29.54411667 | P30: recommendations, contact the county Extension office. | U30: (County office contact information.)
A31: Interest on Operating Capital | B31: 6 months | C31: acre | D31: =SUM(F20) -> 145.3426325 | E31: =+'Input Price List'!B$2 -> 0.08 | F31: =SUM(D31*E31)/2 -> 5.813705301 | G31: =F31/D6 -> 1.937901767 | H31: 0.6879551272 | O31: * | P31: Storage loss is based on an average of multiple studies.
A32: Cash Rent | C32: acre | D32: 0.01 | F32: =SUM(D32*E32) -> 0 | G32: =F32/D6 -> 0 | H32: =SUM(F32/J$6) -> 0
A33: Storage
A34: Fixed Cost | B34: =+'Budget Generator'!C$13 -> Hay Barn | C34: bale | D34: =$D$6*2000/$I$6 -> 8.450704225 | E34: =IF(B$34="Hay barn",+'List Page'!C$18,IF(B$34="Stacked/tarped",+'List Page'!C$19,+'List Page'!C$20)) -> 4.432581695 | F34: =SUM(D34*E34) -> 37.45843686 | G34: =F34/D6 -> 12.48614562 | H34: 4.432581695
A35: Shrinkage Loss | C35: annual | D35: =IF(B$34="Hay barn",+'List Page'!B$18,IF(B$34="Stacked/tarped",+'List Page'!B$19,+'List Page'!B$20)) -> 0.035 | E35: =SUM(F20+F30+F31+F32) -> 400.8249294 | F35: =D35*E35 -> 14.02887253 | G35: =F35/D6 -> 4.676290843 | H35: 1.660083249
A36: Total Storage Cost | F36: =SUM(F34:F35) -> 51.48730938 | G36: =SUM(G34:G35) -> 17.16243646 | H36: =SUM(H34:H35) -> 6.092664944
A37: Total Budgeted Expenses | F37: =SUM(F20+F30+F31+F36+F32) -> 452.3122387 | G37: =SUM(G20+G30+G31+G36+G32) -> 150.7707462 | H37: =SUM(H20+H30+H31+H36+H32) -> 53.52361492
A38: Return to Land & Management | F38: =F6-F37 -> -2.312238747 | G38: =G6-G37 -> -0.770746249 | H38: =H6-H37 -> -0.2736149184
A115: Winter Annual, Hay
A116: Estimated Expenses per Acre
F117: Amount | G117: Amount | H117: Amount
A118: Item | B118: Description | C118: Unit | D118: Quantity | E118: Price | F118: ($/acre) | G118: ($/ton) | H118: ($/bale)
A119: Income
A120: Hay | B120: =+ForageSpecies -> Fescue | C120: ton | D120: =+'Input Table'!B$10 -> 3 | E120: =IF(I$4="Round",'Input Price List'!G$10,'Input Price List'!H$5) -> 150 | F120: =D120*E120 -> 450 | G120: =SUM(F120/D120) -> 150 | H120: =SUM(F120/J$6) -> 53.25
A121: Expenses
A122: Burndown | B122: Burndown | C122: acre | D122: 1 | E122: =+'Input Price List'!D$37 -> 15.66 | F122: =D122*E122 -> 15.66 | G122: =SUM(F122/D120) -> 5.22 | H122: =SUM(F122/J$6) -> 1.8531
A123: Seed | B123: =+ForageSpecies -> Fescue | C123: lb | D123: =+'Input Table'!B$4 -> 17.5 | E123: =+'Input Table'!B$12 -> 1.33 | F123: =E123*D123 -> 23.275 | G123: =SUM(F123/D120) -> 7.758333333 | H123: 2.754208333
A124: Fertilizer | B124: N | C124: lb | D124: =+'Budget Generator'!C$16 -> 60 | E124: ='Input Price List'!B$26 -> 0.5986413043 | F124: =SUM(D124*E124) -> 35.91847826 | G124: =SUM(F124/D120) -> 11.97282609 | H124: 4.250353261
B125: P2O5 | C125: lb | D125: =+'Budget Generator'!C$17 -> 30 | E125: ='Input Price List'!B$27 -> 0.6135751418 | F125: 18.40725425 | G125: =SUM(F125/D120) -> 6.135751418 | H125: 2.178191753
B126: K2O | C126: lb | D126: =+'Budget Generator'!C$18 -> 30 | E126: ='Input Price List'!B$28 -> 0.4088 | F126: 12.264 | G126: =SUM(F126/D120) -> 4.088 | H126: 1.45124
B127: Custom Application | C127: acre | D127: 2 | E127: ='Input Price List'!B$30 -> 12.71 | F127: 25.42 | G127: =SUM(F127/D120) -> 8.473333333 | H127: 3.008033333
A128: Lime & Application | B128: Custom Application | C128: ton | D128: =+'Budget Generator'!C$19 -> 0.33 | E128: ='Input Price List'!B$32 -> 43.63 | F128: 14.3979 | G128: =SUM(F128/D120) -> 4.7993 | H128: 1.7037515
A129: Weed Control
A130: Post-Emerge | B130: Herbicide Application | C130: acre | D130: 0 | E130: =+'Input Table'!AF$5 -> 12.295 | F130: =SUM(D130*E130) -> 0 | G130: =SUM(F130/D120) -> 0 | H130: =SUM(F130/J$6) -> 0
B131: Custom Application | C131: acre | D131: 0 | E131: ='Input Price List'!B$40 -> 11.81 | F131: =SUM(D131*E131) -> 0 | G131: =SUM(F131/D120) -> 0 | H131: =SUM(F131/J$6) -> 0
A132: Pest Control | B132: Pest Control Application | C132: acre | D132: 0 | E132: =+'Input Table'!AS$5 -> 6.51 | F132: =SUM(D132*E132) -> 0 | G132: =SUM(F132/D120) -> 0 | H132: =SUM(F132/J$6) -> 0
B133: Custom Application | C133: acre | D133: 0 | E133: ='Input Price List'!B$40 -> 11.81 | F133: =SUM(D133*E133) -> 0 | G133: =SUM(F133/D120) -> 0 | H133: =SUM(F133/J$6) -> 0
A134: Total Variable Expenses | F134: =SUM(F122:F133) -> 145.3426325 | G134: =F134/D120 -> 48.44754417 | H134: =SUM(H122:H133) -> 17.19887818
A135: Return over Variable Expenses | F135: =F120-F134 -> 304.6573675 | G135: =F135/D120 -> 101.5524558 | H135: =SUM(H120-H134) -> 36.05112182
A136: Custom Machinery Cost
A137: Spraying | C137: acre | D137: 1 | E137: =+'List Page'!B$31 -> 11.81 | F137: =SUM(D137*E137) -> 11.81 | G137: =SUM(F137/D120) -> 3.936666667 | H137: =SUM(F137/J$6) -> 1.397516667
A138: No-till Drill | C138: acre | D138: 1 | E138: =+'List Page'!B$32 -> 17.08 | F138: 17.08 | G138: =SUM(F138/D120) -> 5.693333333 | H138: 2.021133333
A139: Disk Mowing | C139: cutting | D139: =+'Budget Generator'!C$11 -> 2 | E139: =+'List Page'!B$26 -> 16.5 | F139: =SUM(D139*E139) -> 33 | G139: =SUM(F139/D120) -> 11 | H139: 3.905
A140: Tedding | C140: cutting | D140: =+'Budget Generator'!C$11 -> 2 | E140: =+'List Page'!B$27 -> 6.67 | F140: =SUM(D140*E140) -> 13.34 | G140: =SUM(F140/D120) -> 4.446666667 | H140: 1.578566667
A141: Raking | C141: cutting | D141: =+'Budget Generator'!C$11 -> 2 | E141: =+'List Page'!B$28 -> 8.67 | F141: 17.34 | G141: =SUM(F141/D120) -> 5.78 | H141: 2.0519
A142: Baling | C142: cutting | D142: =+'Budget Generator'!C$11 -> 2 | E142: =IF($I$4="Square",+'List Page'!$C$29,+'List Page'!$B$39) -> 13.17 | F142: =SUM(D143*E142) -> 111.2957746 | G142: =SUM(F142/D120) -> 37.09859155 | H142: 13.17
A143: Hauling | C143: bale | D143: =+J$6 -> 8.450704225 | E143: =IF($I$4="Round",+'List Page'!$C$30,'List Page'!$D$30) -> 5.42 | F143: =(E143*D143) -> 45.8028169 | G143: =SUM(F143/D120) -> 15.26760563 | H143: =SUM(F143/J$6) -> 5.42
A144: Total Custom Machinery Cost | F144: =SUM(F137:F143) -> 249.6685915 | G144: =SUM(G137:G143) -> 83.22286385 | H144: =SUM(H137:H143) -> 29.54411667
A145: Interest on Operating Capital | B145: 6 months | C145: acre | D145: =SUM(F134) -> 145.3426325 | E145: =+'Input Price List'!B$2 -> 0.08 | F145: =SUM(D145*E145)/2 -> 5.813705301 | G145: =F145/D120 -> 1.937901767 | H145: =SUM(F145/J$6) -> 0.6879551272
A146: Cash Rent | C146: acre | D146: 0.01 | F146: =SUM(D146*E146) -> 0 | G146: =F146/D120 -> 0 | H146: 0
A147: Storage
A148: Fixed Cost | B148: =+'Budget Generator'!C$13 -> Hay Barn | C148: bale | D148: =$D$6*2000/$I$6 -> 8.450704225 | E148: =IF(B$34="Hay barn",+'List Page'!C$18,IF(B$34="Stacked/tarped",+'List Page'!C$19,+'List Page'!C$20)) -> 4.432581695 | F148: =SUM(D148*E148) -> 37.45843686 | G148: =F148/D120 -> 12.48614562 | H148: =SUM(F148/J$6) -> 4.432581695
A149: Shrinkage Loss | C149: annual | D149: =IF(B$34="Hay barn",+'List Page'!B$18,IF(B$34="Stacked/tarped",+'List Page'!B$19,+'List Page'!B$20)) -> 0.035 | E149: =SUM(H134+H144+H145) -> 47.43094997 | F149: =D149*E149*D148 -> 14.02887253 | G149: =F149/D120 -> 4.676290843 | H149: 1.660083249
A150: Total Storage Cost | F150: =SUM(F148:F149) -> 51.48730938 | G150: =SUM(G148:G149) -> 17.16243646 | H150: =SUM(H148:H149) -> 6.092664944
A151: Total Budgeted Expenses | F151: =SUM(F134+F144+F145+F150+F146) -> 452.3122387 | G151: =SUM(G134+G144+G145+G150+G146) -> 150.7707462 | H151: =SUM(H134+H144+H145+H150+H146) -> 53.52361492
A152: Return to Land & Management | F152: =F120-F151 -> -2.312238747 | G152: =G120-G151 -> -0.770746249 | H152: =H120-H151 -> -0.2736149184

Sheet Winter Annual Baleage
A1: Winter Annual, Baleage | P1: Sensitivity Analysis
A2: Estimated Expenses per Acre | P2: Return Above Variable Expenses
F3: Amount | G3: Amount | H3: Amount | S3: Price ($/ton)
A4: Item | B4: Description | C4: Unit | D4: Quantity | E4: Price | F4: ($/acre) | G4: ($/ton) | H4: ($/bale) | I4: =+'Budget Generator'!C$9 -> Round | Q4: =SUM(R4-25) -> -50 | R4: =SUM(S4-25) -> -25 | S4: =+E6 -> 0 | T4: =SUM(S4+25) -> 25 | U4: =SUM(T4+25) -> 50
A5: Income | I5: =IF(+'Budget Generator'!C$9="Round",+'Budget Generator'!C$10,"Square") -> 4x5 | J5: Bale per Acre | P5: =SUM(P6-0.5) -> 3.8 | Q5: =IF($E$6>0,SUM(Q$4*$P5)-$F$20," ") -> 
A6: Hay | B6: =+ForageSpecies -> Fescue | C6: ton | D6: =+'Input Table'!B$10*1.6 -> 4.8 | F6: =D6*E6 -> 0 | G6: =SUM(F6/D6) -> 0 | H6: =SUM(F6/J$6) -> 0 | I6: =+'Budget Generator'!E$10 -> 710 | J6: =SUM(D6*2000)/I6 -> 13.52112676 | P6: =SUM(P7-0.5) -> 4.3
A7: Expenses | O7: Yield | P7: =+D6 -> 4.8
A8: Burndown | B8: Burndown | C8: acre | D8: 1 | E8: =+'Input Price List'!D$37 -> 15.66 | F8: =D8*E8 -> 15.66 | G8: =SUM(F8/D6) -> 3.2625 | H8: =SUM(F8/J$6) -> 1.1581875 | P8: =SUM(P7+0.5) -> 5.3
A9: Seed | B9: =+ForageSpecies -> Fescue | C9: lb | D9: =+'Input Table'!B$4 -> 17.5 | E9: =+'Input Table'!B$12 -> 1.33 | F9: =E9*D9 -> 23.275 | G9: =SUM(F9/D6) -> 4.848958333 | H9: 1.721380208 | P9: =SUM(P8+0.5) -> 5.8
A10: Fertilizer | B10: N | C10: lb | D10: =+'Budget Generator'!C$16 -> 60 | E10: ='Input Price List'!B$26 -> 0.5986413043 | F10: =SUM(D10*E10) -> 35.91847826 | G10: =SUM(F10/D6) -> 7.483016304 | H10: 2.656470788
B11: P2O5 | C11: lb | D11: =+'Budget Generator'!C$17 -> 30 | E11: ='Input Price List'!B$27 -> 0.6135751418 | F11: 18.40725425 | G11: =SUM(F11/D6) -> 3.834844636 | H11: 1.361369846 | P11: Return Above Fixed Expenses
B12: K2O | C12: lb | D12: =+'Budget Generator'!C$18 -> 30 | E12: ='Input Price List'!B$28 -> 0.4088 | F12: 12.264 | G12: =SUM(F12/D6) -> 2.555 | H12: 0.907025 | S12: Price ($/ton)
B13: Custom Application | C13: acre | D13: 2 | E13: ='Input Price List'!B$30 -> 12.71 | F13: 25.42 | G13: =SUM(F13/D6) -> 5.295833333 | H13: 1.880020833 | Q13: =SUM(R13-25) -> -50 | R13: =SUM(S13-25) -> -25 | S13: =+E6 -> 0 | T13: =SUM(S13+25) -> 25 | U13: =SUM(T13+25) -> 50
A14: Lime & Application | B14: Custom Application | C14: ton | D14: =+'Budget Generator'!C$19 -> 0.33 | E14: ='Input Price List'!B$32 -> 43.63 | F14: 14.3979 | G14: =SUM(F14/D6) -> 2.9995625 | H14: 1.064844687 | P14: =SUM(P15-0.5) -> 3.8 | Q14: =IF($E$6>0,SUM(Q$4*$P14)-$F$36," ") -> 
A15: Weed Control | P15: =SUM(P16-0.5) -> 4.3
A16: Post-Emerge | B16: Herbicide Application | C16: acre | E16: =+'Input Table'!AF$5 -> 12.295 | F16: =SUM(D16*E16) -> 0 | G16: =SUM(F16/D6) -> 0 | H16: =SUM(F16/J$6) -> 0 | O16: Yield | P16: =+D6 -> 4.8
B17: Custom Application | C17: acre | E17: ='Input Price List'!B$40 -> 11.81 | F17: =SUM(D17*E17) -> 0 | G17: =SUM(F17/D6) -> 0 | H17: =SUM(F17/J$6) -> 0 | P17: =SUM(P16+0.5) -> 5.3
A18: Pest Control | B18: Pest Control Application | C18: acre | E18: =+'Input Table'!AS$5 -> 6.51 | F18: =SUM(D18*E18) -> 0 | G18: =SUM(F18/D6) -> 0 | H18: =SUM(F18/J$6) -> 0 | P18: =SUM(P17+0.5) -> 5.8
B19: Custom Application | C19: acre | E19: ='Input Price List'!B$40 -> 11.81 | F19: =SUM(D19*E19) -> 0 | G19: =SUM(F19/D6) -> 0 | H19: =SUM(F19/J$6) -> 0
A20: Total Variable Expenses | F20: =SUM(F8:F19) -> 145.3426325 | G20: =SUM(G8:G19) -> 30.27971511 | H20: =SUM(H8:H19) -> 10.74929886
A21: Return over Variable Expenses | F21: =IF(F6>0,F6-F20," ") ->  | G21: =IF(G6>0,F21/D6,"") ->  | H21: =IF(E6>0,SUM(H6-H20),"") ->  | O21: Baleage
A22: Custom Machinery Cost | O22: * | P22: The budget is based on custom rates for machinery processes. Labor, operating, maintenance, and ownership costs are included in these rates.
A23: Spraying | C23: acre | D23: 1 | E23: =+'List Page'!B$31 -> 11.81 | F23: =SUM(D23*E23) -> 11.81 | G23: =SUM(F23/D6) -> 2.460416667 | H23: =SUM(F23/J$6) -> 0.8734479167 | P23: The baling rate includes binding.
A24: No-till Drill | C24: acre | D24: 1 | E24: =+'List Page'!B$32 -> 17.08 | F24: 17.08 | G24: =SUM(F24/D6) -> 3.558333333 | H24: 1.263208333 | O24: * | P24: The budget is based on no-till establishment.
A25: Disk Mowing | C25: cutting | D25: 1 | E25: =+'List Page'!B$26 -> 16.5 | F25: =SUM(D25*E25) -> 16.5 | G25: =SUM(F25/D6) -> 3.4375 | H25: 1.2203125 | O25: * | P25: Nitrogen is applied in split applications.
A26: Tedding | C26: cutting | D26: 1 | E26: =+'List Page'!B$27 -> 6.67 | F26: =SUM(D26*E26) -> 6.67 | G26: =SUM(F26/D6) -> 1.389583333 | H26: 0.4933020833 | O26: * | P26: Lime prorated at one ton over two years.
A27: Raking | C27: cutting | D27: 1 | E27: =+'List Page'!B$28 -> 8.67 | F27: 8.67 | G27: =SUM(F27/D6) -> 1.80625 | H27: 0.64121875 | O27: * | P27: Based on inline tube wrapping.
A28: Baling | C28: cutting | D28: 1 | E28: =+'List Page'!B$39+2 -> 15.17 | F28: 15.17 | G28: =SUM(F28/D6) -> 3.160416667 | H28: 1.121947917 | O28: * | P28: For a more accurate fertilizer and lime recommendation, take a soil sample. | W28: (Instructions on how to take a soil sample.)
A29: Hauling | C29: bale | D29: =+J$6 -> 13.52112676 | E29: =+'List Page'!$C$30 -> 5.42 | F29: =(E29*D29) -> 73.28450704 | G29: =SUM(F29/D6) -> 15.26760563 | H29: =SUM(F29/J$6) -> 5.42 | O29: * | P29: The post-emergence weed control is based on an average of three common practices. Burndown is a common practice. For weed control and/or burndown
A30: Wrapping | C30: bale | D30: =+J$6 -> 13.52112676 | E30: =+'List Page'!$C$35 -> 5.5 | F30: =(E30*D30) -> 74.36619718 | G30: =SUM(F30/D6) -> 15.49295775 | H30: =SUM(F30/J$6) -> 5.5 | P30: recommendations, contact the county Extension office. | U30: (County office contact information.)
A31: Total Custom Machinery Cost | F31: =SUM(F23:F30) -> 223.5507042 | G31: =SUM(G23:G30) -> 46.57306338 | H31: =SUM(H23:H30) -> 16.5334375 | O31: * | P31: Storage loss is based on an average of multiple studies.
A32: Interest on Operating Capital | B32: 6 months | C32: acre | D32: =SUM(F20) -> 145.3426325 | E32: =+'Input Price List'!B$2 -> 0.08 | F32: =SUM(D32*E32)/2 -> 5.813705301 | G32: =F32/D6 -> 1.211188604 | H32: 0.4299719545
A33: Cash Rent | C33: acre | D33: 1 | F33: =SUM(D33*E33) -> 0 | G33: =F33/D6 -> 0 | H33: =SUM(F33/J$6) -> 0
A34: Storage
A35: Shrinkage Loss | C35: annual | D35: =+'List Page'!B$21 -> 0.15 | E35: =SUM(F20+F31+F32+F33) -> 374.707042 | F35: =D35*E35 -> 56.20605631 | G35: =F35/D6 -> 11.70959506 | H35: 4.156906248
A36: Total Budgeted Expenses | F36: =SUM(F20+F31+F32+F33+F35) -> 430.9130983 | G36: =SUM(G20+G31+G32+G33+G35) -> 89.77356216 | H36: =SUM(H20+H31+H32+H33+H35) -> 31.86961457
A37: Return to Land & Management | F37: =IF(F6>0,F6-F36," ") ->  | G37: =IF(G6>0,F37/D6,"") ->  | H37: =IF(E6>0,SUM(H6-H36),"") -> 
A115: Winter Annual, Baleage
A116: Estimated Expenses per Acre
F117: Amount | G117: Amount | H117: Amount
A118: Item | B118: Description | C118: Unit | D118: Quantity | E118: Price | F118: ($/acre) | G118: ($/ton) | H118: ($/bale)
A119: Income
A120: Hay | B120: =+ForageSpecies -> Fescue | C120: ton | D120: =+'Input Table'!B$10*1.6 -> 4.8 | F120: =D120*E120 -> 0 | G120: =SUM(F120/D120) -> 0 | H120: =SUM(F120/J$6) -> 0
A121: Expenses
A122: Burndown | B122: Burndown | C122: acre | D122: 1 | E122: =+'Input Price List'!D$37 -> 15.66 | F122: =D122*E122 -> 15.66 | G122: =SUM(F122/D120) -> 3.2625 | H122: =SUM(F122/J$6) -> 1.1581875
A123: Seed | B123: =+ForageSpecies -> Fescue | C123: lb | D123: =+'Input Table'!B$4 -> 17.5 | E123: =+'Input Table'!B$12 -> 1.33 | F123: =E123*D123 -> 23.275 | G123: =SUM(F123/D120) -> 4.848958333 | H123: 1.721380208
A124: Fertilizer | B124: N | C124: lb | D124: =+'Budget Generator'!C$16 -> 60 | E124: ='Input Price List'!B$26 -> 0.5986413043 | F124: =SUM(D124*E124) -> 35.91847826 | G124: =SUM(F124/D120) -> 7.483016304 | H124: 2.656470788
B125: P2O5 | C125: lb | D125: =+'Budget Generator'!C$17 -> 30 | E125: ='Input Price List'!B$27 -> 0.6135751418 | F125: 18.40725425 | G125: =SUM(F125/D120) -> 3.834844636 | H125: 1.361369846
B126: K2O | C126: lb | D126: =+'Budget Generator'!C$18 -> 30 | E126: ='Input Price List'!B$28 -> 0.4088 | F126: 12.264 | G126: =SUM(F126/D120) -> 2.555 | H126: 0.907025
B127: Custom Application | C127: acre | D127: 2 | E127: ='Input Price List'!B$30 -> 12.71 | F127: 25.42 | G127: =SUM(F127/D120) -> 5.295833333 | H127: 1.880020833
A128: Lime & Application | B128: Custom Application | C128: ton | D128: =+'Budget Generator'!C$19 -> 0.33 | E128: ='Input Price List'!B$32 -> 43.63 | F128: 14.3979 | G128: =SUM(F128/D120) -> 2.9995625 | H128: 1.064844687
A129: Weed Control
A130: Post-Emerge | B130: Herbicide Application | C130: acre | E130: =+'Input Table'!AF$5 -> 12.295 | F130: =SUM(D130*E130) -> 0 | G130: =SUM(F130/D120) -> 0 | H130: =SUM(F130/J$6) -> 0
B131: Custom Application | C131: acre | E131: ='Input Price List'!B$40 -> 11.81 | F131: =SUM(D131*E131) -> 0 | G131: =SUM(F131/D120) -> 0 | H131: =SUM(F131/J$6) -> 0
A132: Pest Control | B132: Pest Control Application | C132: acre | E132: =+'Input Table'!AS$5 -> 6.51 | F132: =SUM(D132*E132) -> 0 | G132: =SUM(F132/D120) -> 0 | H132: =SUM(F132/J$6) -> 0
B133: Custom Application | C133: acre | E133: ='Input Price List'!B$40 -> 11.81 | F133: =SUM(D133*E133) -> 0 | G133: =SUM(F133/D120) -> 0 | H133: =SUM(F133/J$6) -> 0
A134: Total Variable Expenses | F134: =SUM(F122:F133) -> 145.3426325 | G134: =F134/D120 -> 30.27971511 | H134: =SUM(H122:H133) -> 10.74929886
A135: Return over Variable Expenses | F135: =IF(F120>0,F120-F134," ") ->  | G135: =IF(G120>0,F135/D120,"") ->  | H135: =IF(E120>0,SUM(H120-H134),"") -> 
A136: Custom Machinery Cost
A137: Spraying | C137: acre | D137: 1 | E137: =+'List Page'!B$31 -> 11.81 | F137: =SUM(D137*E137) -> 11.81 | G137: =SUM(F137/D120) -> 2.460416667 | H137: =SUM(F137/J$6) -> 0.8734479167
A138: No-till Drill | C138: acre | D138: 1 | E138: =+'List Page'!B$32 -> 17.08 | F138: 17.08 | G138: =SUM(F138/D120) -> 3.558333333 | H138: 1.263208333
A139: Disk Mowing | C139: cutting | D139: 1 | E139: =+'List Page'!B$26 -> 16.5 | F139: =SUM(D139*E139) -> 16.5 | G139: =SUM(F139/D120) -> 3.4375 | H139: 1.2203125
A140: Tedding | C140: cutting | D140: 1 | E140: =+'List Page'!B$27 -> 6.67 | F140: =SUM(D140*E140) -> 6.67 | G140: =SUM(F140/D120) -> 1.389583333 | H140: 0.4933020833
A141: Raking | C141: cutting | D141: 1 | E141: =+'List Page'!B$28 -> 8.67 | F141: 8.67 | G141: =SUM(F141/D120) -> 1.80625 | H141: 0.64121875
A142: Baling | C142: cutting | D142: 1 | E142: =+'List Page'!B$39+2 -> 15.17 | F142: 15.17 | G142: =SUM(F142/D120) -> 3.160416667 | H142: 1.121947917
A143: Hauling | C143: bale | D143: =+J$6 -> 13.52112676 | E143: =+'List Page'!$C$30 -> 5.42 | F143: =(E143*D143) -> 73.28450704 | G143: =SUM(F143/D120) -> 15.26760563 | H143: =SUM(F143/J$6) -> 5.42
A144: Wrapping | C144: bale | D144: =+J$6 -> 13.52112676 | E144: =+'List Page'!$C$35 -> 5.5 | F144: =(E144*D144) -> 74.36619718 | G144: =SUM(F144/D120) -> 15.49295775 | H144: =SUM(F144/J$6) -> 5.5
A145: Total Custom Machinery Cost | F145: =SUM(F137:F144) -> 223.5507042 | G145: =SUM(G137:G144) -> 46.57306338 | H145: =SUM(H137:H144) -> 16.5334375
A146: Interest on Operating Capital | B146: 6 months | C146: acre | D146: =SUM(F134) -> 145.3426325 | E146: =+'Input Price List'!B$2 -> 0.08 | F146: =SUM(D146*E146)/2 -> 5.813705301 | G146: =F146/D120 -> 1.211188604 | H146: =SUM(F146/J$6) -> 0.4299719545
A147: Cash Rent | C147: acre | D147: 1 | F147: =SUM(D147*E147) -> 0 | G147: =F147/D120 -> 0 | H147: 0
A148: Storage
A149: Shrinkage Loss | C149: annual | D149: =+'List Page'!B$21 -> 0.15 | E149: =SUM(H134+H145+H146) -> 27.71270832 | F149: =D149*E149 -> 4.156906248 | G149: =F149/D120 -> 0.8660221349 | H149: =SUM(F149/J$6) -> 0.3074378579
A150: Total Budgeted Expenses | F150: =SUM(F134+F145+F146+F147+F149) -> 378.8639483 | G150: =SUM(G134+G145+G146+G147+G149) -> 78.92998923 | H150: =SUM(H134+H145+H146+H147+H149) -> 28.02014618
A151: Return to Land & Management | F151: =IF(F120>0,F120-F150," ") ->  | G151: =IF(G120>0,F151/D120,"") ->  | H151: =IF(E120>0,SUM(H120-H150),"") -> 

Sheet Winter Annual Pasture
A1: Winter Annual, Pasture | K1: Pasture
A2: Estimated Expenses per Acre | K2: * | L2: The budget is based on custom rates for machinery processes. Labor, operating, maintenance, and ownership costs are included in these rates.
F3: Amount | K3: * | L3: The budget is based on no-till establishment.
A4: Item | B4: Description | C4: Unit | D4: Quantity | E4: Price | F4: ($/acre) | K4: * | L4: Nitrogen is applied in split applications.
A5: Expenses | K5: * | L5: Lime prorated at one ton over two years.
A6: Burndown | B6: Burndown | C6: acre | D6: 1 | E6: =+'Input Price List'!D$37 -> 15.66 | F6: =D6*E6 -> 15.66 | G6: =SUM(F6/D4) ->  | K6: * | L6: For a more accurate fertilizer and lime recommendation, take a soil sample. | O6: (Instructions on how to take a soil sample.)
A7: Seed | B7: =+ForageSpecies -> Fescue | C7: lb | D7: =+'Input Table'!B$4 -> 17.5 | E7: =+'Input Table'!B$12 -> 1.33 | F7: =E7*D7 -> 23.275 | G7: =SUM(F7/D4) ->  | K7: * | L7: The post-emergence weed control is based on an average of three common practices. Burndown is a common practice. For weed control and/or burndown
A8: Fertilizer | B8: N | C8: lb | D8: =+'Budget Generator'!C$16 -> 60 | E8: ='Input Price List'!B$26 -> 0.5986413043 | F8: =SUM(D8*E8) -> 35.91847826 | L8: recommendations, contact the county Extension office. | M8: (County office contact information.)
B9: P2O5 | C9: lb | D9: =+'Budget Generator'!C$17 -> 30 | E9: ='Input Price List'!B$27 -> 0.6135751418 | F9: 18.40725425
B10: K2O | C10: lb | D10: =+'Budget Generator'!C$18 -> 30 | E10: ='Input Price List'!B$28 -> 0.4088 | F10: 12.264
B11: Custom Application | C11: acre | D11: 2 | E11: ='Input Price List'!B$30 -> 12.71 | F11: 25.42
A12: Lime & Application | B12: Custom Application | C12: ton | D12: =+'Budget Generator'!C$19 -> 0.33 | E12: ='Input Price List'!B$32 -> 43.63 | F12: 14.3979
A13: Weed Control
A14: Post-Emerge | B14: Herbicide Application | C14: acre | E14: =+'Input Table'!AF$5 -> 12.295 | F14: =SUM(D14*E14) -> 0
B15: Custom Application | C15: acre | E15: ='Input Price List'!B$40 -> 11.81 | F15: =SUM(D15*E15) -> 0
A16: Pest Control | B16: Pest Control Application | C16: acre | E16: =+'Input Table'!AS$5 -> 6.51 | F16: =SUM(D16*E16) -> 0
B17: Custom Application | C17: acre | E17: ='Input Price List'!B$40 -> 11.81 | F17: =SUM(D17*E17) -> 0
A18: Total Variable Expenses | F18: =SUM(F6:F17) -> 145.3426325
A19: Custom Machinery Cost
A20: Spraying | C20: acre | D20: 1 | E20: =+'List Page'!B$31 -> 11.81 | F20: =SUM(D20*E20) -> 11.81 | G20: =SUM(F20/D3) -> 
A21: No-till Drill | C21: acre | D21: 1 | E21: =+'List Page'!B$32 -> 17.08 | F21: 17.08 | G21: =SUM(F21/D3) -> 
A22: Bush Hogging | C22: acre | D22: 1 | E22: =+'List Page'!B$33 -> 19.5 | F22: 19.5
A23: Total Custom Machinery Cost | F23: =SUM(F20:F22) -> 48.39
A24: Interest on Operating Capital | B24: 6 months | C24: acre | D24: =SUM(F18) -> 145.3426325 | E24: =+'Input Price List'!B$2 -> 0.08 | F24: =SUM(D24*E24)/2 -> 5.813705301
A25: Cash Rent | C25: acre | D25: 1 | F25: =SUM(D25*E25) -> 0
A26: Total Budgeted Expenses | F26: =SUM(F18+F23+F24+F25) -> 199.5463378
A115: Winter Annual, Pasture
A116: Estimated Expenses per Acre
F117: Amount
A118: Item | B118: Description | C118: Unit | D118: Quantity | E118: Price | F118: ($/acre)
A119: Expenses
A120: Burndown | B120: Burndown | C120: acre | D120: 1 | E120: =+'Input Price List'!D$37 -> 15.66 | F120: =D120*E120 -> 15.66
A121: Seed | B121: =+ForageSpecies -> Fescue | C121: lb | D121: =+'Input Table'!B$4 -> 17.5 | E121: =+'Input Table'!B$12 -> 1.33 | F121: =E121*D121 -> 23.275
A122: Fertilizer | B122: N | C122: lb | D122: =+'Budget Generator'!C$16 -> 60 | E122: ='Input Price List'!B$26 -> 0.5986413043 | F122: =SUM(D122*E122) -> 35.91847826
B123: P2O5 | C123: lb | D123: =+'Budget Generator'!C$17 -> 30 | E123: ='Input Price List'!B$27 -> 0.6135751418 | F123: 18.40725425
B124: K2O | C124: lb | D124: =+'Budget Generator'!C$18 -> 30 | E124: ='Input Price List'!B$28 -> 0.4088 | F124: 12.264
B125: Custom Application | C125: acre | D125: 2 | E125: ='Input Price List'!B$30 -> 12.71 | F125: 25.42
A126: Lime & Application | B126: Custom Application | C126: ton | D126: =+'Budget Generator'!C$19 -> 0.33 | E126: ='Input Price List'!B$32 -> 43.63 | F126: 14.3979
A127: Weed Control
A128: Post-Emerge | B128: Herbicide Application | C128: acre | E128: =+'Input Table'!AF$5 -> 12.295 | F128: =SUM(D128*E128) -> 0
B129: Custom Application | C129: acre | E129: ='Input Price List'!B$40 -> 11.81 | F129: =SUM(D129*E129) -> 0
A130: Pest Control | B130: Pest Control Application | C130: acre | E130: =+'Input Table'!AS$5 -> 6.51 | F130: =SUM(D130*E130) -> 0
B131: Custom Application | C131: acre | E131: ='Input Price List'!B$40 -> 11.81 | F131: =SUM(D131*E131) -> 0
A132: Total Variable Expenses | F132: =SUM(F120:F131) -> 145.3426325
A133: Custom Machinery Cost
A134: Spraying | C134: acre | D134: 1 | E134: =+'List Page'!B$31 -> 11.81 | F134: =SUM(D134*E134) -> 11.81
A135: No-till Drill | C135: acre | D135: 1 | E135: =+'List Page'!B$32 -> 17.08 | F135: 17.08
A136: Bush Hogging | C136: acre | D136: 1 | E136: =+'List Page'!B$33 -> 19.5 | F136: 19.5
A137: Total Custom Machinery Cost | F137: =SUM(F134:F136) -> 48.39
A138: Interest on Operating Capital | B138: 6 months | C138: acre | D138: =SUM(F132) -> 145.3426325 | E138: =+'Input Price List'!B$2 -> 0.08 | F138: =SUM(D138*E138)/2 -> 5.813705301
A139: Cash Rent | D139: 1 | F139: =SUM(D139*E139) -> 0
A140: Total Budgeted Expenses | F140: =SUM(F132+F137+F138+F139) -> 199.5463378

Sheet Assumptions
A1: Cool Season Grass and Cool Season Grass and Clover Assumptions
A2: Hay
A3: * | B3: The budget is based on custom rates for machinery processes. Labor, operating, maintenance, and ownership costs are included in these rates.
B4: The baling rate includes binding.
A5: * | B5: The budget is based on no-till establishment.
A6: * | B6: Sixty pounds of nitrogen will be applied in March, with the remainder applied during the growing season. If clover is included, it is assumed that
B7: 60 pounds of nitrogen will come from the clover.
A8: * | B8: Lime prorated at one ton over three years.
A9: * | B9: For a more accurate fertilizer and lime recommendation, take a soil sample. | E9: (Instructions on how to take a soil sample.)
A10: * | B10: The post-emergence weed control is based on an average of three common practices. Burndown is a common practice. For weed control and/or burndown
B11: recommendations, contact the county Extension office. | C11: (County office contact information.)
A12: * | B12: Storage loss is based on an average of multiple studies.
A13: * | B13: Establishment pro-rated expenses for hay are set for six years.
A15: Baleage
A16: * | B16: The budget is based on custom rates for machinery processes. Labor, operating, maintenance, and ownership costs are included in these rates.
B17: The baling rate includes binding.
A18: * | B18: The budget is based on no-till establishment.
A19: * | B19: Based on inline tube wrapping.
A20: * | B20: Sixty pounds of nitrogen will be applied in March, with the remainder applied during the growing season. If clover is included, it is assumed that
B21: 60 pounds of nitrogen will come from the clover.
A22: * | B22: Lime prorated at one ton over three years.
A23: * | B23: For a more accurate fertilizer and lime recommendation, take a soil sample. | E23: (Instructions on how to take a soil sample.)
A24: * | B24: The post-emergence weed control is based on an average of three common practices. Burndown is a common practice. For weed control and/or burndown
B25: recommendations, contact the county Extension office. | C25: (County office contact information.)
A26: * | B26: Storage loss is based on an average of multiple studies.
A27: * | B27: Establishment pro-rated expenses for hay are set for six years.
A29: Pasture
A30: * | B30: The budget is based on custom rates for machinery processes. Labor, operating, maintenance, and ownership costs are included in these rates.
A31: * | B31: The budget is based on no-till establishment.
A32: * | B32: Sixty pounds of nitrogen will be applied in March, with the remainder applied during the growing season. If clover is included, it is assumed that
B33: 60 pounds of nitrogen will come from the clover.
A34: * | B34: Lime prorated at one ton over three years.
A35: * | B35: For a more accurate fertilizer and lime recommendation, take a soil sample. | E35: (Instructions on how to take a soil sample.)
A36: * | B36: The post-emergence weed control is based on an average of three common practices. Burndown is a common practice. For weed control and/or burndown
B37: recommendations, contact the county Extension office. | C37: (County office contact information.)
A38: * | B38: Establishment pro-rated expenses for hay are set for ten years.
A41: Summer and Winter Annual Assumptions
A42: Hay
A43: * | B43: The budget is based on custom rates for machinery processes. Labor, operating, maintenance, and ownership costs are included in these rates.
B44: The baling rate includes binding.
A45: * | B45: The budget is based on no-till establishment.
A46: * | B46: Nitrogen is applied in split applications.
A47: * | B47: Lime prorated at one ton over two years.
A48: * | B48: For a more accurate fertilizer and lime recommendation, take a soil sample. | E48: (Instructions on how to take a soil sample.)
A49: * | B49: The post-emergence weed control is based on an average of three common practices. Burndown is a common practice. For weed control and/or burndown
B50: recommendations, contact the county Extension office. | C50: (County office contact information.)
A51: * | B51: Storage loss is based on an average of multiple studies.
A54: Baleage
A55: * | B55: The budget is based on custom rates for machinery processes. Labor, operating, maintenance, and ownership costs are included in these rates.
B56: The baling rate includes binding.
A57: * | B57: The budget is based on no-till establishment.
A58: * | B58: Nitrogen is applied in split applications.
A59: * | B59: Lime prorated at one ton over two years.
A60: * | B60: Based on inline tube wrapping.
A61: * | B61: For a more accurate fertilizer and lime recommendation, take a soil sample. | E61: (Instructions on how to take a soil sample.)
A62: * | B62: The post-emergence weed control is based on an average of three common practices. Burndown is a common practice. For weed control and/or burndown
B63: recommendations, contact the county Extension office. | C63: (County office contact information.)
A64: * | B64: Storage loss is based on an average of multiple studies.
A66: Pasture
A67: * | B67: The budget is based on custom rates for machinery processes. Labor, operating, maintenance, and ownership costs are included in these rates.
A68: * | B68: The budget is based on no-till establishment.
A69: * | B69: Nitrogen is applied in split applications.
A70: * | B70: Lime prorated at one ton over two years.
A71: * | B71: For a more accurate fertilizer and lime recommendation, take a soil sample. | E71: (Instructions on how to take a soil sample.)
A72: * | B72: The post-emergence weed control is based on an average of three common practices. Burndown is a common practice. For weed control and/or burndown
B73: recommendations, contact the county Extension office. | C73: (County office contact information.)
A76: Bermuda Assumptions
A77: Hay
A78: * | B78: The budget is based on custom rates for machinery processes. Labor, operating, maintenance, and ownership costs are included in these rates.
B79: The baling rate includes binding.
A80: * | B80: The budget is based on no-till establishment.
A81: * | B81: Nitrogen is applied in split applications.
A82: * | B82: Lime prorated at one ton over three years.
A83: * | B83: For a more accurate fertilizer and lime recommendation, take a soil sample. | E83: (Instructions on how to take a soil sample.)
A84: * | B84: The post-emergence weed control is based on an average of three common practices. Burndown is a common practice. For weed control and/or burndown
B85: recommendations, contact the county Extension office. | C85: (County office contact information.)
A86: * | B86: Storage loss is based on an average of multiple studies.
A87: * | B87: Establishment pro-rated expenses for hay are set for ten years.
A90: Baleage
A91: * | B91: The budget is based on custom rates for machinery processes. Labor, operating, maintenance, and ownership costs are included in these rates.
B92: The baling rate includes binding.
A93: * | B93: The budget is based on no-till establishment.
A94: * | B94: Nitrogen is applied in split applications.
A95: * | B95: Lime prorated at one ton over three years.
A96: * | B96: Based on inline tube wrapping.
A97: * | B97: For a more accurate fertilizer and lime recommendation, take a soil sample. | E97: (Instructions on how to take a soil sample.)
A98: * | B98: The post-emergence weed control is based on an average of three common practices. Burndown is a common practice. For weed control and/or burndown
B99: recommendations, contact the county Extension office. | C99: (County office contact information.)
A100: * | B100: Storage loss is based on an average of multiple studies.
A101: * | B101: Establishment pro-rated expenses for hay are set for ten years.
A104: Pasture
A105: * | B105: The budget is based on custom rates for machinery processes. Labor, operating, maintenance, and ownership costs are included in these rates.
A106: * | B106: The budget is based on no-till establishment.
A107: * | B107: Nitrogen is applied in split applications.
A108: * | B108: Lime prorated at one ton over three years.
A109: * | B109: For a more accurate fertilizer and lime recommendation, take a soil sample. | E109: (Instructions on how to take a soil sample.)
A110: * | B110: The post-emergence weed control is based on an average of three common practices. Burndown is a common practice. For weed control and/or burndown
B111: recommendations, contact the county Extension office. | C111: (County office contact information.)
A112: * | B112: Storage loss is based on an average of multiple studies.
A113: * | B113: Establishment pro-rated expenses for pasture are set for ten years.
A119: Alfalfa Assumptions
A120: Hay
A121: * | B121: The budget is based on custom rates for machinery processes. Labor, operating, maintenance, and ownership costs are included in these rates.
B122: The baling rate includes binding.
A123: * | B123: Based on Roundup Ready Alfalfa.
A124: * | B124: The budget is based on no-till establishment.
A125: * | B125: Lime prorated at two ton over three years.
A126: * | B126: For a more accurate fertilizer and lime recommendation, take a soil sample. | E126: (Instructions on how to take a soil sample.)
A127: * | B127: The post-emergence weed control is based on an average of three common practices. Burndown is a common practice. For weed control and/or burndown
B128: recommendations, contact the county Extension office. | C128: (County office contact information.)
A129: * | B129: Storage loss is based on an average of multiple studies.
A130: * | B130: Establishment pro-rated expenses for hay are set for four years.
A133: Baleage
A134: * | B134: The budget is based on custom rates for machinery processes. Labor, operating, maintenance, and ownership costs are included in these rates.
B135: The baling rate includes binding.
A136: * | B136: Based on Roundup Ready Alfalfa.
A137: * | B137: The budget is based on no-till establishment.
A138: * | B138: Lime prorated at two ton over three years.
A139: * | B139: Based on inline tube wrapping.
A140: * | B140: For a more accurate fertilizer and lime recommendation, take a soil sample. | E140: (Instructions on how to take a soil sample.)
A141: * | B141: The post-emergence weed control is based on an average of three common practices. Burndown is a common practice. For weed control and/or burndown
B142: recommendations, contact the county Extension office. | C142: (County office contact information.)
A143: * | B143: Storage loss is based on an average of multiple studies.
A144: * | B144: Establishment pro-rated expenses for hay are set for four years.
A147: Pasture
A148: * | B148: The budget is based on custom rates for machinery processes. Labor, operating, maintenance, and ownership costs are included in these rates.
A149: * | B149: The budget is based on no-till establishment.
A150: * | B150: Based on Roundup Ready Alfalfa.
A151: * | B151: For a more accurate fertilizer and lime recommendation, take a soil sample. | E151: (Instructions on how to take a soil sample.)
A152: * | B152: The post-emergence weed control is based on an average of three common practices. Burndown is a common practice. For weed control and/or burndown
B153: recommendations, contact the county Extension office. | C153: (County office contact information.)
A154: * | B154: Establishment pro-rated expenses for pasture are set for four years.

Sheet Machinery (hidden)
L1: Budget
L2: Budget Generator
L3: Price Lists

Sheet storage (hidden)
A1: Buildings and Handling Equipment Expenses
B2: Purchase | E2: Salvage | F2: Salvage | G2: Average | H2: Useful | J2: Interest | M2: Property | P2: Fixed Cost
A3: Item | B3: Price | C3: Units | D3: Cost | E3: Percent | F3: Value1 | G3: Value2 | H3: Life | I3: Depreciation3 | J3: Rate | K3: Interest4 | L3: Insurance5 | M3: Tax6 | N3: Repairs7 | O3: Bale | P3: $/Bale
A4: Hay Barn (40'X60'X14') | B4: 20000 | C4: 1 | D4: =B4*C4 -> 20000 | E4: 0.2 | F4: =D4*E4 -> 4000 | G4: =(D4+F4+I4)/2 -> 12400 | H4: 20 | I4: =(D4-F4)/H4 -> 800 | J4: 0.08 | K4: =G4*J4 -> 992 | L4: =G4*0.005 -> 62 | M4: =G4*0.005 -> 62 | N4: =D4*0.02 -> 400 | O4: 360 | P4: =((I4+SUM(K4:N4))/O4)/H4 -> 0.3216666667
A5: Hay tarp (33 x 52) | B5: 650 | C5: 1 | D5: =B5*C5 -> 650 | E5: 0 | F5: =D5*E5 -> 0 | G5: =(D5+F5+I5)/2 -> 433.3333333 | H5: 3 | I5: =(D5-F5)/H5 -> 216.6666667 | J5: 0.08 | K5: =G5*J5 -> 34.66666667 | L5: =G5*0.005 -> 2.166666667 | N5: =D5*0.02 -> 13 | O5: 130 | P5: =(I5+SUM(K5:N5))/O5 -> 2.05
A6: Outside | P6: 0
T21: =60/4 -> 15
T22: =T21*24 -> 360
